Workbook

Sheet Reference
A3: Tab Color Coding
A4: Pro Forma and Accrual to Cash
A5: Sumary Sheet (Aggregation of Pro Forma, ATC, and Risk Models)
A6: Revenue Model
A7: Expense Model
A8: Other
A10: Cell Color Coding
A11: SME Input
A12: Worksheet Formula
A13: @Risk Output
A14: Linked to Summary
A15: @Risk Formula

Sheet Src Proforma
E1: Updated 6/14/17
A2: BP-18 Rate Case Initial Proposal - Revenue at Proposed Rates | E2: =TRIM(CONCATENATE(A2,B2,C2,D2)) -> BP-18 Rate Case Initial Proposal - Revenue at Proposed Rates | F2: FY17 | G2: FY18 | H2: FY19
A3: Category | F3: $ (000's) | G3: $ (000's) | H3: $ (000's)
C4: Composite Revenue | E4: Composite Revenue | F4: 2407049.609 | G4: 2462544.054 | H4: 2477578.488
C5: Non-Slice Revenue | E5: Non-Slice Revenue | F5: -260313.9138 | G5: -264902.0988 | H5: -267016.8235
C6: Slice | E6: Slice | F6: 0 | G6: 0 | H6: 0
C7: Tier 2 | E7: Tier 2 | F7: 27541.50295 | G7: 38261.41315 | H7: 43549.43558
C8: Load Shaping Revenue | E8: Load Shaping Revenue | F8: 19200.6375 | G8: 22841.75705 | H8: 31940.56841
C9: Demand Revenue | E9: Demand Revenue | F9: 47804.78924 | G9: 48363.67782 | H9: 47951.14129
C10: Irrigation Rate Discount | E10: Irrigation Rate Discount | F10: -22146.48548 | G10: -22127.66944 | H10: -22127.66944
C11: Low Density Discount | E11: Low Density Discount | F11: -37383.16543 | G11: -41009.64064 | H11: -41970.54311
C12: RSS (Non-Federal) | E12: RSS (Non-Federal) | F12: 779.058 | G12: 1210.309977 | H12: 1208.883578
C13: Load Shaping True up | E13: Load Shaping True up | F13: -2069.327 | G13: 0 | H13: 0
B14: PF customers (TRM) sub-total | E14: PF customers (TRM) sub-total | F14: 2180462.705 | G14: 2245181.803 | H14: 2271113.481
C15: New Resource Firm Power | E15: New Resource Firm Power | F15: -198.361 | G15: 0 | H15: 0
B16: NR sub-total | E16: NR sub-total | F16: -198.361 | G16: 0 | H16: 0
C17: DSI - Alcoa | E17: DSI - Alcoa | F17: 4551.4836
C18: DSI - Port Townsend | E18: DSI - Port Townsend | F18: 4446.524
B19: DSIs sub-total | E19: DSIs sub-total | F19: 8998.0076 | G19: 22708.47896 | H19: 34012.56699
C20: FPS Presub | E20: FPS Presub | F20: 1536.377918 | G20: 0 | H20: 0
C21: FPS Other | E21: FPS Other | F21: 2349.688 | G21: 3920 | H21: 3920
B22: FPS sub-total | E22: FPS sub-total | F22: 3886.065918 | G22: 3920 | H22: 3920
C23: Firm Surplus Sale (Rate Case Only and includes Tier 2 sale) | E23: Firm Surplus Sale (Rate Case Only and includes Tier 2 sale) | F23: 0 | G23: 36348.06949 | H23: 0
C24: Committed sales (TF) | E24: Committed sales (TF) | F24: 269567.2872 | G24: 0 | H24: 0
D25: Balancing sales (unadjusted) | E25: Balancing sales (unadjusted) | F25: 137680.8889 | G25: 329348.753 | H25: 334244.8968
D26: Cal ISO sales | E26: Cal ISO sales | F26: 0 | G26: 8564.95924 | H26: 9649.884725
D27: WAPA trasactions 15PM-12424 | E27: WAPA trasactions 15PM-12424 | F27: 0 | G27: 2317.94 | H27: 0
D28: Forward DSI sale | E28: Forward DSI sale | F28: 0 | G28: 2297.822907 | H28: 0
D29: Other NSR (Clark Option) | E29: Other NSR (Clark Option) | F29: 1081.686397 | G29: 0 | H29: 0
C30: Balancing sales | E30: Balancing sales | F30: 138762.5753 | G30: 342529.4752 | H30: 343894.7815
B31: Short-term market sales sub-total | E31: Short-term market sales sub-total | F31: 408329.8625 | G31: 378877.5446 | H31: 343894.7815
D32: PG&E (Wind Energy Exchange Delivery to BPA) 08PB-11984 | E32: PG&E (Wind Energy Exchange Delivery to BPA) 08PB-11984 | F32: 556.67443 | G32: 565.05984 | H32: 129.235
D33: PG&E (Wind Energy Exchange Delivery to PG&E) 08PB-11984 | E33: PG&E (Wind Energy Exchange Delivery to PG&E) 08PB-11984 | F33: 0 | G33: 0 | H33: 0
C34: Other Locational/Seasonal Exchange | E34: Other Locational/Seasonal Exchange | F34: 556.67443 | G34: 565.05984 | H34: 129.235
D35: Avista (WNP-3 Exchange)DE-MS79-85BP92186 | E35: Avista (WNP-3 Exchange)DE-MS79-85BP92186 | F35: 15958.61856 | G35: 15958.618 | H35: 15958.57878
D36: Puget Sound Energy (WNP-3 Exchange)DE-MS79-85BP92185 | E36: Puget Sound Energy (WNP-3 Exchange)DE-MS79-85BP92185 | F36: 15958.61856 | G36: 0 | H36: 0
D37: PGE (WNP-3 Exchange Settlement)98PB-10359 | E37: PGE (WNP-3 Exchange Settlement)98PB-10359 | F37: 3523.81 | G37: 0 | H37: 0
C38: WNP3 Settlement | E38: WNP3 Settlement | F38: 35441.04712 | G38: 15958.618 | H38: 15958.57878
B39: Long Term Contractual Obligations sub-total | E39: Long Term Contractual Obligations sub-total | F39: 35997.72155 | G39: 16523.67784 | H39: 16087.81378
C40: Canadian Entitlement Return for Canada (Total) | E40: Canadian Entitlement Return for Canada (Total) | F40: 0 | G40: 0 | H40: 0
B41: Canadian Entitlement Return | E41: Canadian Entitlement Return | F41: 0 | G41: 0 | H41: 0
D42: REC Revenue | E42: REC Revenue | F42: 648.1940625 | G42: 0 | H42: 0
B43: Renewable Energy Certificates sub-total | E43: Renewable Energy Certificates sub-total | F43: 648.1940625 | G43: 0 | H43: 0
C44: Miscellaneous Credits | E44: Miscellaneous Credits | F44: 93.742 | G44: 0 | H44: 0
C45: Revenues from Slice Product Conversion | E45: Revenues from Slice Product Conversion | F45: 0 | G45: 2033.16 | H45: 2033.16
C46: Slice True up | E46: Slice True up | F46: -5458.180873 | G46: 0 | H46: 0
B47: Other Sales sub-total | E47: Other Sales sub-total | F47: -5364.438873 | G47: 2033.16 | H47: 2033.16
A48: Gross Sales (400001) | E48: Gross Sales (400001) | F48: 2632759.756 | G48: 2669244.664 | H48: 2671061.803
C49: Bookouts | E49: Bookouts | F49: -9212.44234 | G49: 0 | H49: 0
A50: Bookout adjustment to Sales (400001) | E50: Bookout adjustment to Sales (400001) | F50: -9212.44234 | G50: 0 | H50: 0
C51: Lookback Adjustments | E51: Lookback Adjustments | F51: -76537.617 | G51: 0 | H51: 0
A52: Provisions for Rate Refunds (449101) | E52: Provisions for Rate Refunds (449101) | F52: -76537.617 | G52: 0 | H52: 0
C53: GTA Delivery charge | E53: GTA Delivery charge | F53: 4202.554 | G53: 3280 | H53: 3280
C54: Energy Efficiency Revenues | E54: Energy Efficiency Revenues | F54: 7916.901 | G54: 8000 | H54: 8000
C55: Financial Swap Revenues | E55: Financial Swap Revenues | F55: 0 | G55: 0 | H55: 0
C56: Upper Baker revenues | E56: Upper Baker revenues | F56: 409.0130883 | G56: 395.213027 | H56: 400.0272512
C57: Miscellaneous US Bureau of Reclamation Revenues | E57: Miscellaneous US Bureau of Reclamation Revenues | F57: 75.042 | G57: 0 | H57: 0
C58: Miscellaneous US Corps of Engineers Revenues | E58: Miscellaneous US Corps of Engineers Revenues | F58: 0 | G58: 0 | H58: 0
D59: Irrigation Pumping Power | E59: Irrigation Pumping Power | F59: 927.7709109 | G59: 1253.536 | H59: 1253.536
D60: Reserve Energy | E60: Reserve Energy | F60: 9499.488 | G60: 7756.48 | H60: 7756.48
D61: USBR Owyhee Wheeling Project | E61: USBR Owyhee Wheeling Project | F61: 1463.52 | G61: 1280.532 | H61: 1280.532
D62: Downstream Benefits | E62: Downstream Benefits | F62: 6564.744 | G62: 6538.762 | H62: 6538.762
D63: Downstream Benefits - Financial accrual (redist to FERC payment) | E63: Downstream Benefits - Financial accrual (redist to FERC payment) | F63: -1895.27835 | G63: 0 | H63: 0
D64: Downstream Benefits (ASPRJ Bureau) | E64: Downstream Benefits (ASPRJ Bureau) | F64: 842.925 | G64: 0 | H64: 0
D65: Downstream Benefits (ASPRJ CORP) | E65: Downstream Benefits (ASPRJ CORP) | F65: 1038.57 | G65: 0 | H65: 0
C66: Downstream Benefits subtotal | E66: Downstream Benefits subtotal | F66: 6550.96065 | G66: 6538.762 | H66: 6538.762
A67: Miscellaneous Revenues (400002) | E67: Miscellaneous Revenues (400002) | F67: 31045.24965 | G67: 28504.52303 | H67: 28509.33725
C68: Balancing Reserve Capacity | D68: Balancing Reserve Capacity for Regulating Reserve | E68: Balancing Reserve CapacityBalancing Reserve Capacity for Regulating Reserve | F68: 50834.796 | G68: 6911.666 | H68: 7293.709
D69: Balancing Reserve Capacity for VERBS (Wind and Solar) and DERBS | E69: Balancing Reserve Capacity for VERBS (Wind and Solar) and DERBS | F69: 0 | G69: 44474.6303 | H69: 39488.6245
D70: Capacity Unavailable from FCRPS | E70: Capacity Unavailable from FCRPS | F70: -2228.65 | G70: 0 | H70: 0
D71: Expected Balancing Reserve Capacity Sales in Spring Months from FCRPS Above Planned | E71: Expected Balancing Reserve Capacity Sales in Spring Months from FCRPS Above Planned | F71: 4000 | G71: 0 | H71: 0
D72: Operating Reserve - Spinning | E72: Operating Reserve - Spinning | F72: 24715.34064 | G72: 24151.23391 | H72: 22888.05061
D73: Operating Reserve - Supplemental | E73: Operating Reserve - Supplemental | F73: 22655.72867 | G73: 19942.13562 | H73: 18899.10101
D74: Operating Reserve - Spinning Adjustment for WNP-3 Settlement Agreements | E74: Operating Reserve - Spinning Adjustment for WNP-3 Settlement Agreements | F74: -53.886204 | G74: 0 | H74: 0
D75: Operating Reserve - Supplemental Adjustment for WNP-3 Settlement Agreements | E75: Operating Reserve - Supplemental Adjustment for WNP-3 Settlement Agreements | F75: -49.395687 | G75: 0 | H75: 0
D76: Energy Imbalance | E76: Energy Imbalance | F76: 528.459 | G76: 0 | H76: 0
D77: Generation Imbalance | E77: Generation Imbalance | F77: 5350.304 | G77: 0 | H77: 0
D78: Energy Imbalance Persistent Deviation | E78: Energy Imbalance Persistent Deviation | F78: 133.002 | G78: 0 | H78: 0
D79: Generation Imbalance Persistent Deviation | E79: Generation Imbalance Persistent Deviation | F79: 93.73 | G79: 0 | H79: 0
D80: Imbalance Adjustment for Third-Party Deployed Energy | E80: Imbalance Adjustment for Third-Party Deployed Energy | F80: 0 | G80: 0 | H80: 0
D81: Settlement Annual Budget Adjustment | E81: Settlement Annual Budget Adjustment | F81: 0 | G81: 0 | H81: 0
D82: Synchronous Condensing | E82: Synchronous Condensing | F82: 1610.468 | G82: 1272.635 | H82: 1272.635
D83: Generation Dropping | E83: Generation Dropping | F83: 415.4166667 | G83: 589.232 | H83: 589.232
D84: Redispatch | E84: Redispatch | F84: 221.907 | G84: 225 | H84: 225
D85: COE/Reclamation Network/Delivery Facilities Segmentation | E85: COE/Reclamation Network/Delivery Facilities Segmentation | F85: 7367.001333 | G85: 8867 | H85: 8867
D86: Station Service | E86: Station Service | F86: 2479.124667 | G86: 1996.009 | H86: 1996.009
D87: Operating Reserve Energy | E87: Operating Reserve Energy | F87: 548.255 | G87: 0 | H87: 0
A88: Inter-Business Unit / Gen Inputs for Ancillary and Other Services (400003) | E88: Inter-Business Unit / Gen Inputs for Ancillary and Other Services (400003) | F88: 118621.6011 | G88: 108429.5418 | H88: 101519.3611
C89: 4(h)(10)(c) | E89: 4(h)(10)(c) | F89: 65465.91117 | G89: 93171.95422 | H89: 91525.51627
C90: Colville and Spokane Settlements | E90: Colville and Spokane Settlements | F90: 4600.000023 | G90: 4599.999963 | H90: 4600
A91: Treasury Credits (400005 and 400006) | E91: Treasury Credits (400005 and 400006) | F91: 70065.91119 | G91: 97771.95418 | H91: 96125.51627
A92: TOTAL OPERATING REVENUES | E92: TOTAL OPERATING REVENUES | F92: 2766742.459 | G92: 2903950.683 | H92: 2897216.017
C93: Augmentation Purchases | E93: Augmentation Purchases | F93: 0 | G93: 0 | H93: 12221.56928
B94: Augmentation Power Purchase total | E94: Augmentation Power Purchase total | F94: 0 | G94: 0 | H94: 12221.56928
D95: Balancing Purchases (unadjusted) | E95: Balancing Purchases (unadjusted) | F95: 4112.030643 | G95: 21876.98541 | H95: 15743.17992
D96: (Transmission re-dispatch for Gen Inputs adjustment) | E96: (Transmission re-dispatch for Gen Inputs adjustment) | F96: 0 | G96: 225 | H96: 225
C97: Balancing Purchases | E97: Balancing Purchases | F97: 4112.030643 | G97: 22101.98541 | H97: 15968.17992
D98: SILS Power Purchases (within year included in balancing purchases) | E98: SILS Power Purchases (within year included in balancing purchases) | F98: 0 | G98: 38381.736 | H98: 38440.768
C99: Committed Purchases (TF) | E99: Committed Purchases (TF) | F99: 60444.84623 | G99: 0 | H99: 0
C100: Non Treaty Storage Agreement expense (TF) | E100: Non Treaty Storage Agreement expense (TF) | F100: 6560.874812 | G100: 0 | H100: 0
C101: Libby Coordination Agreement (TF) | E101: Libby Coordination Agreement (TF) | F101: 4214.005473 | G101: 0 | H101: 0
B102: Balancing Power Purchase sub-total | E102: Balancing Power Purchase sub-total | F102: 16234.15642 | G102: 60483.72141 | H102: 54408.94792
B103: Non-Treaty Storage Agreement Expense - slice portion | E103: Non-Treaty Storage Agreement Expense - slice portion | F103: 2462.929494 | G103: 0 | H103: 0
B104: Libby Coordination Agreement Expense - slice portion | E104: Libby Coordination Agreement Expense - slice portion | F104: 1581.922939 | G104: 0 | H104: 0
B105: Rocky Brook Power Purchase | E105: Rocky Brook Power Purchase | F105: 0 | G105: 0 | H105: 0
D106: Tier 2 Short Term Power Purchase | E106: Tier 2 Short Term Power Purchase | F106: 0 | G106: 0 | H106: 6850.32
D107: Tier 2 Short Term Forecasted Power Purchase | E107: Tier 2 Short Term Forecasted Power Purchase | F107: 0 | G107: 5555.316301 | H107: 891.0622223
D108: Tier 2 Load Growth Term Power Purchase | E108: Tier 2 Load Growth Term Power Purchase | F108: 2045.46 | G108: 2163.72 | H108: 2538.21
D109: Tier 2 Load Growth Forecasted Power Purchase | E109: Tier 2 Load Growth Forecasted Power Purchase | F109: 0 | G109: 156.2035363 | H109: 29.12267379
D110: Tier 2 Vintage 12PM-10176 | E110: Tier 2 Vintage 12PM-10176 | F110: 19179.1296 | G110: 19906.224 | H110: 20772.588
D111: Tier 2 Vintage 1 Forecasted Power Purchase | E111: Tier 2 Vintage 1 Forecasted Power Purchase | F111: 0 | G111: 201.9926846 | H111: 20.96112454
D112: Tier 2 Vintage 13PM-11134 | E112: Tier 2 Vintage 13PM-11134 | F112: 5827.7904 | G112: 8965.86 | H112: 10992.486
D113: Tier 2 Vintage Forecasted Power Purchase | E113: Tier 2 Vintage Forecasted Power Purchase | F113: 0 | G113: 100.9963423 | H113: 16.770488
C114: Tier 2 Purchases | E114: Tier 2 Purchases | F114: 27052.38 | G114: 37050.31286 | H114: 42111.52051
D115: Foote Creek I Wind Project (PacifiCorp)94MS-94375 | E115: Foote Creek I Wind Project (PacifiCorp)94MS-94375 | F115: 3077.994754 | G115: 2241.901267 | H115: 2241.901267
D116: Foote Creek I Wind Project (Storage for EWEB Amount)94MS-94375 | E116: Foote Creek I Wind Project (Storage for EWEB Amount)94MS-94375 | F116: 46.3263975 | G116: 0 | H116: 15.75746516
D117: Foote Creek I Wind Project (Transmission for EWEB Amount)94MS-94375 | E117: Foote Creek I Wind Project (Transmission for EWEB Amount)94MS-94375 | F117: 27.1781532 | G117: 0 | H117: 9.244379562
D118: Foote Creek I Wind Project (EWEB)94MS-94375 | E118: Foote Creek I Wind Project (EWEB)94MS-94375 | F118: 464.8081883 | G118: 0 | H118: 177.5341075
D119: Foote Creek I Wind Project (Settlement Credit to EWEB)15PM-12909 | E119: Foote Creek I Wind Project (Settlement Credit to EWEB)15PM-12909 | F119: 0 | G119: 358.752 | H119: 358.752
D120: Foote Creek IV Wind Project (SeaWest Windpower Inc.)00PB-10652 | E120: Foote Creek IV Wind Project (SeaWest Windpower Inc.)00PB-10652 | F120: 2149.128652 | G120: 1494.396071 | H120: 1494.396071
D121: Foote Creek IV Wind Project (PacifiCorp) (Storage, Generation Control)00PB-10708 | E121: Foote Creek IV Wind Project (PacifiCorp) (Storage, Generation Control)00PB-10708 | F121: 639.4371214 | G121: 443.9957074 | H121: 452.8756215
D122: Foote Creek IV Wind Project (PacifiCorp) (UFT)00PB-10708 | E122: Foote Creek IV Wind Project (PacifiCorp) (UFT)00PB-10708 | F122: 136.8864 | G122: 23.529387 | H122: 23.529387
D123: Condon Wind Project (Condon Wind Power LLC)00PB-10692 | E123: Condon Wind Project (Condon Wind Power LLC)00PB-10692 | F123: 7036.998075 | G123: 8121.92781 | H123: 8121.92781
D124: Condon Wind Project Tx Loss Adjustment/Gen Imbalance | E124: Condon Wind Project Tx Loss Adjustment/Gen Imbalance | F124: 18.37 | G124: 0 | H124: 0
D125: Condon Wind Project (Wind Balancing Service)00PB-10692 | E125: Condon Wind Project (Wind Balancing Service)00PB-10692 | F125: 717.12 | G125: 606 | H125: 606
D126: Stateline Wind Project (PPM)01PB-10761 | E126: Stateline Wind Project (PPM)01PB-10761 | F126: 8060.694908 | G126: 8093.6658 | H126: 8093.6658
D127: Stateline Wind Project Credit for Losses | E127: Stateline Wind Project Credit for Losses | F127: -32.251 | G127: 0 | H127: 0
D128: Stateline Wind Project (Wind Balancing Service)01PB-10761 | E128: Stateline Wind Project (Wind Balancing Service)01PB-10761 | F128: 646.272 | G128: 1162.35 | H128: 1317.6
D129: Klondike Wind Project (PPM/Northwestern Wind Power LLC)02PB-11093 | E129: Klondike Wind Project (PPM/Northwestern Wind Power LLC)02PB-11093 | F129: 2267.395677 | G129: 2063.61331 | H129: 2063.61331
D130: Ashland Solar 00PB-10651 | E130: Ashland Solar 00PB-10651 | F130: 0 | G130: 0 | H130: 0
D131: Fourmile Hill Geothermal (Calpine Siskiyou Partners)93956 | E131: Fourmile Hill Geothermal (Calpine Siskiyou Partners)93956 | F131: 0 | G131: 0 | H131: 0
C132: Renewable Purchases - general (excl. Klondike III) | E132: Renewable Purchases - general (excl. Klondike III) | F132: 25256.35933 | G132: 24610.13135 | H132: 24976.79722
D133: Klondike III Wind Project07PB-11860 | E133: Klondike III Wind Project07PB-11860 | F133: 7916.672093 | G133: 6755.8854 | H133: 6755.8854
D134: Klondike III Wind Project (Monthly True Up)07PB-11860 | E134: Klondike III Wind Project (Monthly True Up)07PB-11860 | F134: -2.196 | G134: 0 | H134: 0
D135: Klondike III Wind Project (Wind Balancing Service)07PB-11860 | E135: Klondike III Wind Project (Wind Balancing Service)07PB-11860 | F135: 878.5 | G135: 196 | H135: 0
D136: Critical Wind Quantity Expense Adjustment for Klondike III | E136: Critical Wind Quantity Expense Adjustment for Klondike III | F136: 1135.119326 | G136: 1309.719919 | H136: 1421.752236
C137: Renewable Purchases - Klondike III | E137: Renewable Purchases - Klondike III | F137: 9928.095419 | G137: 8261.605319 | H137: 8177.637636
C138: Critical Wind Quantity Expense Adjustment | E138: Critical Wind Quantity Expense Adjustment | F138: 1983.48609 | G138: 5134.102081 | H138: 5573.268764
B139: Total Renewable Purchases | E139: Total Renewable Purchases | F139: 35184.45475 | G139: 38005.83875 | H139: 38727.70362
A140: Power Purchases | E140: Power Purchases | F140: 47331.38886 | G140: 105795.6396 | H140: 116919.6753
C141: Columbia Generating Station | E141: Columbia Generating Station | F141: 318513.718 | G141: 270146 | H141: 327354
C142: Bureau Of Reclamation | E142: Bureau Of Reclamation | F142: 157621 | G142: 164609 | H142: 162623
C143: Corps of Engineers | E143: Corps of Engineers | F143: 243981 | G143: 256057 | H143: 256057
C144: Long-Term Contract Generating Projects | E144: Long-Term Contract Generating Projects | F144: 11570.353 | G144: 12595.027 | H144: 13687.338
B145: Operating Generation | E145: Operating Generation | F145: 731686.071 | G145: 703407.027 | H145: 759721.338
C146: Colville Generation Settlement | E146: Colville Generation Settlement | F146: 16666.778 | G146: 22612.478 | H146: 22996.89
B147: Operating Generation Settlements and Other Payments | E147: Operating Generation Settlements and Other Payments | F147: 16666.778 | G147: 22612.478 | H147: 22996.89
C148: Trojan Decommissioning | E148: Trojan Decommissioning | F148: 300 | G148: 1000 | H148: 1000
C149: WNP-1&3 Decommissioning | E149: WNP-1&3 Decommissioning | F149: 465 | G149: 500 | H149: 534
B150: Non-Operating Generation | E150: Non-Operating Generation | F150: 765 | G150: 1500 | H150: 1534
C151: PNCA Headwater Benefits | E151: PNCA Headwater Benefits | F151: 2480 | G151: 3100 | H151: 3100
C152: Purchases for Service at Tier 2 Rates | E152: Purchases for Service at Tier 2 Rates | F152: 26582 | G152: 37050.31286 | H152: 42111.52051
C153: Other Power Purchases (e.g. Short term) | E153: Other Power Purchases (e.g. Short term) | F153: 79376.60959 | G153: 60483.72141 | H153: 54408.94792
B154: Gross Contracted Power Purchases (excluding bookout adjustments) <Note 1 | E154: Gross Contracted Power Purchases (excluding bookout adjustments) <Note 1 | F154: 108438.6096 | G154: 100634.0343 | H154: 99620.46843
B155: Bookout Adjustments to Contracted Power Purchases <Note 1 | E155: Bookout Adjustments to Contracted Power Purchases <Note 1 | F155: -9212.44234 | G155: 0 | H155: 0
C156: Augmentation Power Purchases | E156: Augmentation Power Purchases | F156: 0 | G156: 0 | H156: 12221.56928
B157: Augmentation Power Purchases | E157: Augmentation Power Purchases | F157: 0 | G157: 0 | H157: 12221.56928
C158: Residential Exchange Program | E158: Residential Exchange Program | F158: 219002.628 | G158: 317901.7218 | H158: 317916.1845
C159: Other Settlements | E159: Other Settlements | F159: 0 | G159: 0 | H159: 0
B160: Exchanges & Settlements | E160: Exchanges & Settlements | F160: 219002.628 | G160: 317901.7218 | H160: 317916.1845
C161: Renewable Conservation Rate Credit | E161: Renewable Conservation Rate Credit | F161: 0 | G161: 0 | H161: 0
C162: Renewables | E162: Renewables | F162: 40341.322 | G162: 38331.832 | H162: 39059.891
B163: Renewable Generation | E163: Renewable Generation | F163: 40341.322 | G163: 38331.832 | H163: 39059.891
C164: DSM Technology | E164: DSM Technology | F164: 0 | G164: 0 | H164: 0
C165: Conservation Purchases | E165: Conservation Purchases | F165: 76323.449 | G165: 71785 | H165: 71785
C166: Conservation Infrastructure | E166: Conservation Infrastructure | F166: 22943.144 | G166: 27148.552 | H166: 27282.626
C167: Low Income Weatherization & Tribal | E167: Low Income Weatherization & Tribal | F167: 5422 | G167: 5523.391 | H167: 5626.679
C168: Energy Efficiency Development | E168: Energy Efficiency Development | F168: 7916.901 | G168: 8000 | H168: 8000
C169: Legacy | E169: Legacy | F169: 590 | G169: 590 | H169: 590
C170: Market Transformation | E170: Market Transformation | F170: 12507.295 | G170: 12363.808 | H170: 12048.687
C171: Conservation Rate Credit (CRC) | E171: Conservation Rate Credit (CRC) | F171: 0 | G171: 0 | H171: 0
C172: DR & Smart Grid | E172: DR & Smart Grid | F172: 1188.234 | G172: 856.252 | H172: 854.087
B173: Generation Conservation | E173: Generation Conservation | F173: 126891.023 | G173: 126267.003 | H173: 126187.079
A174: Power System Generation Sub-Total | E174: Power System Generation Sub-Total | F174: 1234578.989 | G174: 1310654.096 | H174: 1379257.42
C175: Information Technology | E175: Information Technology | F175: 7047.157 | G175: 6976.159 | H175: 7293.865
C176: Generation Project Coordination | E176: Generation Project Coordination | F176: 5962.759 | G176: 6173.94 | H176: 6408.905
C177: Slice Implementation | E177: Slice Implementation | F177: 488.959 | G177: 1024.143 | H177: 1061.36
B178: Power Services System Operations | E178: Power Services System Operations | F178: 13498.875 | G178: 14174.242 | H178: 14764.13
C179: Operations Scheduling | E179: Operations Scheduling | F179: 8897.675 | G179: 10053.729 | H179: 10404.279
C180: Operations Planning | E180: Operations Planning | F180: 7613.302 | G180: 8528.098 | H180: 8415.711
B181: Power Services Scheduling | E181: Power Services Scheduling | F181: 16510.977 | G181: 18581.827 | H181: 18819.99
C182: Power R&D | E182: Power R&D | F182: 4275.698 | G182: 4704.933 | H182: 4599.519
C183: Sales & Support | E183: Sales & Support | F183: 19588.128 | G183: 22885.139 | H183: 23485.271
C184: Strategy, Finance & Risk Mgmt | E184: Strategy, Finance & Risk Mgmt | F184: 14877.488 | G184: 16853.235 | H184: 19038.129
C185: Executive & Administrative Services | E185: Executive & Administrative Services | F185: 3417.475 | G185: 4118.522 | H185: 4203.53
C186: Conservation Support | E186: Conservation Support | F186: 8239.36 | G186: 9093.563 | H186: 9408.5
B187: Power Services Marketing and Business Support | E187: Power Services Marketing and Business Support | F187: 50398.149 | G187: 57655.392 | H187: 60734.949
A188: Power Non-Generation Operations | E188: Power Non-Generation Operations | F188: 80408.001 | G188: 90411.461 | H188: 94319.069
C189: PS Transmission & Ancillary Services | E189: PS Transmission & Ancillary Services | F189: 112806.4225 | G189: 108554.6811 | H189: 104198.0299
C190: 3rd Party GTA Wheeling | E190: 3rd Party GTA Wheeling | F190: 92844.302 | G190: 91758.556 | H190: 92515.6
C191: PS - 3rd Party Trans & Ancillary Svcs | E191: PS - 3rd Party Trans & Ancillary Svcs | F191: 2338 | G191: 2250.789 | H191: 2292.204
C192: Generation Integration | E192: Generation Integration | F192: 12074 | G192: 12480 | H192: 12634
C193: Wind Integration Team | E193: Wind Integration Team | F193: 0 | G193: 0 | H193: 0
C194: Telemetering/Equip Replacemt | E194: Telemetering/Equip Replacemt | F194: 0 | G194: 0 | H194: 0
A195: Power Srvcs Trans Acquisition and Ancillary Services Sub-Total | E195: Power Srvcs Trans Acquisition and Ancillary Services Sub-Total | F195: 220062.7245 | G195: 215044.0261 | H195: 211639.8339
C196: Fish & Wildlife | E196: Fish & Wildlife | F196: 263869.329 | G196: 276713.282 | H196: 276703.668
C197: USF&W Lower Snake Hatcheries | E197: USF&W Lower Snake Hatcheries | F197: 31949.468 | G197: 33483.249 | H197: 33483.249
C198: Planning Council | E198: Planning Council | F198: 11570 | G198: 11624 | H198: 11914
C199: Environmental Requirements | E199: Environmental Requirements | F199: 0 | G199: 0 | H199: 0
A200: Fish and Wildlife/USF&W/Planning Council Sub-Total | E200: Fish and Wildlife/USF&W/Planning Council Sub-Total | F200: 307388.797 | G200: 321820.531 | H200: 322100.917
... 31 more rows

Sheet Risk Summary
U2: Outputs for Charting, etc
C3: FY17 | D3: FY17 | E3: FY18 | F3: FY18 | G3: FY19 | H3: FY19 | J3: =D3 -> FY17 | K3: =F3 -> FY18 | L3: =H3 -> FY19 | P3: =J3 -> FY17 | Q3: =K3 -> FY18 | R3: =L3 -> FY19 | S3: FY18 and 19 | T3: Chart Names | U3: =Q3 -> FY18 | V3: =R3 -> FY19 | W3: =S3 -> FY18 and 19
C4: Forecast | D4: Modeled | E4: Forecast | F4: Modeled | G4: Forecast | H4: Modeled | J4: Delta | K4: Delta | L4: Delta | P4: Output
B5: Revenue
B6: Revenue delta from CGS Re-fuel outage duration (delta) | D6: ='CGS Refueling'!B5 ->  | F6: ='CGS Refueling'!C5 ->  | H6: ='CGS Refueling'!D5 ->  | J6: =D6-C6 ->  | K6: =F6-E6 ->  | L6: =H6-G6 ->  | P6: =_xll.RiskOutput($T6&" / "&P$3)+D6 ->  | Q6: =_xll.RiskOutput($T6&" / "&Q$3)+F6 ->  | R6: =_xll.RiskOutput($T6&" / "&R$3)+H6 ->  | S6: =_xll.RiskOutput($T6&" / "&S$3)+Q6+R6 ->  | T6: CGS Outage Revenue Impact
B7: Expense
B8: Columbia Generating Station | C8: =IF(CategoryColumn="","",VLOOKUP(CategoryColumn,ProForma,MATCH(YearRow,ProFormaYears,0)+1,FALSE)) -> 318513.718 | D8: =CGS!J4 ->  | E8: =IF(CategoryColumn="","",VLOOKUP(CategoryColumn,ProForma,MATCH(YearRow,ProFormaYears,0)+1,FALSE)) -> 270146 | F8: =CGS!K4 ->  | G8: =IF(CategoryColumn="","",VLOOKUP(CategoryColumn,ProForma,MATCH(YearRow,ProFormaYears,0)+1,FALSE)) -> 327354 | H8: =CGS!L4 ->  | J8: =IF(COUNT(C8:D8)>0,D8-C8,"") ->  | K8: =IF(COUNT(E8:F8)>0,F8-E8,"") ->  | L8: =IF(COUNT(G8:H8)>0,H8-G8,"") ->  | P8: =_xll.RiskOutput($T8&" / "&P$3)+D8 ->  | Q8: =_xll.RiskOutput($T8&" / "&Q$3)+F8 ->  | R8: =_xll.RiskOutput($T8&" / "&R$3)+H8 ->  | S8: =_xll.RiskOutput($T8&" / "&S$3)+Q8+R8 ->  | T8: CGS Total O&M
B9: Bureau Of Reclamation | C9: 157621 | D9: ='Corps & Bureau O&M'!D22 ->  | E9: 164609 | F9: ='Corps & Bureau O&M'!F22 ->  | G9: 162623 | H9: ='Corps & Bureau O&M'!H22 ->  | J9: =IF(COUNT(C9:D9)>0,D9-C9,"") ->  | K9: =IF(COUNT(E9:F9)>0,F9-E9,"") ->  | L9: =IF(COUNT(G9:H9)>0,H9-G9,"") ->  | P9: =_xll.RiskOutput($T9&" / "&P$3)+SUM(D9:D10) ->  | Q9: =_xll.RiskOutput($T9&" / "&Q$3)+SUM(F9:F10) ->  | R9: =_xll.RiskOutput($T9&" / "&R$3)+SUM(H9:H10) ->  | S9: =_xll.RiskOutput($T9&" / "&S$3)+Q9+R9 ->  | T9: Corps and Reclamation O&M
B10: Corps of Engineers | C10: 243981 | D10: ='Corps & Bureau O&M'!D5 ->  | E10: 256057 | F10: ='Corps & Bureau O&M'!F5 ->  | G10: 256057 | H10: ='Corps & Bureau O&M'!H5 -> 
B11: Colville Generation Settlement | C11: 16666.778 | D11: ='Colville&Spokane'!F5 ->  | E11: 22612.478 | F11: ='Colville&Spokane'!G5 ->  | G11: 22996.89 | H11: ='Colville&Spokane'!H5 ->  | P11: =_xll.RiskOutput($T11&" / "&P$3)+D11 ->  | Q11: =_xll.RiskOutput($T11&" / "&Q$3)+F11 ->  | R11: =_xll.RiskOutput($T11&" / "&R$3)+H11 ->  | S11: =_xll.RiskOutput($T11&" / "&S$3)+Q11+R11 ->  | T11: Colville & Spokane Settlements
B13: Conservation Purchases | C13: =IF(CategoryColumn="","",VLOOKUP(CategoryColumn,ProForma,MATCH(YearRow,ProFormaYears,0)+1,FALSE)) -> 76323.449 | D13: =_xll.RiskPert(C13*AVERAGE(1,0.9),C13,C13*AVERAGE(1,1.05)) ->  | E13: 71785 | F13: =_xll.RiskPert(E13*0.9,E13,E13*1.05) ->  | G13: 71785 | H13: =_xll.RiskPert(G13*0.9,G13,G13*1.05) ->  | P13: =_xll.RiskOutput($T13&" / "&P$3)+D13 ->  | Q13: =_xll.RiskOutput($T13&" / "&Q$3)+F13 ->  | R13: =_xll.RiskOutput($T13&" / "&R$3)+H13 ->  | S13: =_xll.RiskOutput($T13&" / "&S$3)+Q13+R13 ->  | T13: Conservation Acquisition | U13: =_xll.RiskOutput(,X13,1)+F13+F14 ->  | V13: =_xll.RiskOutput(,X13,2)+H13+H14 ->  | W13: =_xll.RiskOutput(,X13,3)+U13+V13 ->  | X13: Conservation Acq. & Weatherization
B14: Low Income Weatherization & Tribal | C14: 5422 | D14: =_xll.RiskPert(C14*AVERAGE(1,0.95),C14,C14*AVERAGE(1,1.05)) ->  | E14: 5523.391 | F14: =_xll.RiskPert(E14*0.95,E14,E14*1.05) ->  | G14: 5626.679 | H14: =_xll.RiskPert(G14*0.95,G14,G14*1.05) ->  | P14: =_xll.RiskOutput($T14&" / "&P$3)+D14 ->  | Q14: =_xll.RiskOutput($T14&" / "&Q$3)+F14 ->  | R14: =_xll.RiskOutput($T14&" / "&R$3)+H14 ->  | S14: =_xll.RiskOutput($T14&" / "&S$3)+Q14+R14 ->  | T14: Low Income Weatherization & Tribal
B16: 3rd Party GTA Wheeling | C16: =IF(CategoryColumn="","",VLOOKUP(CategoryColumn,ProForma,MATCH(YearRow,ProFormaYears,0)+1,FALSE)) -> 92844.302 | D16: =_xll.RiskPert(C16*AVERAGE(1,0.98),C16,C16*AVERAGE(1,1.01)) ->  | E16: 91758.556 | F16: =_xll.RiskPert(E16*0.96,E16,E16*1.02) ->  | G16: 92515.6 | H16: =_xll.RiskPert(G16*0.96,G16,G16*1.03) ->  | P16: =_xll.RiskOutput($T16&" / "&P$3)+D16 ->  | Q16: =_xll.RiskOutput($T16&" / "&Q$3)+F16 ->  | R16: =_xll.RiskOutput($T16&" / "&R$3)+H16 ->  | S16: =_xll.RiskOutput($T16&" / "&S$3)+Q16+R16 ->  | T16: 3rd Party GTA Wheeling
B17: PS - 3rd Party Trans & Ancillary Svcs | C17: 2338 | D17: =_xll.RiskPert(C17,C17,C17*AVERAGE(1,1.05)) ->  | E17: =IF(CategoryColumn="","",VLOOKUP(CategoryColumn,ProForma,MATCH(YearRow,ProFormaYears,0)+1,FALSE)) -> 2250.789 | F17: =_xll.RiskPert(E17,E17,E17*1.05^2) ->  | G17: 2292.204 | H17: =_xll.RiskPert(G17,G17,G17*1.05^3) ->  | P17: =_xll.RiskOutput($T17&" / "&P$3)+D17 ->  | Q17: =_xll.RiskOutput($T17&" / "&Q$3)+F17 ->  | R17: =_xll.RiskOutput($T17&" / "&R$3)+H17 ->  | S17: =_xll.RiskOutput($T17&" / "&S$3)+Q17+R17 ->  | T17: 3rd Party Trans & Ancillary Svcs
B19: INFORMATION TECHNOLOGY | C19: 7047.157 | D19: =Salaries!F5 ->  | E19: 6976.159 | F19: =Salaries!G5 ->  | G19: 7293.865 | H19: =Salaries!H5 ->  | P19: =_xll.RiskOutput($T19&" / "&P$3)+SUM(D19:D32) ->  | Q19: =_xll.RiskOutput($T19&" / "&Q$3)+SUM(F19:F32) ->  | R19: =_xll.RiskOutput($T19&" / "&R$3)+SUM(H19:H32) ->  | S19: =_xll.RiskOutput($T19&" / "&S$3)+Q19+R19 ->  | T19: Internal Operations
B20: GENERATION PROJECT COORDINATION | C20: 5962.759 | D20: =Salaries!F6 ->  | E20: 6173.94 | F20: =Salaries!G6 ->  | G20: 6408.905 | H20: =Salaries!H6 -> 
B21: SLICE IMPLEMENTATION | C21: 488.959 | D21: =Salaries!F7 ->  | E21: 1024.143 | F21: =Salaries!G7 ->  | G21: 1061.36 | H21: =Salaries!H7 -> 
B23: OPERATIONS SCHEDULING | C23: 8897.675 | D23: =Salaries!F9 ->  | E23: 10053.729 | F23: =Salaries!G9 ->  | G23: 10404.279 | H23: =Salaries!H9 -> 
B24: OPERATIONS PLANNING | C24: 7613.302 | D24: =Salaries!F10 ->  | E24: 8528.098 | F24: =Salaries!G10 ->  | G24: 8415.711 | H24: =Salaries!H10 -> 
B25: POWER R&D | C25: 4275.698 | D25: =Salaries!F11 ->  | E25: 4704.933 | F25: =Salaries!G11 ->  | G25: 4599.519 | H25: =Salaries!H11 -> 
B27: SALES & SUPPORT | C27: 19588.128 | D27: =Salaries!F13 ->  | E27: 22885.139 | F27: =Salaries!G13 ->  | G27: 23485.271 | H27: =Salaries!H13 -> 
B28: STRATEGY, FINANCE & RISK MGMT | C28: 14877.488 | D28: =Salaries!F14 ->  | E28: 16853.235 | F28: =Salaries!G14 ->  | G28: 19038.129 | H28: =Salaries!H14 -> 
B29: Executive & Administrative Services | C29: 3417.475 | D29: =Salaries!F15 ->  | E29: 4118.522 | F29: =Salaries!G15 ->  | G29: 4203.53 | H29: =Salaries!H15 -> 
B30: CONSERVATION SUPPORT | C30: 8239.36 | D30: =Salaries!F16 ->  | E30: 9093.563 | F30: =Salaries!G16 ->  | G30: 9408.5 | H30: =Salaries!H16 -> 
P31: =_xll.RiskOutput($T31&" / "&P$3)+'F&W Expense'!G14 ->  | Q31: =_xll.RiskOutput($T31&" / "&Q$3)+'F&W Expense'!I14 ->  | R31: =_xll.RiskOutput($T31&" / "&R$3)+'F&W Expense'!K14 ->  | S31: =_xll.RiskOutput($T31&" / "&S$3)+Q31+R31 ->  | T31: Leavenworth Complex O&M
B32: Agency Services G&A (Excludes Direct Project Support) | C32: 58261.282 | D32: =Salaries!F18 ->  | E32: 64391.225 | F32: =Salaries!G18 ->  | G32: 65796.266 | H32: =Salaries!H18 ->  | P32: =_xll.RiskOutput($T32&" / "&P$3)+'F&W Expense'!G18 ->  | Q32: =_xll.RiskOutput($T32&" / "&Q$3)+'F&W Expense'!I18 ->  | R32: =_xll.RiskOutput($T32&" / "&R$3)+'F&W Expense'!K18 ->  | S32: =_xll.RiskOutput($T32&" / "&S$3)+Q32+R32 ->  | T32: COE Fish Passage Facilities
B34: Fish & Wildlife | C34: 263869.329 | D34: ='F&W Expense'!G6 ->  | E34: 276713.282 | F34: ='F&W Expense'!I6 ->  | G34: 276703.668 | H34: ='F&W Expense'!K6 ->  | J34: =IF(COUNT(C34:D34)>0,D34-C34,"") ->  | K34: =IF(COUNT(E34:F34)>0,F34-E34,"") ->  | L34: =IF(COUNT(G34:H34)>0,H34-G34,"") ->  | P34: =_xll.RiskOutput($T34&" / "&P$3)+D34 ->  | Q34: =_xll.RiskOutput($T34&" / "&Q$3)+F34 ->  | R34: =_xll.RiskOutput($T34&" / "&R$3)+H34 ->  | S34: =_xll.RiskOutput($T34&" / "&S$3)+Q34+R34 ->  | T34: F&W Direct Program
B35: USF&W Lower Snake Hatcheries | C35: 31949.468 | D35: ='F&W Expense'!G24 ->  | E35: 33483.249 | F35: ='F&W Expense'!I24 ->  | G35: 33483.249 | H35: ='F&W Expense'!K24 ->  | J35: =IF(COUNT(C35:D35)>0,D35-C35,"") ->  | K35: =IF(COUNT(E35:F35)>0,F35-E35,"") ->  | L35: =IF(COUNT(G35:H35)>0,H35-G35,"") ->  | P35: =_xll.RiskOutput($T35&" / "&P$3)+D35 ->  | Q35: =_xll.RiskOutput($T35&" / "&Q$3)+F35 ->  | R35: =_xll.RiskOutput($T35&" / "&R$3)+H35 ->  | S35: =_xll.RiskOutput($T35&" / "&S$3)+Q35+R35 ->  | T35: F&W Lower Snake Hatcheries
J36: =IF(COUNT(C36:D36)>0,D36-C36,"") ->  | K36: =IF(COUNT(E36:F36)>0,F36-E36,"") ->  | L36: =IF(COUNT(G36:H36)>0,H36-G36,"") -> 
B37: Non-Federal Debt Service Sub-Total | C37: 222831 | D37: =Interest!J5 ->  | E37: 490561.8091 | F37: =Interest!K5 ->  | G37: 420704.1575 | H37: =Interest!L5 ->  | P37: =_xll.RiskOutput($T37&" / "&P$3)+SUM(D37:D39) ->  | Q37: =_xll.RiskOutput($T37&" / "&Q$3)+SUM(F37:F39) ->  | R37: =_xll.RiskOutput($T37&" / "&R$3)+SUM(H37:H39) ->  | S37: =_xll.RiskOutput($T37&" / "&S$3)+Q37+R37 ->  | T37: Interest and Appropriations
B38: Borrowings from US Treasury | C38: 53895.938 | D38: =Interest!J6 ->  | E38: 56449 | F38: =Interest!K6 ->  | G38: 63302 | H38: =Interest!L6 ->  | J38: =IF(COUNT(C38:D38)>0,D38-C38,"") ->  | K38: =IF(COUNT(E38:F38)>0,F38-E38,"") ->  | L38: =IF(COUNT(G38:H38)>0,H38-G38,"") -> 
B39: FEDERAL APPROPRIATION | C39: 115582.3 | D39: =Interest!J7 ->  | E39: 83294 | F39: =Interest!K7 ->  | G39: 82687 | H39: =Interest!L7 -> 
B41: Total Revenue Delta | C41: Increases Net Revenue | J41: =SUM(J6:J6) ->  | K41: =SUM(K6:K6) ->  | L41: =SUM(L6:L6) -> 
B42: RevenueSlice True-up | C42: Increases Net Revenue | J42: =0*Slice0*-1 -> 0 | K42: =0*Slice1*-1 -> 0 | L42: =0*Slice2*-1 -> 0
B43: Base Expenses Delta | C43: Decreases Net Revenue | J43: =SUM(J8:J39) ->  | K43: =SUM(K8:K39) ->  | L43: =SUM(L8:L39) -> 
B44: Undistributed Reduction Adjustment | J44: ='Undistributed Reduction'!B23 ->  | K44: ='Undistributed Reduction'!C23 ->  | L44: ='Undistributed Reduction'!D23 -> 
B45: Total Expenses Delta | J45: =J43+J44 ->  | K45: =K43+K44 ->  | L45: =L43+L44 -> 
B46: Expense Slice True-up | C46: Decreases Net Revenue | J46: =(J45*Slice0*-1) ->  | K46: =(K45*Slice1*-1) ->  | L46: =(L45*Slice2*-1) -> 
B48: Revenue Delta | J48: =J41+J42-J45-J46 ->  | K48: =K41+K42-K45-K46 ->  | L48: =L41+L42-L45-L46 ->  | P48: =_xll.RiskOutput($T48&" / "&P$3)+J48 ->  | Q48: =_xll.RiskOutput($T48&" / "&Q$3)+K48 ->  | R48: =_xll.RiskOutput($T48&" / "&R$3)+L48 ->  | S48: =_xll.RiskOutput($T48&" / "&S$3)+Q48+R48 ->  | T48: NORM Summary Statistics
J50: Slice0 | K50: Slice1 | L50: Slice2
J51: 0.266187 | K51: 0.265953 | L51: 0.265953

Sheet RiskSerializationData (hidden)
A1: 0 | B1: 0
A2: 0
A3: 0
A4: FALSE | B4: 14000 | C4: 6709.375 | D4: 40000 | E4: 100
A5: FALSE | B5: 14000 | C5: 6709.375 | D5: 40000 | E5: 500
A6: FALSE | B6: 14000 | C6: 6709.375 | D6: 40000 | E6: 1000
A7: FALSE | B7: 14000 | C7: 6709.375 | D7: 40000 | E7: 1500
A8: FALSE | B8: 14000 | C8: 6709.375 | D8: 40000 | E8: 2000
A9: 0
A10: 0 | B10: FALSE | C10: FALSE | D10: 10 | E10: 0.95 | F10: 1

Sheet NR_to_Cash
A3: Table 2
A4: TOOLKIT NET REVENUE TO CASH ADJUSTMENTS
A5: (in $Thousands)
C6: NR to Cash
C9: FY 2017 | D9: FY 2018 | E9: FY 2019 | G9: Color Key:
G10: SME Input
A11: 1 | B11: Non-cash Adj. | C11: 161809.924 | D11: 146221 | E11: 162210.2206 | G11: Worksheet Formula
A12: 2 | B12: Cash Adj. | C12: -571025.6852 | D12: -360706 | E12: -252195 | G12: @Risk Output
A13: 3 | B13: Other | C13: 1542.790158 | D13: 0 | E13: 0 | G13: Linked to Summary
G14: @Risk Formula
A15: 5 | B15: NORM Slice True Up Lagging out of this year | C15: =_xll.RiskOutput(,B15,1)+(-'Risk Summary'!J42+'Risk Summary'!J46) ->  | D15: =_xll.RiskOutput(,B15,2)+(-'Risk Summary'!K42+'Risk Summary'!K46) ->  | E15: =_xll.RiskOutput(,B15,3)+(-'Risk Summary'!L42+'Risk Summary'!L46) -> 
A16: 6 | B16: NORM Slice True Up Lagging in from previous year | C16: 0 | D16: =-C15 ->  | E16: =-D15 ->  | G16: Risk Adjustments On?
G17: TRUE
A18: 7 | B18: Net Revenue to Cash Adjustment | C18: =_xll.RiskOutput(,$B18&" "&C$9,1)+SUM(C11:C13)+IF(NrtcRiskOn,SUM(C15:C16,0)) ->  | D18: =_xll.RiskOutput(,$B18&" "&D$9,1)+SUM(D11:D13)+IF(NrtcRiskOn,SUM(D15:D16,0)) ->  | E18: =_xll.RiskOutput(,$B18&" "&E$9,1)+SUM(E11:E13)+IF(NrtcRiskOn,SUM(E15:E16,0)) -> 
B20: Interest Credit | C20: -1726.536 | D20: -1483 | E20: -2341
B21: Repayment of Treasury Principal | C21: 160911 | D21: 140454 | E21: 252195
B22: Repayment of Treasury Interest | C22: 169478.238 | D22: 139743 | E22: 145989
B23: Total Treasury Payment | C23: =C22+C21 -> 330389.238 | D23: =D22+D21 -> 280197 | E23: 398184
B25: (in $Thousands) | C25: =C9 -> FY 2017 | D25: =D9 -> FY 2018 | E25: =E9 -> FY 2019
B26: PS NR | C26: ='Src Proforma'!F230 -> 273577.2072 | D26: ='Src Proforma'!G230 -> 198284.0072 | E26: ='Src Proforma'!H230 -> 130135.3327
B29: BOY Reserves for risk | C29: 158656 | D29: =C30 ->  | E29: =D30 -> 
B30: EOY Reserves for risk | C30: =C29+C26+C18 ->  | D30: =D29+D26+D18 ->  | E30: =E29+E26+E18 -> 
A34: A | B34: B | C34: C | D34: D | E34: E
C36: =C9 -> FY 2017 | D36: =D9 -> FY 2018 | E36: =E9 -> FY 2019
A38: 1 | B38: Non-cash Adj. | C38: =C11 -> 161809.924 | D38: =D11 -> 146221 | E38: =E11 -> 162210.2206
A40: 2 | B40: Cash Adj. | C40: =C12 -> -571025.6852 | D40: =D12 -> -360706 | E40: =E12 -> -252195
A42: 3 | B42: Other | C42: =C13 -> 1542.790158 | D42: =D13 -> 0 | E42: =E13 -> 0
A44: 7 | B44: NORM Slice True Up Lagging out of this year | C44: =C15 ->  | D44: =D15 ->  | E44: =E15 -> 
A46: 8 | B46: NORM Slice True Up Lagging in from previous year | C46: =C16 -> 0 | D46: =D16 ->  | E46: =E16 -> 
A48: 9 | B48: Net Revenue to Cash Adjustment | C48: =C18 ->  | D48: =D18 ->  | E48: =E18 -> 

Sheet CGS Refueling
L2: Color Key:
B3: FY17 | C3: FY18 | D3: FY19 | L3: SME Input
A4: Slice Percent | B4: =Slice0 -> 0.266187 | C4: =Slice1 -> 0.265953 | D4: =Slice2 -> 0.265953 | E4: not trued up | G4: Output for Charts | L4: Worksheet Formula
A5: CGS Revenue Delta | B5: =_xll.RiskOutput("CGS Outage Revenue Impact / FY13")+OFFSET(B8,_xll.RiskCurrentIter(),0)*(1-B4) ->  | C5: =_xll.RiskOutput("CGS Outage Revenue Impact / FY14")+OFFSET(C8,_xll.RiskCurrentIter(),0)*(1-C4) ->  | D5: =_xll.RiskOutput("CGS Outage Revenue Impact / FY15")+OFFSET(D8,_xll.RiskCurrentIter(),0)*(1-D4) ->  | E5: ($000) | G5: =_xll.RiskOutput("CGS Outage Revenue Impact / FY14 and FY15")+(C5+D5) ->  | L5: @Risk Output
L6: Linked to Summary
B7: =B3 -> FY17 | C7: =C3 -> FY18 | D7: =D3 -> FY19 | L7: @Risk Formula
A8: MEAN | B8: =AVERAGE(B9:B3208) -> 4732.271062 | C8: =AVERAGE(C9:C3208) -> 0 | D8: =AVERAGE(D9:D3208) -> 137.0449536
A9: 1 | B9: 5770.086252 | C9: 0 | D9: -633.5350333
A10: 2 | B10: 4153.465686 | C10: 0 | D10: 1516.549163
A11: 3 | B11: 2497.333025 | C11: 0 | D11: 2438.561611
A12: 4 | B12: 2261.771804 | C12: 0 | D12: 2373.8905
A13: 5 | B13: 3712.249731 | C13: 0 | D13: 90.06302378
A14: 6 | B14: 7372.760368 | C14: 0 | D14: -465.9127388
A15: 7 | B15: 4767.287817 | C15: 0 | D15: -4143.644682
A16: 8 | B16: 8608.541107 | C16: 0 | D16: -285.092371
A17: 9 | B17: 6335.096661 | C17: 0 | D17: -22.90340712
A18: 10 | B18: 7092.774786 | C18: 0 | D18: 2756.67115
A19: 11 | B19: 3491.823734 | C19: 0 | D19: -7211.414735
A20: 12 | B20: 5184.07313 | C20: 0 | D20: -263.1367543
A21: 13 | B21: 2014.364981 | C21: 0 | D21: -1205.854481
A22: 14 | B22: 5493.079272 | C22: 0 | D22: 4000.994343
A23: 15 | B23: 4179.056025 | C23: 0 | D23: -1765.681491
A24: 16 | B24: 4924.857642 | C24: 0 | D24: 1216.094692
A25: 17 | B25: 154.7167719 | C25: 0 | D25: 181.5969497
A26: 18 | B26: 2300.739737 | C26: 0 | D26: 451.2608495
A27: 19 | B27: 3971.799513 | C27: 0 | D27: -2023.093082
A28: 20 | B28: 4116.707268 | C28: 0 | D28: -1398.477903
A29: 21 | B29: -1043.581484 | C29: 0 | D29: -1148.516283
A30: 22 | B30: 4213.979178 | C30: 0 | D30: -1207.863805
A31: 23 | B31: 5857.676107 | C31: 0 | D31: 223.1797212
A32: 24 | B32: 2504.069496 | C32: 0 | D32: 4066.716859
A33: 25 | B33: 3815.43845 | C33: 0 | D33: 4394.088029
A34: 26 | B34: 6042.127334 | C34: 0 | D34: -448.3882073
A35: 27 | B35: 7170.947872 | C35: 0 | D35: 945.7961902
A36: 28 | B36: 7634.9936 | C36: 0 | D36: 3770.804907
A37: 29 | B37: 6415.714576 | C37: 0 | D37: 3610.611809
A38: 30 | B38: 3195.699919 | C38: 0 | D38: -1437.742229
A39: 31 | B39: 4332.938351 | C39: 0 | D39: 818.569683
A40: 32 | B40: 1845.005634 | C40: 0 | D40: 650.0218109
A41: 33 | B41: 4278.00886 | C41: 0 | D41: 93.61093765
A42: 34 | B42: 3994.956825 | C42: 0 | D42: 380.1969123
A43: 35 | B43: 655.0993581 | C43: 0 | D43: -165.1782789
A44: 36 | B44: 2362.982406 | C44: 0 | D44: 3677.594422
A45: 37 | B45: 4881.101339 | C45: 0 | D45: -2361.660871
A46: 38 | B46: 6894.391562 | C46: 0 | D46: 1411.972729
A47: 39 | B47: 1091.39963 | C47: 0 | D47: 621.0589257
A48: 40 | B48: 8113.991702 | C48: 0 | D48: -1416.405743
A49: 41 | B49: 787.8167435 | C49: 0 | D49: 176.7303399
A50: 42 | B50: 4641.146479 | C50: 0 | D50: 544.7640634
A51: 43 | B51: 6880.148649 | C51: 0 | D51: -2866.348663
A52: 44 | B52: 5463.621316 | C52: 0 | D52: -8068.646809
A53: 45 | B53: 2518.027544 | C53: 0 | D53: -89.80238739
A54: 46 | B54: 7701.099844 | C54: 0 | D54: -9417.721262
A55: 47 | B55: 4212.106911 | C55: 0 | D55: 4.851252678
A56: 48 | B56: 10070.44624 | C56: 0 | D56: 2679.202177
A57: 49 | B57: 1985.613604 | C57: 0 | D57: -188.913953
A58: 50 | B58: 7075.138174 | C58: 0 | D58: -474.2456686
A59: 51 | B59: 6227.473829 | C59: 0 | D59: 47.56530328
A60: 52 | B60: 1106.057009 | C60: 0 | D60: 785.971755
A61: 53 | B61: 1549.31664 | C61: 0 | D61: -74.23735288
A62: 54 | B62: 6782.014681 | C62: 0 | D62: -90.76409633
A63: 55 | B63: 6307.688036 | C63: 0 | D63: -7554.354082
A64: 56 | B64: 7155.617604 | C64: 0 | D64: 2188.849877
A65: 57 | B65: 1029.706974 | C65: 0 | D65: -1125.905169
A66: 58 | B66: 12378.37397 | C66: 0 | D66: -1297.257461
A67: 59 | B67: 2422.861129 | C67: 0 | D67: -5396.509046
A68: 60 | B68: 2954.430006 | C68: 0 | D68: 3087.167891
A69: 61 | B69: 6183.737451 | C69: 0 | D69: 2788.437545
A70: 62 | B70: 6464.30666 | C70: 0 | D70: 2648.860939
A71: 63 | B71: 2562.3643 | C71: 0 | D71: 103.699027
A72: 64 | B72: 4168.339731 | C72: 0 | D72: -2732.908385
A73: 65 | B73: 2051.174293 | C73: 0 | D73: 242.9128713
A74: 66 | B74: 7449.145796 | C74: 0 | D74: -6021.688697
A75: 67 | B75: 6952.494871 | C75: 0 | D75: 1811.988308
A76: 68 | B76: 4414.733276 | C76: 0 | D76: 1931.023057
A77: 69 | B77: 3527.297744 | C77: 0 | D77: 1320.625422
A78: 70 | B78: 2154.491689 | C78: 0 | D78: -1311.826546
A79: 71 | B79: 4537.531041 | C79: 0 | D79: 3397.739883
A80: 72 | B80: 5714.714502 | C80: 0 | D80: 4486.508467
A81: 73 | B81: 7910.723865 | C81: 0 | D81: 1491.839754
A82: 74 | B82: 9396.45377 | C82: 0 | D82: -866.9532378
A83: 75 | B83: 2717.400427 | C83: 0 | D83: 6510.075264
A84: 76 | B84: 2562.715757 | C84: 0 | D84: -6473.012641
A85: 77 | B85: 5435.06819 | C85: 0 | D85: 2461.123359
A86: 78 | B86: 7289.593518 | C86: 0 | D86: -1393.420775
A87: 79 | B87: 7508.180933 | C87: 0 | D87: -211.9380237
A88: 80 | B88: -242.4733451 | C88: 0 | D88: -4769.49572
A89: 81 | B89: 4900.38306 | C89: 0 | D89: 250.2278556
A90: 82 | B90: 2454.471111 | C90: 0 | D90: -2644.010991
A91: 83 | B91: 8653.230263 | C91: 0 | D91: 4359.45957
A92: 84 | B92: 6525.336541 | C92: 0 | D92: 519.180728
A93: 85 | B93: 5748.124956 | C93: 0 | D93: -10.39600314
A94: 86 | B94: 4891.952518 | C94: 0 | D94: -8935.897161
A95: 87 | B95: 3538.645069 | C95: 0 | D95: 286.1617126
A96: 88 | B96: -260.6960253 | C96: 0 | D96: -605.5099558
A97: 89 | B97: 4670.369854 | C97: 0 | D97: 2747.644201
A98: 90 | B98: 7276.004964 | C98: 0 | D98: 1391.99236
A99: 91 | B99: 3691.994863 | C99: 0 | D99: 210.115187
A100: 92 | B100: 4986.659167 | C100: 0 | D100: 6596.273743
A101: 93 | B101: 7740.758163 | C101: 0 | D101: 489.174237
A102: 94 | B102: 5920.88927 | C102: 0 | D102: -646.5870714
A103: 95 | B103: 2957.834683 | C103: 0 | D103: -21.9506419
A104: 96 | B104: 7827.378798 | C104: 0 | D104: 2436.791529
A105: 97 | B105: 5441.230624 | C105: 0 | D105: -1436.552557
A106: 98 | B106: 1777.289889 | C106: 0 | D106: -4123.170209
A107: 99 | B107: 5698.02179 | C107: 0 | D107: 2079.654213
A108: 100 | B108: 7098.911964 | C108: 0 | D108: -3968.130486
A109: 101 | B109: 698.2674886 | C109: 0 | D109: -6.880269304
A110: 102 | B110: 1480.331491 | C110: 0 | D110: -53.03006135
A111: 103 | B111: 3430.708935 | C111: 0 | D111: 552.9974556
A112: 104 | B112: 7120.809579 | C112: 0 | D112: 34.84489564
A113: 105 | B113: 1132.556112 | C113: 0 | D113: -4089.127231
A114: 106 | B114: 5262.407025 | C114: 0 | D114: 1264.299929
A115: 107 | B115: 5425.103116 | C115: 0 | D115: 5470.881542
A116: 108 | B116: 6399.141664 | C116: 0 | D116: 113.8964121
A117: 109 | B117: 3575.10195 | C117: 0 | D117: -2635.489057
A118: 110 | B118: 4132.141536 | C118: 0 | D118: 5293.178002
A119: 111 | B119: 4846.071858 | C119: 0 | D119: 1078.304432
A120: 112 | B120: 9173.544789 | C120: 0 | D120: -3053.75807
A121: 113 | B121: 6220.38365 | C121: 0 | D121: -6623.534202
A122: 114 | B122: 4531.916731 | C122: 0 | D122: -1022.694475
A123: 115 | B123: 1547.223734 | C123: 0 | D123: -958.6887816
A124: 116 | B124: 3721.176125 | C124: 0 | D124: 47.62431018
A125: 117 | B125: 2497.579432 | C125: 0 | D125: 738.5245423
A126: 118 | B126: 5619.479564 | C126: 0 | D126: -360.5021761
A127: 119 | B127: 7880.681707 | C127: 0 | D127: -10.09454698
A128: 120 | B128: 4441.020168 | C128: 0 | D128: -1204.161584
A129: 121 | B129: 6143.419818 | C129: 0 | D129: 1603.330937
A130: 122 | B130: 4762.30655 | C130: 0 | D130: 1504.202289
A131: 123 | B131: 4094.220026 | C131: 0 | D131: -193.4934346
A132: 124 | B132: 6923.66913 | C132: 0 | D132: 216.0453998
A133: 125 | B133: 5274.89721 | C133: 0 | D133: -2311.442557
A134: 126 | B134: 7402.86887 | C134: 0 | D134: -10120.83347
A135: 127 | B135: 9245.348431 | C135: 0 | D135: -9915.644903
A136: 128 | B136: 5865.297846 | C136: 0 | D136: -854.2928598
A137: 129 | B137: 6532.940619 | C137: 0 | D137: -571.9130353
A138: 130 | B138: 3069.637687 | C138: 0 | D138: -127.7661506
A139: 131 | B139: 4569.168698 | C139: 0 | D139: 151.5858339
A140: 132 | B140: 2602.953373 | C140: 0 | D140: -602.6409749
A141: 133 | B141: 2255.970119 | C141: 0 | D141: 1416.794212
A142: 134 | B142: 6693.234821 | C142: 0 | D142: 707.3742339
A143: 135 | B143: 4715.258791 | C143: 0 | D143: 1198.271808
A144: 136 | B144: 4166.569246 | C144: 0 | D144: 1249.370201
A145: 137 | B145: 4862.531897 | C145: 0 | D145: 667.1400809
A146: 138 | B146: -420.287122 | C146: 0 | D146: -476.2598643
A147: 139 | B147: 7167.391502 | C147: 0 | D147: 75.06718892
A148: 140 | B148: 7655.689432 | C148: 0 | D148: -1548.524988
A149: 141 | B149: 946.9753869 | C149: 0 | D149: -7136.048568
A150: 142 | B150: 5958.654454 | C150: 0 | D150: 1285.192268
A151: 143 | B151: 7257.116953 | C151: 0 | D151: -2549.808727
A152: 144 | B152: 3222.190789 | C152: 0 | D152: -2004.586561
A153: 145 | B153: 3176.341779 | C153: 0 | D153: -881.4690379
A154: 146 | B154: 4387.612603 | C154: 0 | D154: -1548.085391
A155: 147 | B155: 5612.947262 | C155: 0 | D155: 662.5772788
A156: 148 | B156: 6724.339131 | C156: 0 | D156: 4319.6354
A157: 149 | B157: 6699.269953 | C157: 0 | D157: 3395.231045
A158: 150 | B158: -623.8837514 | C158: 0 | D158: 2759.521049
A159: 151 | B159: 3810.910105 | C159: 0 | D159: 457.8745993
A160: 152 | B160: 4174.175009 | C160: 0 | D160: -78.25229321
A161: 153 | B161: 3091.382796 | C161: 0 | D161: 537.6141074
A162: 154 | B162: 4729.275295 | C162: 0 | D162: 393.5326132
A163: 155 | B163: 4039.809562 | C163: 0 | D163: 1895.174537
A164: 156 | B164: 2100.012359 | C164: 0 | D164: -6518.810748
A165: 157 | B165: 6960.315755 | C165: 0 | D165: 3462.485212
A166: 158 | B166: 6807.526097 | C166: 0 | D166: 361.1313952
A167: 159 | B167: 6228.96671 | C167: 0 | D167: 4402.267564
A168: 160 | B168: 1063.378404 | C168: 0 | D168: -1787.11203
A169: 161 | B169: 4202.220532 | C169: 0 | D169: -534.1792784
A170: 162 | B170: 5745.96665 | C170: 0 | D170: 2676.335352
A171: 163 | B171: 3375.301618 | C171: 0 | D171: 36.87958895
A172: 164 | B172: 6190.127762 | C172: 0 | D172: -342.6007115
A173: 165 | B173: 4346.448846 | C173: 0 | D173: -373.3089381
A174: 166 | B174: 4676.407916 | C174: 0 | D174: -1571.032047
A175: 167 | B175: 5596.236311 | C175: 0 | D175: 108.6814198
A176: 168 | B176: 785.9326729 | C176: 0 | D176: 2417.728641
A177: 169 | B177: 7837.077784 | C177: 0 | D177: -4901.869947
A178: 170 | B178: 4059.814849 | C178: 0 | D178: 61.58340861
A179: 171 | B179: 1914.642104 | C179: 0 | D179: -8280.985979
A180: 172 | B180: 3219.538276 | C180: 0 | D180: -1687.061096
A181: 173 | B181: 4891.231861 | C181: 0 | D181: -274.1350633
A182: 174 | B182: 3114.139196 | C182: 0 | D182: -271.5495295
A183: 175 | B183: 3425.604107 | C183: 0 | D183: 5321.322691
A184: 176 | B184: 6775.154111 | C184: 0 | D184: 280.0289685
A185: 177 | B185: 4464.935693 | C185: 0 | D185: -433.2671736
A186: 178 | B186: 3788.409996 | C186: 0 | D186: 549.434533
A187: 179 | B187: 3786.638164 | C187: 0 | D187: 721.3250154
A188: 180 | B188: 2573.982035 | C188: 0 | D188: -7202.698478
A189: 181 | B189: 4764.436181 | C189: 0 | D189: 2153.398993
A190: 182 | B190: 738.769607 | C190: 0 | D190: 87.99603121
A191: 183 | B191: -258.9036935 | C191: 0 | D191: -124.8383511
A192: 184 | B192: -1176.116996 | C192: 0 | D192: 23.78000835
A193: 185 | B193: 3912.563733 | C193: 0 | D193: 2427.783958
A194: 186 | B194: 7297.881825 | C194: 0 | D194: 3085.343734
A195: 187 | B195: 5645.783269 | C195: 0 | D195: -1176.918762
A196: 188 | B196: 5227.975807 | C196: 0 | D196: 1052.408182
A197: 189 | B197: 2301.691765 | C197: 0 | D197: -808.9734365
A198: 190 | B198: 4328.072036 | C198: 0 | D198: 2898.60449
A199: 191 | B199: 3754.340157 | C199: 0 | D199: -105.6880815
A200: 192 | B200: -883.4609804 | C200: 0 | D200: 2898.853402
A201: 193 | B201: 5625.002337 | C201: 0 | D201: 2943.168137
... 3007 more rows

Sheet RiskRGCGSR26C11 (hidden)
A33: Del X | B33: Del Y | E33: X1 | F33: Y1
A34: 291056.5338 | B34: 0.09 | E34: 288867.2056 | F34: 0.03
A35: 308900.8965 | B35: 0.09 | E35: 290113.3756 | F35: 0.03
A36: 288028.2669 | B36: 0.09 | E36: 291359.5457 | F36: 0.04
A37: 299978.7151 | B37: 0.09 | E37: 292605.7157 | F37: 0.07
A38: 311950.4482 | B38: 0.09 | E38: 293851.8857 | F38: 0.05
E39: 295098.0558 | F39: 0.08
E40: 296344.2258 | F40: 0.08
E41: 297590.3959 | F41: 0.08
E42: 298836.5659 | F42: 0.08
E43: 300082.7359 | F43: 0.07
E44: 301328.906 | F44: 0.08
E45: 302575.076 | F45: 0.07
E46: 303821.2461 | F46: 0.06
E47: 305067.4161 | F47: 0.04
E48: 306313.5861 | F48: 0.05
E49: 307559.7562 | F49: 0.03
E50: 308805.9262 | F50: 0.02
E51: 310052.0963 | F51: 0.02
E52: 311298.2663 | F52: 0.01
E53: 312544.4363 | F53: 0.01
E54: 313790.6064 | F54: 0
B2501: XFill1 | C2501: ="CGS Total O&M / FY14" -> CGS Total O&M / FY14 | D2501: XLine1 | E2501: ="CGS Total O&M / FY14" -> CGS Total O&M / FY14
B2502: 288867.2056 | C2502: =0 -> 0 | D2502: 288867.2056 | E2502: 0
B2503: 288867.2056 | C2503: =$F$34 -> 0.03 | D2503: 288867.2056 | E2503: 0
B2504: 288966.8992 | C2504: 0.03 | D2504: 288867.2056 | E2504: =$F$34 -> 0.03
B2505: 289066.5928 | C2505: 0.03 | D2505: 290113.3756 | E2505: =$F$34 -> 0.03
B2506: 289166.2864 | C2506: 0.03 | D2506: 290113.3756 | E2506: 0
B2507: 289265.98 | C2507: 0.03 | D2507: 290113.3756 | E2507: =$F$35 -> 0.03
B2508: 289365.6736 | C2508: 0.03 | D2508: 291359.5457 | E2508: =$F$35 -> 0.03
B2509: 289465.3672 | C2509: 0.03 | D2509: 291359.5457 | E2509: 0
B2510: 289565.0608 | C2510: 0.03 | D2510: 291359.5457 | E2510: =$F$36 -> 0.04
B2511: 289664.7544 | C2511: 0.03 | D2511: 292605.7157 | E2511: =$F$36 -> 0.04
B2512: 289764.448 | C2512: 0.03 | D2512: 292605.7157 | E2512: 0
B2513: 289864.1416 | C2513: 0.03 | D2513: 292605.7157 | E2513: =$F$37 -> 0.07
B2514: 289963.8352 | C2514: 0.03 | D2514: 293851.8857 | E2514: =$F$37 -> 0.07
B2515: 290063.5288 | C2515: 0.03 | D2515: 293851.8857 | E2515: 0
B2516: 290113.3756 | C2516: 0.03 | D2516: 293851.8857 | E2516: =$F$38 -> 0.05
B2517: 290113.3756 | C2517: 0 | D2517: 295098.0558 | E2517: =$F$38 -> 0.05
B2518: 290113.3756 | C2518: =0 -> 0 | D2518: 295098.0558 | E2518: 0
B2519: 290113.3756 | C2519: =$F$35 -> 0.03 | D2519: 295098.0558 | E2519: =$F$39 -> 0.08
B2520: 290213.0692 | C2520: 0.03 | D2520: 296344.2258 | E2520: =$F$39 -> 0.08
B2521: 290312.7628 | C2521: 0.03 | D2521: 296344.2258 | E2521: 0
B2522: 290412.4564 | C2522: 0.03 | D2522: 296344.2258 | E2522: =$F$40 -> 0.08
B2523: 290512.15 | C2523: 0.03 | D2523: 297590.3959 | E2523: =$F$40 -> 0.08
B2524: 290611.8436 | C2524: 0.03 | D2524: 297590.3959 | E2524: 0
B2525: 290711.5372 | C2525: 0.03 | D2525: 297590.3959 | E2525: =$F$41 -> 0.08
B2526: 290811.2308 | C2526: 0.03 | D2526: 298836.5659 | E2526: =$F$41 -> 0.08
B2527: 290910.9244 | C2527: 0.03 | D2527: 298836.5659 | E2527: 0
B2528: 291010.618 | C2528: 0.03 | D2528: 298836.5659 | E2528: =$F$42 -> 0.08
B2529: 291110.3117 | C2529: 0.03 | D2529: 300082.7359 | E2529: =$F$42 -> 0.08
B2530: 291210.0053 | C2530: 0.03 | D2530: 300082.7359 | E2530: 0
B2531: 291309.6989 | C2531: 0.03 | D2531: 300082.7359 | E2531: =$F$43 -> 0.07
B2532: 291359.5457 | C2532: 0.03 | D2532: 301328.906 | E2532: =$F$43 -> 0.07
B2533: 291359.5457 | C2533: 0 | D2533: 301328.906 | E2533: 0
B2534: 291359.5457 | C2534: =0 -> 0 | D2534: 301328.906 | E2534: =$F$44 -> 0.08
B2535: 291359.5457 | C2535: =$F$36 -> 0.04 | D2535: 302575.076 | E2535: =$F$44 -> 0.08
B2536: 291459.2393 | C2536: 0.04 | D2536: 302575.076 | E2536: 0
B2537: 291558.9329 | C2537: 0.04 | D2537: 302575.076 | E2537: =$F$45 -> 0.07
B2538: 291658.6265 | C2538: 0.04 | D2538: 303821.2461 | E2538: =$F$45 -> 0.07
B2539: 291758.3201 | C2539: 0.04 | D2539: 303821.2461 | E2539: 0
B2540: 291858.0137 | C2540: 0.04 | D2540: 303821.2461 | E2540: =$F$46 -> 0.06
B2541: 291957.7073 | C2541: 0.04 | D2541: 305067.4161 | E2541: =$F$46 -> 0.06
B2542: 292057.4009 | C2542: 0.04 | D2542: 305067.4161 | E2542: 0
B2543: 292157.0945 | C2543: 0.04 | D2543: 305067.4161 | E2543: =$F$47 -> 0.04
B2544: 292256.7881 | C2544: 0.04 | D2544: 306313.5861 | E2544: =$F$47 -> 0.04
B2545: 292356.4817 | C2545: 0.04 | D2545: 306313.5861 | E2545: 0
B2546: 292456.1753 | C2546: 0.04 | D2546: 306313.5861 | E2546: =$F$48 -> 0.05
B2547: 292555.8689 | C2547: 0.04 | D2547: 307559.7562 | E2547: =$F$48 -> 0.05
B2548: 292605.7157 | C2548: 0.04 | D2548: 307559.7562 | E2548: 0
B2549: 292605.7157 | C2549: 0 | D2549: 307559.7562 | E2549: =$F$49 -> 0.03
B2550: 292605.7157 | C2550: =0 -> 0 | D2550: 308805.9262 | E2550: =$F$49 -> 0.03
B2551: 292605.7157 | C2551: =$F$37 -> 0.07 | D2551: 308805.9262 | E2551: 0
B2552: 292705.4093 | C2552: 0.07 | D2552: 308805.9262 | E2552: =$F$50 -> 0.02
B2553: 292805.1029 | C2553: 0.07 | D2553: 310052.0963 | E2553: =$F$50 -> 0.02
B2554: 292904.7965 | C2554: 0.07 | D2554: 310052.0963 | E2554: 0
B2555: 293004.4901 | C2555: 0.07 | D2555: 310052.0963 | E2555: =$F$51 -> 0.02
B2556: 293104.1837 | C2556: 0.07 | D2556: 311298.2663 | E2556: =$F$51 -> 0.02
B2557: 293203.8773 | C2557: 0.07 | D2557: 311298.2663 | E2557: 0
B2558: 293303.5709 | C2558: 0.07 | D2558: 311298.2663 | E2558: =$F$52 -> 0.01
B2559: 293403.2645 | C2559: 0.07 | D2559: 312544.4363 | E2559: =$F$52 -> 0.01
B2560: 293502.9581 | C2560: 0.07 | D2560: 312544.4363 | E2560: 0
B2561: 293602.6517 | C2561: 0.07 | D2561: 312544.4363 | E2561: =$F$53 -> 0.01
B2562: 293702.3453 | C2562: 0.07 | D2562: 313790.6064 | E2562: =$F$53 -> 0.01
B2563: 293802.0389 | C2563: 0.07 | D2563: 313790.6064 | E2563: 0
B2564: 293851.8857 | C2564: 0.07 | D2564: 313790.6064 | E2564: =$F$54 -> 0
B2565: 293851.8857 | C2565: 0 | E2565: =$F$54 -> 0
B2566: 293851.8857 | C2566: =0 -> 0 | E2566: 0
B2567: 293851.8857 | C2567: =$F$38 -> 0.05
B2568: 293951.5793 | C2568: 0.05
B2569: 294051.2729 | C2569: 0.05
B2570: 294150.9665 | C2570: 0.05
B2571: 294250.6602 | C2571: 0.05
B2572: 294350.3538 | C2572: 0.05
B2573: 294450.0474 | C2573: 0.05
B2574: 294549.741 | C2574: 0.05
B2575: 294649.4346 | C2575: 0.05
B2576: 294749.1282 | C2576: 0.05
B2577: 294848.8218 | C2577: 0.05
B2578: 294948.5154 | C2578: 0.05
B2579: 295048.209 | C2579: 0.05
B2580: 295098.0558 | C2580: 0.05
B2581: 295098.0558 | C2581: 0
B2582: 295098.0558 | C2582: =0 -> 0
B2583: 295098.0558 | C2583: =$F$39 -> 0.08
B2584: 295197.7494 | C2584: 0.08
B2585: 295297.443 | C2585: 0.08
B2586: 295397.1366 | C2586: 0.08
B2587: 295496.8302 | C2587: 0.08
B2588: 295596.5238 | C2588: 0.08
B2589: 295696.2174 | C2589: 0.08
B2590: 295795.911 | C2590: 0.08
B2591: 295895.6046 | C2591: 0.08
B2592: 295995.2982 | C2592: 0.08
B2593: 296094.9918 | C2593: 0.08
B2594: 296194.6854 | C2594: 0.08
B2595: 296294.379 | C2595: 0.08
B2596: 296344.2258 | C2596: 0.08
B2597: 296344.2258 | C2597: 0
B2598: 296344.2258 | C2598: =0 -> 0
B2599: 296344.2258 | C2599: =$F$40 -> 0.08
B2600: 296443.9194 | C2600: 0.08
B2601: 296543.613 | C2601: 0.08
B2602: 296643.3066 | C2602: 0.08
B2603: 296743.0002 | C2603: 0.08
B2604: 296842.6938 | C2604: 0.08
B2605: 296942.3874 | C2605: 0.08
B2606: 297042.081 | C2606: 0.08
B2607: 297141.7746 | C2607: 0.08
B2608: 297241.4682 | C2608: 0.08
B2609: 297341.1619 | C2609: 0.08
B2610: 297440.8555 | C2610: 0.08
B2611: 297540.5491 | C2611: 0.08
B2612: 297590.3959 | C2612: 0.08
B2613: 297590.3959 | C2613: 0
B2614: 297590.3959 | C2614: =0 -> 0
B2615: 297590.3959 | C2615: =$F$41 -> 0.08
B2616: 297690.0895 | C2616: 0.08
B2617: 297789.7831 | C2617: 0.08
B2618: 297889.4767 | C2618: 0.08
B2619: 297989.1703 | C2619: 0.08
B2620: 298088.8639 | C2620: 0.08
B2621: 298188.5575 | C2621: 0.08
B2622: 298288.2511 | C2622: 0.08
B2623: 298387.9447 | C2623: 0.08
B2624: 298487.6383 | C2624: 0.08
B2625: 298587.3319 | C2625: 0.08
B2626: 298687.0255 | C2626: 0.08
B2627: 298786.7191 | C2627: 0.08
B2628: 298836.5659 | C2628: 0.08
B2629: 298836.5659 | C2629: 0
B2630: 298836.5659 | C2630: =0 -> 0
B2631: 298836.5659 | C2631: =$F$42 -> 0.08
B2632: 298936.2595 | C2632: 0.08
B2633: 299035.9531 | C2633: 0.08
B2634: 299135.6467 | C2634: 0.08
B2635: 299235.3403 | C2635: 0.08
B2636: 299335.0339 | C2636: 0.08
B2637: 299434.7275 | C2637: 0.08
B2638: 299534.4211 | C2638: 0.08
B2639: 299634.1147 | C2639: 0.08
B2640: 299733.8083 | C2640: 0.08
B2641: 299833.5019 | C2641: 0.08
B2642: 299933.1955 | C2642: 0.08
B2643: 300032.8891 | C2643: 0.08
B2644: 300082.7359 | C2644: 0.08
B2645: 300082.7359 | C2645: 0
B2646: 300082.7359 | C2646: =0 -> 0
B2647: 300082.7359 | C2647: =$F$43 -> 0.07
B2648: 300182.4295 | C2648: 0.07
B2649: 300282.1231 | C2649: 0.07
B2650: 300381.8167 | C2650: 0.07
B2651: 300481.5104 | C2651: 0.07
B2652: 300581.204 | C2652: 0.07
B2653: 300680.8976 | C2653: 0.07
B2654: 300780.5912 | C2654: 0.07
B2655: 300880.2848 | C2655: 0.07
B2656: 300979.9784 | C2656: 0.07
B2657: 301079.672 | C2657: 0.07
B2658: 301179.3656 | C2658: 0.07
B2659: 301279.0592 | C2659: 0.07
B2660: 301328.906 | C2660: 0.07
B2661: 301328.906 | C2661: 0
B2662: 301328.906 | C2662: =0 -> 0
B2663: 301328.906 | C2663: =$F$44 -> 0.08
B2664: 301428.5996 | C2664: 0.08
B2665: 301528.2932 | C2665: 0.08
B2666: 301627.9868 | C2666: 0.08
B2667: 301727.6804 | C2667: 0.08
B2668: 301827.374 | C2668: 0.08
B2669: 301927.0676 | C2669: 0.08
B2670: 302026.7612 | C2670: 0.08
B2671: 302126.4548 | C2671: 0.08
B2672: 302226.1484 | C2672: 0.08
B2673: 302325.842 | C2673: 0.08
B2674: 302425.5356 | C2674: 0.08
B2675: 302525.2292 | C2675: 0.08
B2676: 302575.076 | C2676: 0.08
B2677: 302575.076 | C2677: 0
B2678: 302575.076 | C2678: =0 -> 0
... 143 more rows

Sheet Undistributed Reduction
A5: Undistributed Reduction | D5: $000 | G5: Color Key:
B6: Rates Values | G6: SME Input
B7: FY 17 | C7: FY 18 | D7: FY 19 | G7: Worksheet Formula
A8: Undistributed Reduction in Net Revenue Forecast | B8: 0 | C8: 10000 | D8: 10000 | G8: @Risk Output
A9: Amount to be distributed | B9: 0 | C9: 0 | D9: 0 | G9: Linked to Summary
A10: Remaining Undistributed Amount | B10: =B8-B9 -> 0 | C10: =C8-C9 -> 10000 | D10: =D8-D9 -> 10000 | G10: @Risk Formula
A12: Base Expense Delta | B12: ='Risk Summary'!J43 ->  | C12: ='Risk Summary'!K43 ->  | D12: ='Risk Summary'!L43 -> 
A13: Undist Reduction Covered by expense Delta | B13: =MAX(MIN(-B12,B10),0) ->  | C13: =MAX(MIN(-C12,C10),0) ->  | D13: =MAX(MIN(-D12,D10),0) -> 
A14: Amount not covered | B14: =B10-B13 ->  | C14: =C10-C13 ->  | D14: =D10-D13 -> 
A16: Active Management Mitigation | B16: =_xll.RiskPert(B17,B18,B19) ->  | C16: =_xll.RiskPert(C17,C18,C19) ->  | D16: =_xll.RiskPert(D17,D18,D19) -> 
A17: Min | B17: 0.25 | C17: 0.25 | D17: 0.25
A18: M. Likely | B18: 0.75 | C18: 0.75 | D18: 0.75
A19: Max | B19: 1 | C19: 1 | D19: 1
A21: Amount not realized | B21: =B14*(1-B16) ->  | C21: =C14*(1-C16) ->  | D21: =D14*(1-D16) -> 
A22: Covered Amount | B22: =B13 ->  | C22: =C13 ->  | D22: =D13 -> 
A23: Expense Adjustment due to Undistributed Reduction | B23: =SUM(B21:B22) ->  | C23: =SUM(C21:C22) ->  | D23: =SUM(D21:D22) -> 

Sheet CGS
B2: ($000) | D2: Rates Values | J2: @Risk | O2: Color Key:
D3: FY 17 | E3: FY 18 | F3: FY 19 | J3: FY 17 | K3: FY 18 | L3: FY 19 | M3: =K3&" and "&L3 -> FY 18 and FY 19 | O3: SME Input
A4: CGS | B4: Total O&M | D4: ='Risk Summary'!C8 -> 318513.718 | E4: ='Risk Summary'!E8 -> 270146 | F4: ='Risk Summary'!G8 -> 327354 | I4: CGS Total O&M | J4: =J5+J14 ->  | K4: =_xll.RiskOutput("CGS Total O&M / FY14")+(K5+K14) ->  | L4: =_xll.RiskOutput("CGS Total O&M / FY15")+(L5+L14) ->  | M4: =_xll.RiskOutput("CGS Total O&M / FY14 and FY 15")+(K4+L4) ->  | O4: Worksheet Formula
H5: Pert | I5: CGS Base O&M | J5: =_xll.RiskPert(J7,J9,J11) ->  | K5: =_xll.RiskPert(K7,K9,K11) ->  | L5: =_xll.RiskPert(L7,L9,L11) ->  | O5: @Risk Output
I6: Min percent of forecast | J6: =AVERAGE(97.5%,100%) -> 0.9875 | K6: 0.96 | L6: 0.96 | O6: Linked to Summary
I7: Min | J7: =(D$4-D$15)*(J6) -> 311407.3237 | K7: =(E$4-E$15)*(K6) -> 256211.0733 | L7: =(F$4-F$15)*(L6) -> 311036.8807 | O7: @Risk Formula
I8: Expected percent of forecast | J8: 1 | K8: 1 | L8: 1
I9: Expected | J9: =(D$4-D$15)*(J8) -> 315349.1886 | K9: =(E$4-E$15)*(K8) -> 266886.5347 | L9: =(F$4-F$15)*(L8) -> 323996.7507
I10: Max Percent of forecast | J10: =AVERAGE(102.5%,100%) -> 1.0125 | K10: 1.06 | L10: 1.06
I11: Max | J11: =(D$4-D$15)*(J10) -> 319291.0534 | K11: =(E$4-E$15)*(K10) -> 282899.7268 | L11: =(F$4-F$15)*(L10) -> 343436.5558
D14: NEIL Premium | E14: NEIL Premium | F14: NEIL Premium | I14: NEIL Premium | J14: =_xll.RiskPert(J15,J16,J17) ->  | K14: =_xll.RiskPert(K15,K16,K17) ->  | L14: =_xll.RiskPert(L15,L16,L17) -> 
D15: 3164.529445 | E15: =D15*1.03 -> 3259.465328 | F15: =E15*1.03 -> 3357.249288 | H15: Pert | I15: Low | J15: =J16*0.975+D19*0.5 -> 2753.951959 | K15: =K16*0.95+E19 -> 2760.832062 | L15: =L16*0.95+F19 -> 2853.726824
D16: EV Credit | E16: EV Credit | F16: EV Credit | I16: Base | J16: =D15+D17 -> 2996.699445 | K16: =E15+E17 -> 3259.465328 | L16: =F15+F17 -> 3357.249288
D17: -167.83 | E17: 0 | F17: 0 | I17: High | J17: =J16*1.025 -> 3071.616931 | K17: =K16*1.05 -> 3422.438595 | L17: =L16*1.05 -> 3525.111753
D18: Good case Credit | E18: Good case Credit | F18: Good case Credit
D19: -335.66 | E19: =D19 -> -335.66 | F19: =E19 -> -335.66

Sheet Corps & Bureau O&M
C2: FY17 | D2: FY17 | E2: FY18 | F2: FY18 | G2: FY19 | H2: FY19
C3: Input | D3: @risk | E3: Input | F3: @risk | G3: Input | H3: @risk
F4: CORPOM-1 | H4: CORPOM-2 | L4: =D2 -> FY17 | M4: =F2 -> FY18 | N4: =H2 -> FY19
A5: CORPS O&M | C5: ='Risk Summary'!C10 -> 243981 | D5: =D39+(D42+D47)+D53+D58+D64 ->  | E5: ='Risk Summary'!E10 -> 256057 | F5: =F39+(F42+F47)+F53+F58+F64 ->  | G5: ='Risk Summary'!G10 -> 256057 | H5: =H39+(H42+H47)+H53+H58+H64 ->  | J5: COE and Reclamination O&M | L5: =_xll.RiskOutput("COE and Reclamation O&M / "&L4)+(D5+D22) ->  | M5: =_xll.RiskOutput("COE and Reclamation O&M / "&M4)+(F5+F22) ->  | N5: =_xll.RiskOutput("COE and Reclamation O&M / "&N4)+(H5+H22) ->  | O5: =_xll.RiskOutput("COE and Reclamation / FY14 and FY15")+(M5+N5) -> 
A6: Fish Passage | L6: =_xll.RiskMean(L5) -> 
A7: = Base O&M | B7: Deterministic | D7: =D39 -> 243981 | F7: =F39 -> 256057 | H7: =H39 -> 256057
A9: + Added Security costs if event occurs | B9: RiskDiscrete | D9: =D42 ->  | F9: =F42 ->  | H9: =H42 ->  | J9: Color Key:
J10: SME Input
A11: + Added Fish Environmental Compliance costs if event occurs | B11: RiskDiscrete | D11: =D47 ->  | F11: =F47 ->  | H11: =H47 ->  | J11: Worksheet Formula
J12: @Risk Output
A13: - Non-Routine Extraordinary Maintenance Costs Reduction | B13: RiskDiscrete | D13: =D53 ->  | F13: =F53 ->  | H13: =H53 ->  | J13: Linked to Summary
A15: + Catastrophic Event Cost | B15: RiskDiscrete | D15: =D58 ->  | F15: =F58 ->  | H15: =H58 -> 
A17: + Additional System Needs Costs | B17: RiskDiscrete | D17: =D64 ->  | F17: =F64 ->  | H17: =H64 -> 
B19: QC Check of totals | D19: =SUM(D7:D17) ->  | F19: =SUM(F7:F17) ->  | H19: =SUM(H7:H17) -> 
D21: BUROM-1 | F21: BUROM-1 | H21: BUROM-2
A22: BUREAU O&M | C22: ='Risk Summary'!C9 -> 157621 | D22: =D69+(D72+D75)+D81+D92 ->  | E22: ='Risk Summary'!E9 -> 164609 | F22: =F69+(F72+F75)+F81+F92 ->  | G22: ='Risk Summary'!G9 -> 162623 | H22: =H69+(H72+H75)+H81+H92 -> 
A24: = Base O&M | B24: RiskPert | D24: =D69 -> 157621 | F24: =F69 -> 164609 | H24: =H69 -> 162623
A26: + Added Security costs if event occurs | B26: RiskDiscrete | D26: =D72 ->  | F26: =F72 ->  | H26: =H72 -> 
A28: + Added Fish Environmental Compliance costs if event occurs | B28: RiskDiscrete | D28: =D75 ->  | F28: =F75 ->  | H28: =H75 -> 
A30: - Non-Routine Extraordinary Maintenance Costs Reduction | B30: RiskDiscrete | D30: =D81 ->  | F30: =F81 ->  | H30: =H81 -> 
A32: + Catastrophic Event Cost | B32: RiskDiscrete | D32: =D86 ->  | F32: =F86 ->  | H32: =H86 -> 
A34: + Additional System Needs Costs | B34: RiskDiscrete | D34: =D92 ->  | F34: =F92 ->  | H34: =H92 -> 
B36: QC Check of totals | D36: =SUM(D24:D34) ->  | F36: =SUM(F24:F34) ->  | H36: =SUM(H24:H34) -> 
A38: Corps of Engineers
A39: Base O&M | B39: Deterministic | D39: =C5 -> 243981 | F39: =E5 -> 256057 | H39: =G5 -> 256057
A41: Security | D41: CORPO&MSEC-1 | F41: CORPO&MSEC-1 | H41: CORPO&MSEC-2
D42: =_xll.RiskDiscrete(D43:E43,D44:E44) ->  | F42: =_xll.RiskDiscrete(F43:G43,F44:G44) ->  | H42: =_xll.RiskDiscrete(H43:I43,H44:I44) -> 
B43: Cost of an Event | D43: 3000 | E43: 0 | F43: 3000 | G43: 0 | H43: 3000 | I43: 0
B44: Probability of an event | D44: =2%/2 -> 0.01 | E44: =1-D44 -> 0.99 | F44: 0.02 | G44: =1-F44 -> 0.98 | H44: 0.02 | I44: =1-H44 -> 0.98
A46: Fish - Environmental Compliance | D46: CORPO&Mecomp-1 | F46: CORPO&Mecomp-1 | H46: CORPO&Mecomp-2
D47: =_xll.RiskDiscrete(D48:E48,D49:E49) ->  | F47: =_xll.RiskDiscrete(F48:G48,F49:G49) ->  | H47: =_xll.RiskDiscrete(H48:I48,H49:I49) -> 
B48: Cost of an Event | D48: 2000 | E48: 0 | F48: 2000 | G48: 0 | H48: 2000 | I48: 0
B49: Probability of an event | D49: =2%/2 -> 0.01 | E49: =1-D49 -> 0.99 | F49: 0.02 | G49: =1-F49 -> 0.98 | H49: 0.02 | I49: =1-H49 -> 0.98
A51: Non-Routine Extraordinary Maintenance
D52: CORPO&MNREMsav-1 | F52: CORPO&MNREMsav-1 | H52: CORPO&MNREMsav-2
B53: EV Additional Annual Cost | D53: =_xll.RiskDiscrete(D54:E54,D55:E55) ->  | F53: =_xll.RiskDiscrete(F54:G54,F55:G55) ->  | H53: =_xll.RiskDiscrete(H54:I54,H55:I55) -> 
B54: Annual Cost (Additional) | D54: 5000 | E54: 0 | F54: 5000 | G54: 0 | H54: 5000 | I54: 0
B55: Probability that Additional Costs will be provided | D55: =2.5%/2 -> 0.0125 | E55: =1-D55 -> 0.9875 | F55: 0.025 | G55: =1-F55 -> 0.975 | H55: 0.025 | I55: =1-H55 -> 0.975
A57: Catastrophic Event | D57: CORPO&MNREM-1 | F57: CORPO&MNREM-1 | H57: CORPO&MNREM-2
B58: EV Event Cost | D58: =_xll.RiskDiscrete(D59:E59,D60:E60) ->  | F58: =_xll.RiskDiscrete(F59:G59,F60:G60) ->  | H58: =_xll.RiskDiscrete(H59:I59,H60:I60) -> 
B59: Event Cost | D59: 30000 | E59: 0 | F59: 30000 | G59: 0 | H59: 30000 | I59: 0
B60: Event Probability | D60: =1%/2 -> 0.005 | E60: =1-D60 -> 0.995 | F60: 0.01 | G60: =1-F60 -> 0.99 | H60: 0.01 | I60: =1-H60 -> 0.99
A62: New System Requirements/Needs (e.g. for compliance/regulations, etc.)
D63: CORPO&MNREM-1 | F63: CORPO&MNREM-1 | H63: CORPO&MNREM-1
B64: EV Additional Annual Cost | D64: =_xll.RiskDiscrete(D65:E65,D66:E66) ->  | F64: =_xll.RiskDiscrete(F65:G65,F66:G66) ->  | H64: =_xll.RiskDiscrete(H65:I65,H66:I66) -> 
B65: Annual Cost (Additional) | D65: 5000 | E65: 0 | F65: 5000 | G65: 0 | H65: 5000 | I65: 0
B66: Probability of Additional Costs | D66: =10%/2 -> 0.05 | E66: =1-D66 -> 0.95 | F66: 0.1 | G66: =1-F66 -> 0.9 | H66: 0.1 | I66: =1-H66 -> 0.9
A68: Bureau
A69: Base O&M | B69: RiskPert | D69: =C22 -> 157621 | F69: =E22 -> 164609 | H69: =G22 -> 162623
A71: Security | D71: BURO&MSEC-1 | F71: BURO&MSEC-1 | H71: BURO&MSEC-2
D72: =D42 ->  | F72: =F42 ->  | H72: =H42 -> 
A74: Fish - Environmental Compliance | D74: BURO&Mecomp-1 | F74: BURO&Mecomp-1 | H74: BURO&Mecomp-2
D75: =_xll.RiskDiscrete(D76:E76,D77:E77) ->  | F75: =_xll.RiskDiscrete(F76:G76,F77:G77) ->  | H75: =_xll.RiskDiscrete(H76:I76,H77:I77) -> 
B76: Cost of an Event | D76: 2000 | E76: 0 | F76: 2000 | G76: 0 | H76: 2000 | I76: 0
B77: Probability of an event | D77: =2%/2 -> 0.01 | E77: =1-D77 -> 0.99 | F77: 0.02 | G77: =1-F77 -> 0.98 | H77: 0.02 | I77: =1-H77 -> 0.98
A79: Non-Routine Extraordinary Maintenance
D80: BURO&MNREMsav-1 | F80: BURO&MNREMsav-1 | H80: BURO&MNREMsav-2
B81: EV Additional Annual Cost | D81: =_xll.RiskDiscrete(D82:E82,D83:E83) ->  | F81: =_xll.RiskDiscrete(F82:G82,F83:G83) ->  | H81: =_xll.RiskDiscrete(H82:I82,H83:I83) -> 
B82: Annual Cost (Additional) | D82: 5000 | E82: 0 | F82: 5000 | G82: 0 | H82: 5000 | I82: 0
B83: Probability that Additional Costs will be provided | D83: =2.5%/2 -> 0.0125 | E83: =1-D83 -> 0.9875 | F83: 0.025 | G83: =1-F83 -> 0.975 | H83: 0.025 | I83: =1-H83 -> 0.975
A85: Catastrophic Event | D85: BURO&MNREM-1 | F85: BURO&MNREM-1 | H85: BURO&MNREM-2
B86: EV Event Cost | D86: =_xll.RiskDiscrete(D87:E87,D88:E88) ->  | F86: =_xll.RiskDiscrete(F87:G87,F88:G88) ->  | H86: =_xll.RiskDiscrete(H87:I87,H88:I88) -> 
B87: Event Cost | D87: 30000 | E87: 0 | F87: 30000 | G87: 0 | H87: 30000 | I87: 0
B88: Event Probability | D88: =1%/2 -> 0.005 | E88: =1-D88 -> 0.995 | F88: 0.01 | G88: =1-F88 -> 0.99 | H88: 0.01 | I88: =1-H88 -> 0.99
A90: New System Requirements/Needs (e.g. for compliance/regulations, etc.)
D91: BURO&Mnsneedinc-1 | F91: BURO&Mnsneedinc-1 | H91: BURO&Mnsneedinc-2
B92: EV Additional Annual Cost | D92: =_xll.RiskDiscrete(D93:E93,D94:E94) ->  | F92: =_xll.RiskDiscrete(F93:G93,F94:G94) ->  | H92: =_xll.RiskDiscrete(H93:I93,H94:I94) -> 
B93: Annual Cost (Additional) | D93: 5000 | E93: 0 | F93: 5000 | G93: 0 | H93: 5000 | I93: 0
B94: Probability of Additional Costs | D94: =10%/2 -> 0.05 | E94: =1-D94 -> 0.95 | F94: 0.1 | G94: =1-F94 -> 0.9 | H94: 0.1 | I94: =1-H94 -> 0.9

Sheet Colville&Spokane
A2: Colville & Spokane Settlements | K2: Color Key:
B3: Rates Values (Colville Settlement Assumed) | F3: @Risk | K3: SME Input
B4: FY 17 | C4: FY 18 | D4: FY 19 | F4: =B4 -> FY 17 | G4: =C4 -> FY 18 | H4: =D4 -> FY 19 | K4: Worksheet Formula
B5: ='Risk Summary'!C11 -> 16666.778 | C5: ='Risk Summary'!E11 -> 22612.478 | D5: ='Risk Summary'!G11 -> 22996.89 | F5: =B5+F15*F16*F17 ->  | G5: =_xll.RiskOutput("Spokane Settlement / FY14")+C5+G15*G16*G17 ->  | H5: =_xll.RiskOutput("Spokane Settlement / FY15")+D5+H15*H16*H17 ->  | I5: =_xll.RiskOutput("Spokane Settlement / FY14 and FY15")+H5+G5 ->  | K5: @Risk Output
K6: Linked to Summary
D7: Probability of Occurance | E7: discrete | F7: =_xll.RiskDiscrete(F8:G8,F9:G9) ->  | K7: @Risk Formula
D8: During Rate Period | E8: multiplier | F8: 1 | G8: 0
E9: probability | F9: 0.2 | G9: =1-F9 -> 0.8
D11: Year of Occurance (if occurs) | E11: discrete | F11: =_xll.RiskDiscrete(F12:H12,F13:H13) -> 
E12: Year | F12: 1 | G12: 2 | H12: 3
E13: Probability | F13: 0 | G13: 0.5 | H13: 0.5
E15: Forecast Colville Payment | F15: =B5 -> 16666.778 | G15: =C5 -> 22612.478 | H15: =D5 -> 22996.89
E16: Spokane Multiplier | F16: 0.25 | G16: =F16 -> 0.25 | H16: =F16 -> 0.25
E17: Occurs this year? | F17: =AND($F$11<=F12,$F$7) ->  | G17: =AND($F$11<=G12,$F$7) ->  | H17: =AND($F$11<=H12,$F$7) -> 
A20: Colville Settlement Calculation
A21: Colville Settlement Uncertainty has been removed from NORM for the initial proposal. In evaluating and updating the model, we found that the model produced results that were, overall, counter-intuititve.
A22: The settlement payment is calculated based on several uncertaintites including Power Sales Revenue and Power Sales MWh, and Grand Coolie Generation MWh. The correlations between these items
A23: is not readily assessable in NORM, nor is the correlation between the level of the Colville Settlement Payment and Power Services Net Revenue. When modeling the risk without correlations, Colville
A24: Settlement risk will increase BPA's net revenue risk, as measured by the standard deviation of net revenue. We believe that, if correlations were taken into account, The
A25: Colville Settlement risk is likely to decrease or have minimal effect on overall Net Revenue uncertainty. Riskmod contains models of some of the key uncertainties in the colville payment,
A26: along with implied correlation between those uncertainties. Because of this, we plan to model the uncertainty in the Colville Settlement in Riskmod for the final proposal.

Sheet Salaries
A2: VERBS Revenue | H2: $000 | K2: Color Key:
B3: Rates Values | F3: @Risk Revenue Adjustment | K3: SME Input
B4: FY 17 | C4: FY 18 | D4: FY 19 | F4: FY 17 | G4: FY 18 | H4: FY 19 | K4: Worksheet Formula
A5: INFORMATION TECHNOLOGY | B5: ='Risk Summary'!C19 -> 7047.157 | C5: ='Risk Summary'!E19 -> 6976.159 | D5: ='Risk Summary'!G19 -> 7293.865 | F5: =B5*(B$21+B$27)/B$21 ->  | K5: @Risk Output
A6: GENERATION PROJECT COORDINATION | B6: ='Risk Summary'!C20 -> 5962.759 | C6: ='Risk Summary'!E20 -> 6173.94 | D6: ='Risk Summary'!G20 -> 6408.905 | K6: Linked to Summary
A7: SLICE IMPLEMENTATION | B7: ='Risk Summary'!C21 -> 488.959 | C7: ='Risk Summary'!E21 -> 1024.143 | D7: ='Risk Summary'!G21 -> 1061.36 | K7: @Risk Formula
B8: ='Risk Summary'!C22 ->  | C8: ='Risk Summary'!E22 ->  | D8: ='Risk Summary'!G22 -> 
A9: OPERATIONS SCHEDULING | B9: ='Risk Summary'!C23 -> 8897.675 | C9: ='Risk Summary'!E23 -> 10053.729 | D9: ='Risk Summary'!G23 -> 10404.279 | F9: =B9*(B$21+B$27)/B$21 -> 
A10: OPERATIONS PLANNING | B10: ='Risk Summary'!C24 -> 7613.302 | C10: ='Risk Summary'!E24 -> 8528.098 | D10: ='Risk Summary'!G24 -> 8415.711
A11: POWER R&D | B11: ='Risk Summary'!C25 -> 4275.698 | C11: ='Risk Summary'!E25 -> 4704.933 | D11: ='Risk Summary'!G25 -> 4599.519
B12: ='Risk Summary'!C26 ->  | C12: ='Risk Summary'!E26 ->  | D12: ='Risk Summary'!G26 -> 
A13: SALES & SUPPORT | B13: ='Risk Summary'!C27 -> 19588.128 | C13: ='Risk Summary'!E27 -> 22885.139 | D13: ='Risk Summary'!G27 -> 23485.271 | F13: =B13*(B$21+B$27)/B$21 -> 
A14: STRATEGY, FINANCE & RISK MGMT | B14: ='Risk Summary'!C28 -> 14877.488 | C14: ='Risk Summary'!E28 -> 16853.235 | D14: ='Risk Summary'!G28 -> 19038.129
A15: Executive & Administrative Services | B15: ='Risk Summary'!C29 -> 3417.475 | C15: ='Risk Summary'!E29 -> 4118.522 | D15: ='Risk Summary'!G29 -> 4203.53
A16: CONSERVATION SUPPORT | B16: ='Risk Summary'!C30 -> 8239.36 | C16: ='Risk Summary'!E30 -> 9093.563 | D16: ='Risk Summary'!G30 -> 9408.5
A18: Agency Services G&A (Excludes Direct Project Support) | B18: ='Risk Summary'!C32 -> 58261.282 | C18: ='Risk Summary'!E32 -> 64391.225 | D18: ='Risk Summary'!G32 -> 65796.266 | F18: =B18*(B$21+B$27)/B$21 ->  | G18: =C18*(C$21+C$27)/C$21 ->  | H18: =D18*(D$21+D$27)/D$21 -> 
A21: Total | B21: =SUM(B5:B18) -> 138669.283 | C21: =SUM(C5:C18) -> 154802.686 | D21: =SUM(D5:D18) -> 160115.335
A23: 5% FTE Variance | B23: -2 | C23: -10 | D23: -15
A24: Expected FTE Variance | B24: 0 | C24: 0 | D24: 0
A25: 95% FTE Variance | B25: 2 | C25: 10 | D25: 15
A26: Average Cost per FTE ($000) | B26: 108 | C26: 108 | D26: 108
A27: Cost Delta | B27: =_xll.RiskOutput(,"=Staffing Cost Delta",1)+_xll.RiskPertAlt(5%,B23*B26,50%,B24*B26,95%,B25*B26) ->  | C27: =_xll.RiskOutput(,"=Staffing Cost Delta",1)+_xll.RiskPertAlt(5%,C23*C26,50%,C24*C26,95%,C25*C26) ->  | D27: =_xll.RiskOutput(,"=Staffing Cost Delta",1)+_xll.RiskPertAlt(5%,D23*D26,50%,D24*D26,95%,D25*D26) -> 

Sheet F&W Expense
N2: Color Key:
N3: SME Input
F4: 2017 | G4: @risk | H4: =F4+1 -> 2018 | I4: @risk | J4: =+H4+1 -> 2019 | K4: @risk | N4: Worksheet Formula
G5: FY 17 | I5: FY 18 | K5: FY 19 | L5: FY18 and FY19 | N5: @Risk Output
E6: F&W Roll Up (excludes Lower Snake Hatch) | G6: =G9+G14+G18 ->  | I6: =I9+I14+I18 ->  | K6: =K9+K14+K18 ->  | L6: =SUM(G6:K6) ->  | N6: Linked to Summary
N7: @Risk Formula
A9: RiskPert | E9: F&W Direct Program Cost | F9: ='Risk Summary'!C34 -> 263869.329 | G9: =_xll.RiskPert(F10,F11,F12) ->  | H9: ='Risk Summary'!E34 -> 276713.282 | I9: =_xll.RiskPert(H10,H11,H12) ->  | J9: ='Risk Summary'!G34 -> 276703.668 | K9: =_xll.RiskPert(J10,J11,J12) ->  | L9: =_xll.RiskOutput("F&W Direct Program Cost / FY14 and FY15")+(I9+K9) -> 
E10: Min | F10: =F9 -> 263869.329 | H10: =H9*0.95 -> 262877.6179 | J10: =J9*0.95 -> 262868.4846
E11: Most Likely | F11: =F9 -> 263869.329 | H11: =H9*0.975 -> 269795.4499 | J11: =J9*0.975 -> 269786.0763
E12: Max | F12: =F9 -> 263869.329 | H12: =H9 -> 276713.282 | J12: =J9 -> 276703.668
A14: RiskDiscrete | E14: Reclamation - Leavenworth Complex O&M | F14: 0 | G14: =_xll.RiskDiscrete(F16:G16,F15:G15) ->  | H14: 0 | I14: =_xll.RiskDiscrete(H16:I16,H15:I15) ->  | J14: 0 | K14: =_xll.RiskDiscrete(J16:K16,J15:K15) ->  | L14: =_xll.RiskOutput("Leavenworth Complex O&M Impact on Net Revenue / FY14 and FY15")+(I14+K14) -> 
E15: P | F15: =1%/2 -> 0.005 | G15: =1-F15 -> 0.995 | H15: 0.01 | I15: =1-H15 -> 0.99 | J15: 0.01 | K15: =1-J15 -> 0.99
E16: Value | F16: 1000 | G16: 0 | H16: 1000 | I16: 0 | J16: 1000 | K16: 0
A18: RiskDiscrete | E18: COE - Fish Passage Facilities | F18: 0 | G18: =_xll.RiskDiscrete(F20:G20,F19:G19) ->  | H18: 0 | I18: =_xll.RiskDiscrete(H20:I20,H19:I19) ->  | J18: 0 | K18: =_xll.RiskDiscrete(J20:K20,J19:K19) ->  | L18: =_xll.RiskOutput("COE - Fish Passage Facilities Impact on Net Revenue / FY14 and FY15")+(I18+K18) -> 
E19: P | F19: =1%/2 -> 0.005 | G19: =1-F19 -> 0.995 | H19: 0.01 | I19: =1-H19 -> 0.99 | J19: 0.01 | K19: =1-J19 -> 0.99
E20: Value | F20: 1000 | G20: 0 | H20: 1000 | I20: 0 | J20: 1000 | K20: 0
G23: FY 15 | I23: FY 16 | K23: FY 17 | L23: FY16 and FY17
A24: RiskPert | E24: USF&W Lower Snake Hatcheries | F24: ='Risk Summary'!C35 -> 31949.468 | G24: =_xll.RiskPert(F25,F26,F27) ->  | H24: ='Risk Summary'!E35 -> 33483.249 | I24: =_xll.RiskPert(H25,H26,H27) ->  | J24: ='Risk Summary'!G35 -> 33483.249 | K24: =_xll.RiskPert(J25,J26,J27) ->  | L24: =_xll.RiskOutput("USF&W Lower Snake Hatcheries / FY14 and FY15")+(I24+K24) -> 
E25: Min | F25: =F24 -> 31949.468 | H25: =H27*0.9 -> 30134.9241 | J25: =J27*0.9 -> 30134.9241
E26: Most Likely | F26: =F24 -> 31949.468 | H26: =H27*0.95 -> 31809.08655 | J26: =J27*0.95 -> 31809.08655
E27: Max | F27: =F24 -> 31949.468 | H27: =H24 -> 33483.249 | J27: =J24 -> 33483.249

Sheet Interest
A2: Interest Expense | H2: $000 | N2: Color Key:
B3: Rates Values | F3: @Risk Expense Adjustment | J3: Modeled Value | N3: SME Input
B4: FY17 | C4: FY18 | D4: FY19 | F4: =B4 -> FY17 | G4: =C4 -> FY18 | H4: =D4 -> FY19 | J4: =B4 -> FY17 | K4: =C4 -> FY18 | L4: =D4 -> FY19 | N4: Worksheet Formula
A5: Non-Federal Debt Service | B5: ='Risk Summary'!C37 -> 222831 | C5: ='Risk Summary'!E37 -> 490561.8091 | D5: ='Risk Summary'!G37 -> 420704.1575 | F5: =OFFSET(F12,_xll.RiskCurrentIter(),0)*1000+OFFSET(B12,_xll.RiskCurrentIter(),0)*1000 ->  | G5: =OFFSET(G12,_xll.RiskCurrentIter(),0)*1000+OFFSET(C12,_xll.RiskCurrentIter(),0)*1000 ->  | H5: =OFFSET(H12,_xll.RiskCurrentIter(),0)*1000+OFFSET(D12,_xll.RiskCurrentIter(),0)*1000 ->  | J5: =_xll.RiskOutput(,A5,1)+B5+F5 ->  | K5: =_xll.RiskOutput(,A5,2)+C5+G5 ->  | L5: =_xll.RiskOutput(,A5,3)+D5+H5 ->  | N5: @Risk Output
A6: Federal Debt Service | B6: ='Risk Summary'!C38 -> 53895.938 | C6: ='Risk Summary'!E38 -> 56449 | D6: ='Risk Summary'!G38 -> 63302 | F6: =OFFSET(J12,_xll.RiskCurrentIter(),0)*1000 ->  | G6: =OFFSET(K12,_xll.RiskCurrentIter(),0)*1000 ->  | H6: =OFFSET(L12,_xll.RiskCurrentIter(),0)*1000 ->  | J6: =_xll.RiskOutput(,A6,1)+B6+F6 ->  | K6: =_xll.RiskOutput(,A6,2)+C6+G6 ->  | L6: =_xll.RiskOutput(,A6,3)+D6+H6 ->  | N6: Linked to Summary
A7: Appropriations | B7: ='Risk Summary'!C39 -> 115582.3 | C7: ='Risk Summary'!E39 -> 83294 | D7: ='Risk Summary'!G39 -> 82687 | F7: =OFFSET(N12,_xll.RiskCurrentIter(),0)*1000 ->  | G7: =OFFSET(O12,_xll.RiskCurrentIter(),0)*1000 ->  | H7: =OFFSET(P12,_xll.RiskCurrentIter(),0)*1000 ->  | J7: =_xll.RiskOutput(,A7,1)+B7+F7 ->  | K7: =_xll.RiskOutput(,A7,2)+C7+G7 ->  | L7: =_xll.RiskOutput(,A7,3)+D7+H7 ->  | N7: @Risk Formula
A9: Output from Interest Model. Values in $M.
B10: Non-Federal TaxableBorrowings | F10: Non-Federal Tax Exempt Borrowings | J10: Federal Borrowings | N10: Appropriations
B11: =B4 -> FY17 | C11: =C4 -> FY18 | D11: =D4 -> FY19 | F11: =B11 -> FY17 | G11: =C11 -> FY18 | H11: =D11 -> FY19 | J11: =B11 -> FY17 | K11: =C11 -> FY18 | L11: =D11 -> FY19 | N11: =B11 -> FY17 | O11: =C11 -> FY18 | P11: =D11 -> FY19
A12: Average | B12: =AVERAGE(B13:B3212) -> 0 | C12: =AVERAGE(C13:C3212) -> -1.577210584e-14 | D12: =AVERAGE(D13:D3212) -> 7.287802306e-14 | F12: =AVERAGE(F13:F3212) -> 0 | G12: =AVERAGE(G13:G3212) -> 0 | H12: =AVERAGE(H13:H3212) -> 0 | J12: =AVERAGE(J13:J3212) -> 1.158123077e-16 | K12: =AVERAGE(K13:K3212) -> -4.99118108e-15 | L12: =AVERAGE(L13:L3212) -> 2.609579219e-15 | N12: =AVERAGE(N13:N3212) -> 0 | O12: =AVERAGE(O13:O3212) -> 0 | P12: =AVERAGE(P13:P3212) -> 0
A13: 1 | B13: 0 | C13: -1.692054269 | D13: -4.098049837 | F13: 0 | G13: 0 | H13: 0 | J13: -0.007685445396 | K13: -0.1475044653 | L13: -0.5390133867 | N13: 0 | O13: 0 | P13: 0
A14: 2 | B14: 0 | C14: 1.201123408 | D14: 3.407919223 | F14: 0 | G14: 0 | H14: 0 | J14: -0.040167316 | K14: -0.3516702692 | L14: 1.20855471 | N14: 0 | O14: 0 | P14: 0
A15: 3 | B15: 0 | C15: 0.9860059497 | D15: 2.831199858 | F15: 0 | G15: 0 | H15: 0 | J15: 0.03340673598 | K15: 0.4953380792 | L15: 1.579802917 | N15: 0 | O15: 0 | P15: 0
A16: 4 | B16: 0 | C16: 1.906671631 | D16: 5.428743084 | F16: 0 | G16: 0 | H16: 0 | J16: 0.08510856832 | K16: 1.197626407 | L16: 3.228887285 | N16: 0 | O16: 0 | P16: 0
A17: 5 | B17: 0 | C17: 0.2289759994 | D17: 0.935670227 | F17: 0 | G17: 0 | H17: 0 | J17: -0.02127525524 | K17: -0.2478225118 | L17: -0.038512381 | N17: 0 | O17: 0 | P17: 0
A18: 6 | B18: 0 | C18: 0.01144810061 | D18: 0.03659404805 | F18: 0 | G18: 0 | H18: 0 | J18: 0.06234370558 | K18: 0.7729121521 | L18: 1.05878961 | N18: 0 | O18: 0 | P18: 0
A19: 7 | B19: 0 | C19: -1.984465008 | D19: -4.849626481 | F19: 0 | G19: 0 | H19: 0 | J19: -0.01050438561 | K19: -0.3264648489 | L19: -2.510305834 | N19: 0 | O19: 0 | P19: 0
A20: 8 | B20: 0 | C20: 1.366260808 | D20: 3.493841018 | F20: 0 | G20: 0 | H20: 0 | J20: 0.006531791598 | K20: 0.1441837205 | L20: 0.8446592404 | N20: 0 | O20: 0 | P20: 0
A21: 9 | B21: 0 | C21: 1.697770811 | D21: 4.786611545 | F21: 0 | G21: 0 | H21: 0 | J21: 0.09111930641 | K21: 1.255767588 | L21: 3.133446693 | N21: 0 | O21: 0 | P21: 0
A22: 10 | B22: 0 | C22: 1.937213159 | D22: 5.20360655 | F22: 0 | G22: 0 | H22: 0 | J22: -0.0192480728 | K22: -0.09751783051 | L22: 1.516936839 | N22: 0 | O22: 0 | P22: 0
A23: 11 | B23: 0 | C23: 1.606163432 | D23: 4.151386297 | F23: 0 | G23: 0 | H23: 0 | J23: 0.004558151011 | K23: 0.2056723563 | L23: 1.928599765 | N23: 0 | O23: 0 | P23: 0
A24: 12 | B24: 0 | C24: 1.366990551 | D24: 3.871396532 | F24: 0 | G24: 0 | H24: 0 | J24: 0.04084141105 | K24: 0.6293523529 | L24: 2.235771028 | N24: 0 | O24: 0 | P24: 0
A25: 13 | B25: 0 | C25: -0.8762893718 | D25: -2.365792444 | F25: 0 | G25: 0 | H25: 0 | J25: 0.1063218035 | K25: 1.401986913 | L25: 2.845916568 | N25: 0 | O25: 0 | P25: 0
A26: 14 | B26: 0 | C26: 0.4564129232 | D26: 1.068558503 | F26: 0 | G26: 0 | H26: 0 | J26: 0.02047460127 | K26: 0.3235808417 | L26: 1.283605746 | N26: 0 | O26: 0 | P26: 0
A27: 15 | B27: 0 | C27: -1.61408634 | D27: -4.194249458 | F27: 0 | G27: 0 | H27: 0 | J27: 0.06726794245 | K27: 0.7204019914 | L27: -0.08887318245 | N27: 0 | O27: 0 | P27: 0
A28: 16 | B28: 0 | C28: -0.8748232524 | D28: -2.521821867 | F28: 0 | G28: 0 | H28: 0 | J28: -0.03703062262 | K28: -0.4970950419 | L28: -1.205553118 | N28: 0 | O28: 0 | P28: 0
A29: 17 | B29: 0 | C29: -0.450100792 | D29: -1.422816701 | F29: 0 | G29: 0 | H29: 0 | J29: 0.01277131792 | K29: 0.1100877034 | L29: -0.4505609069 | N29: 0 | O29: 0 | P29: 0
A30: 18 | B30: 0 | C30: -0.1964651601 | D30: -0.5067515505 | F30: 0 | G30: 0 | H30: 0 | J30: 0.02172839874 | K30: 0.2166136392 | L30: -0.289937914 | N30: 0 | O30: 0 | P30: 0
A31: 19 | B31: 0 | C31: 0.5844299944 | D31: 1.186130278 | F31: 0 | G31: 0 | H31: 0 | J31: -0.04558181023 | K31: -0.4820506557 | L31: 0.2337386453 | N31: 0 | O31: 0 | P31: 0
A32: 20 | B32: 0 | C32: 0.5148779039 | D32: 1.511820445 | F32: 0 | G32: 0 | H32: 0 | J32: -0.009584425065 | K32: -0.1042020248 | L32: 0.1116326799 | N32: 0 | O32: 0 | P32: 0
A33: 21 | B33: 0 | C33: -0.3003737597 | D33: -0.574599826 | F33: 0 | G33: 0 | H33: 0 | J33: -0.03344249993 | K33: -0.3837634831 | L33: -0.2064067273 | N33: 0 | O33: 0 | P33: 0
A34: 22 | B34: 0 | C34: -1.565518621 | D34: -4.742707622 | F34: 0 | G34: 0 | H34: 0 | J34: 0.03866192712 | K34: 0.3819601995 | L34: -0.6508909833 | N34: 0 | O34: 0 | P34: 0
A35: 23 | B35: 0 | C35: 0.5322424798 | D35: 0.891702424 | F35: 0 | G35: 0 | H35: 0 | J35: 0.05999138423 | K35: 0.8522701427 | L35: 2.255084359 | N35: 0 | O35: 0 | P35: 0
A36: 24 | B36: 0 | C36: -0.3712723469 | D36: -0.6655688964 | F36: 0 | G36: 0 | H36: 0 | J36: -0.04454009145 | K36: -0.5966943229 | L36: -1.198350005 | N36: 0 | O36: 0 | P36: 0
A37: 25 | B37: 0 | C37: 1.065943144 | D37: 3.078857272 | F37: 0 | G37: 0 | H37: 0 | J37: -0.04211019848 | K37: -0.4010897758 | L37: 0.871262306 | N37: 0 | O37: 0 | P37: 0
A38: 26 | B38: 0 | C38: 1.820845844 | D38: 4.697099751 | F38: 0 | G38: 0 | H38: 0 | J38: 0.05558496904 | K38: 0.8742411128 | L38: 3.257424168 | N38: 0 | O38: 0 | P38: 0
A39: 27 | B39: 0 | C39: 0.1318083227 | D39: 0.3640821884 | F39: 0 | G39: 0 | H39: 0 | J39: 0.05057454604 | K39: 0.6532503229 | L39: 1.175848803 | N39: 0 | O39: 0 | P39: 0
A40: 28 | B40: 0 | C40: -0.4557448006 | D40: -0.903546596 | F40: 0 | G40: 0 | H40: 0 | J40: -0.01807886413 | K40: -0.2913462029 | L40: -1.037474807 | N40: 0 | O40: 0 | P40: 0
A41: 29 | B41: 0 | C41: 1.569435978 | D41: 4.295887492 | F41: 0 | G41: 0 | H41: 0 | J41: -0.0117488642 | K41: -0.04390454547 | L41: 1.155995282 | N41: 0 | O41: 0 | P41: 0
A42: 30 | B42: 0 | C42: 0.2923847911 | D42: 0.7376598294 | F42: 0 | G42: 0 | H42: 0 | J42: 0.02401835189 | K42: 0.3304779858 | L42: 0.8769034002 | N42: 0 | O42: 0 | P42: 0
A43: 31 | B43: 0 | C43: -1.059293806 | D43: -2.941869329 | F43: 0 | G43: 0 | H43: 0 | J43: 0.07149337836 | K43: 0.8869764305 | L43: 1.157699871 | N43: 0 | O43: 0 | P43: 0
A44: 32 | B44: 0 | C44: 0.4989278817 | D44: 1.652045711 | F44: 0 | G44: 0 | H44: 0 | J44: -0.02827309572 | K44: -0.2827362685 | L44: 0.4545278121 | N44: 0 | O44: 0 | P44: 0
A45: 33 | B45: 0 | C45: -0.3314077504 | D45: -1.341011273 | F45: 0 | G45: 0 | H45: 0 | J45: 0.02550977936 | K45: 0.3356668855 | L45: 0.5998596795 | N45: 0 | O45: 0 | P45: 0
A46: 34 | B46: 0 | C46: -0.7302895564 | D46: -2.128357755 | F46: 0 | G46: 0 | H46: 0 | J46: -0.04837617527 | K46: -0.6305072492 | L46: -1.243969725 | N46: 0 | O46: 0 | P46: 0
A47: 35 | B47: 0 | C47: 0.4196073456 | D47: 1.431470873 | F47: 0 | G47: 0 | H47: 0 | J47: -0.035048639 | K47: -0.3957793974 | L47: -0.01572831175 | N47: 0 | O47: 0 | P47: 0
A48: 36 | B48: 0 | C48: -0.7415697703 | D48: -1.782179343 | F48: 0 | G48: 0 | H48: 0 | J48: -0.020070339 | K48: -0.3611757812 | L48: -1.796225306 | N48: 0 | O48: 0 | P48: 0
A49: 37 | B49: 0 | C49: 0.3484481531 | D49: 1.298832384 | F49: 0 | G49: 0 | H49: 0 | J49: -0.0858188423 | K49: -0.9716983022 | L49: -0.3201449257 | N49: 0 | O49: 0 | P49: 0
A50: 38 | B50: 0 | C50: -1.503728128 | D50: -4.059378085 | F50: 0 | G50: 0 | H50: 0 | J50: -0.03616610192 | K50: -0.5629512855 | L50: -2.049282076 | N50: 0 | O50: 0 | P50: 0
A51: 39 | B51: 0 | C51: 0.1418929532 | D51: 0.5836057301 | F51: 0 | G51: 0 | H51: 0 | J51: -0.002949290214 | K51: -0.04962570331 | L51: -0.1229376916 | N51: 0 | O51: 0 | P51: 0
A52: 40 | B52: 0 | C52: 0.5696007099 | D52: 1.476620272 | F52: 0 | G52: 0 | H52: 0 | J52: 0.08416737941 | K52: 1.081699043 | L52: 1.929601502 | N52: 0 | O52: 0 | P52: 0
A53: 41 | B53: 0 | C53: 1.160114728 | D53: 3.330163165 | F53: 0 | G53: 0 | H53: 0 | J53: -0.04101626232 | K53: -0.3746801822 | L53: 1.054976859 | N53: 0 | O53: 0 | P53: 0
A54: 42 | B54: 0 | C54: -1.850960237 | D54: -5.143944789 | F54: 0 | G54: 0 | H54: 0 | J54: 0.02937325048 | K54: 0.2399287742 | L54: -1.018313587 | N54: 0 | O54: 0 | P54: 0
A55: 43 | B55: 0 | C55: 0.3902080763 | D55: 1.090493836 | F55: 0 | G55: 0 | H55: 0 | J55: 0.001166081954 | K55: 0.02459371064 | L55: 0.08666866249 | N55: 0 | O55: 0 | P55: 0
A56: 44 | B56: 0 | C56: -0.7471050229 | D56: -2.707350392 | F56: 0 | G56: 0 | H56: 0 | J56: -0.07993846045 | K56: -1.085391225 | L56: -2.634823569 | N56: 0 | O56: 0 | P56: 0
A57: 45 | B57: 0 | C57: 0.3893323229 | D57: 1.049908821 | F57: 0 | G57: 0 | H57: 0 | J57: 0.01225890333 | K57: 0.1798736162 | L57: 0.6503960394 | N57: 0 | O57: 0 | P57: 0
A58: 46 | B58: 0 | C58: -0.7340830736 | D58: -2.304578795 | F58: 0 | G58: 0 | H58: 0 | J58: -0.05369445918 | K58: -0.7001012216 | L58: -1.474597295 | N58: 0 | O58: 0 | P58: 0
A59: 47 | B59: 0 | C59: 0.4770820371 | D59: 0.7813004082 | F59: 0 | G59: 0 | H59: 0 | J59: 0.06310653225 | K59: 0.910745315 | L59: 2.54105092 | N59: 0 | O59: 0 | P59: 0
A60: 48 | B60: 0 | C60: 0.02854975336 | D60: 0.117204732 | F60: 0 | G60: 0 | H60: 0 | J60: 0.07011965352 | K60: 0.8539136563 | L60: 0.9984757396 | N60: 0 | O60: 0 | P60: 0
A61: 49 | B61: 0 | C61: -0.9151302482 | D61: -2.528387415 | F61: 0 | G61: 0 | H61: 0 | J61: -0.01285864419 | K61: -0.221424153 | L61: -1.005691734 | N61: 0 | O61: 0 | P61: 0
A62: 50 | B62: 0 | C62: -0.4777297453 | D62: -0.703168354 | F62: 0 | G62: 0 | H62: 0 | J62: -0.03797641946 | K62: -0.5450518674 | L62: -1.416760928 | N62: 0 | O62: 0 | P62: 0
A63: 51 | B63: 0 | C63: 0.213759051 | D63: 0.7724724934 | F63: 0 | G63: 0 | H63: 0 | J63: -0.002431026594 | K63: -0.0536738586 | L63: -0.2290544968 | N63: 0 | O63: 0 | P63: 0
A64: 52 | B64: 0 | C64: -0.8156336974 | D64: -2.344572865 | F64: 0 | G64: 0 | H64: 0 | J64: 0.01461202178 | K64: 0.1036162846 | L64: -0.7386484684 | N64: 0 | O64: 0 | P64: 0
A65: 53 | B65: 0 | C65: -1.192528981 | D65: -3.270714757 | F65: 0 | G65: 0 | H65: 0 | J65: 0.01546528382 | K65: 0.09986274865 | L65: -0.8864365457 | N65: 0 | O65: 0 | P65: 0
A66: 54 | B66: 0 | C66: -2.940454606 | D66: -7.750910048 | F66: 0 | G66: 0 | H66: 0 | J66: -0.07434415947 | K66: -1.124724133 | L66: -3.652347717 | N66: 0 | O66: 0 | P66: 0
A67: 55 | B67: 0 | C67: -1.462895424 | D67: -3.882621714 | F67: 0 | G67: 0 | H67: 0 | J67: -0.08043970844 | K67: -1.074680134 | L67: -2.321117243 | N67: 0 | O67: 0 | P67: 0
A68: 56 | B68: 0 | C68: -1.832335678 | D68: -4.701399576 | F68: 0 | G68: 0 | H68: 0 | J68: 0.02050038482 | K68: 0.1355603567 | L68: -0.9788999938 | N68: 0 | O68: 0 | P68: 0
A69: 57 | B69: 0 | C69: -0.471715468 | D69: -1.122404613 | F69: 0 | G69: 0 | H69: 0 | J69: 0.003430056971 | K69: 0.009119005271 | L69: -0.451501737 | N69: 0 | O69: 0 | P69: 0
A70: 58 | B70: 0 | C70: 0.8710483452 | D70: 2.12937786 | F70: 0 | G70: 0 | H70: 0 | J70: 0.03545602643 | K70: 0.5136442581 | L70: 1.608327017 | N70: 0 | O70: 0 | P70: 0
A71: 59 | B71: 0 | C71: -1.368147056 | D71: -3.848958247 | F71: 0 | G71: 0 | H71: 0 | J71: 0.01380143451 | K71: 0.03166508473 | L71: -1.54393977 | N71: 0 | O71: 0 | P71: 0
A72: 60 | B72: 0 | C72: -0.8557827304 | D72: -2.483403284 | F72: 0 | G72: 0 | H72: 0 | J72: -0.03716847732 | K72: -0.5028435491 | L72: -1.272159107 | N72: 0 | O72: 0 | P72: 0
A73: 61 | B73: 0 | C73: 0.07250920857 | D73: 0.1330760997 | F73: 0 | G73: 0 | H73: 0 | J73: 0.01689066836 | K73: 0.2331592085 | L73: 0.6393538985 | N73: 0 | O73: 0 | P73: 0
A74: 62 | B74: 0 | C74: 1.076940123 | D74: 2.964405605 | F74: 0 | G74: 0 | H74: 0 | J74: 0.09097002928 | K74: 1.199517942 | L74: 2.489103145 | N74: 0 | O74: 0 | P74: 0
A75: 63 | B75: 0 | C75: -0.7566119834 | D75: -2.552744149 | F75: 0 | G75: 0 | H75: 0 | J75: -0.04789788443 | K75: -0.6604235458 | L75: -1.751883471 | N75: 0 | O75: 0 | P75: 0
A76: 64 | B76: 0 | C76: -0.2147331723 | D76: -0.3441769693 | F76: 0 | G76: 0 | H76: 0 | J76: -0.04010076154 | K76: -0.4652187065 | L76: -0.3106012627 | N76: 0 | O76: 0 | P76: 0
A77: 65 | B77: 0 | C77: -0.6072046025 | D77: -2.00201873 | F77: 0 | G77: 0 | H77: 0 | J77: -0.0706016265 | K77: -0.9208993946 | L77: -1.890194637 | N77: 0 | O77: 0 | P77: 0
A78: 66 | B78: 0 | C78: 1.293916082 | D78: 3.555225104 | F78: 0 | G78: 0 | H78: 0 | J78: 0.04104862262 | K78: 0.5993114395 | L78: 1.872511446 | N78: 0 | O78: 0 | P78: 0
A79: 67 | B79: 0 | C79: 0.480197837 | D79: 1.584393005 | F79: 0 | G79: 0 | H79: 0 | J79: -0.0234276156 | K79: -0.2772919088 | L79: -0.2356580343 | N79: 0 | O79: 0 | P79: 0
A80: 68 | B80: 0 | C80: -0.6704985294 | D80: -1.524373145 | F80: 0 | G80: 0 | H80: 0 | J80: -0.006682327499 | K80: -0.1918938664 | L80: -1.493102941 | N80: 0 | O80: 0 | P80: 0
A81: 69 | B81: 0 | C81: 0.8220901881 | D81: 2.41381617 | F81: 0 | G81: 0 | H81: 0 | J81: -0.04575332126 | K81: -0.4557941454 | L81: 0.6683742784 | N81: 0 | O81: 0 | P81: 0
A82: 70 | B82: 0 | C82: -0.03768887252 | D82: -0.1997536348 | F82: 0 | G82: 0 | H82: 0 | J82: -0.01798870806 | K82: -0.1712180813 | L82: 0.3351926509 | N82: 0 | O82: 0 | P82: 0
A83: 71 | B83: 0 | C83: -2.73883291 | D83: -7.072843217 | F83: 0 | G83: 0 | H83: 0 | J83: -0.07620413169 | K83: -1.064632739 | L83: -2.688408838 | N83: 0 | O83: 0 | P83: 0
A84: 72 | B84: 0 | C84: 1.245498295 | D84: 3.443679492 | F84: 0 | G84: 0 | H84: 0 | J84: 0.02854666491 | K84: 0.4437776298 | L84: 1.660493469 | N84: 0 | O84: 0 | P84: 0
A85: 73 | B85: 0 | C85: 1.798366707 | D85: 4.682759744 | F85: 0 | G85: 0 | H85: 0 | J85: 0.05979609617 | K85: 0.9314058541 | L85: 3.395970276 | N85: 0 | O85: 0 | P85: 0
A86: 74 | B86: 0 | C86: -0.9850097976 | D86: -2.681845129 | F86: 0 | G86: 0 | H86: 0 | J86: -0.0088570989 | K86: -0.1850958559 | L86: -1.082999197 | N86: 0 | O86: 0 | P86: 0
A87: 75 | B87: 0 | C87: 1.496726172 | D87: 4.104299756 | F87: 0 | G87: 0 | H87: 0 | J87: 0.03483750428 | K87: 0.5551697323 | L87: 2.174868077 | N87: 0 | O87: 0 | P87: 0
A88: 76 | B88: 0 | C88: -1.165865338 | D88: -3.452549783 | F88: 0 | G88: 0 | H88: 0 | J88: -0.03299549312 | K88: -0.4912278707 | L88: -1.676894376 | N88: 0 | O88: 0 | P88: 0
A89: 77 | B89: 0 | C89: 0.9927264194 | D89: 2.92507747 | F89: 0 | G89: 0 | H89: 0 | J89: -0.01859008757 | K89: -0.117638328 | L89: 1.16983834 | N89: 0 | O89: 0 | P89: 0
A90: 78 | B90: 0 | C90: -0.4073189269 | D90: -0.7892426713 | F90: 0 | G90: 0 | H90: 0 | J90: -0.01873879873 | K90: -0.2680748975 | L90: -0.8440608166 | N90: 0 | O90: 0 | P90: 0
A91: 79 | B91: 0 | C91: 0.1398267135 | D91: 0.9651574824 | F91: 0 | G91: 0 | H91: 0 | J91: 0.02531996658 | K91: 0.3045972506 | L91: 0.1982134015 | N91: 0 | O91: 0 | P91: 0
A92: 80 | B92: 0 | C92: 0.9244246465 | D92: 2.70200099 | F92: 0 | G92: 0 | H92: 0 | J92: -0.02904326742 | K92: -0.2591447407 | L92: 0.8363333343 | N92: 0 | O92: 0 | P92: 0
A93: 81 | B93: 0 | C93: 1.175065729 | D93: 3.241527897 | F93: 0 | G93: 0 | H93: 0 | J93: 0.01330685999 | K93: 0.2257913015 | L93: 1.033569797 | N93: 0 | O93: 0 | P93: 0
A94: 82 | B94: 0 | C94: 1.229667275 | D94: 3.158957857 | F94: 0 | G94: 0 | H94: 0 | J94: -0.03415811612 | K94: -0.3390497429 | L94: 0.5039040616 | N94: 0 | O94: 0 | P94: 0
A95: 83 | B95: 0 | C95: -2.537072847 | D95: -6.776145448 | F95: 0 | G95: 0 | H95: 0 | J95: -0.07345886152 | K95: -1.075646502 | L95: -3.191565882 | N95: 0 | O95: 0 | P95: 0
A96: 84 | B96: 0 | C96: 1.916368307 | D96: 5.195602445 | F96: 0 | G96: 0 | H96: 0 | J96: -0.01230658532 | K96: -0.01963858639 | L96: 1.539866857 | N96: 0 | O96: 0 | P96: 0
A97: 85 | B97: 0 | C97: -0.1549639715 | D97: -0.1687894847 | F97: 0 | G97: 0 | H97: 0 | J97: 0.000115853932 | K97: -0.04556114201 | L97: -0.5035923005 | N97: 0 | O97: 0 | P97: 0
A98: 86 | B98: 0 | C98: 0.1018273936 | D98: 0.3095427919 | F98: 0 | G98: 0 | H98: 0 | J98: 0.05975089174 | K98: 0.7449058748 | L98: 1.080312135 | N98: 0 | O98: 0 | P98: 0
A99: 87 | B99: 0 | C99: 0.6673885549 | D99: 1.719975815 | F99: 0 | G99: 0 | H99: 0 | J99: 0.0783370906 | K99: 1.01956329 | L99: 1.945865707 | N99: 0 | O99: 0 | P99: 0
A100: 88 | B100: 0 | C100: 1.769885981 | D100: 4.752502721 | F100: 0 | G100: 0 | H100: 0 | J100: 0.004109709699 | K100: 0.1804329588 | L100: 1.764198465 | N100: 0 | O100: 0 | P100: 0
A101: 89 | B101: 0 | C101: 1.404481069 | D101: 3.954829009 | F101: 0 | G101: 0 | H101: 0 | J101: 0.0137242992 | K101: 0.2642779721 | L101: 1.472815543 | N101: 0 | O101: 0 | P101: 0
A102: 90 | B102: 0 | C102: 0.8330937907 | D102: 2.468135501 | F102: 0 | G102: 0 | H102: 0 | J102: -0.04477275863 | K102: -0.4459417191 | L102: 0.6640802651 | N102: 0 | O102: 0 | P102: 0
A103: 91 | B103: 0 | C103: -0.3429614816 | D103: -0.9915551222 | F103: 0 | G103: 0 | H103: 0 | J103: -0.03357746629 | K103: -0.4186144383 | L103: -0.6012448724 | N103: 0 | O103: 0 | P103: 0
A104: 92 | B104: 0 | C104: 1.869187001 | D104: 4.884019118 | F104: 0 | G104: 0 | H104: 0 | J104: 0.01379610141 | K104: 0.3677275417 | L104: 2.681081965 | N104: 0 | O104: 0 | P104: 0
A105: 93 | B105: 0 | C105: 1.698700439 | D105: 4.81303781 | F105: 0 | G105: 0 | H105: 0 | J105: 0.06576628851 | K105: 0.9566361566 | L105: 2.898556828 | N105: 0 | O105: 0 | P105: 0
A106: 94 | B106: 0 | C106: 1.842980915 | D106: 4.821124511 | F106: 0 | G106: 0 | H106: 0 | J106: 0.01379610141 | K106: 0.3631160818 | L106: 2.625744446 | N106: 0 | O106: 0 | P106: 0
A107: 95 | B107: 0 | C107: -0.9981732246 | D107: -3.265097823 | F107: 0 | G107: 0 | H107: 0 | J107: -0.02263504234 | K107: -0.345764938 | L107: -1.376477433 | N107: 0 | O107: 0 | P107: 0
A108: 96 | B108: 0 | C108: 1.11072542 | D108: 2.865897645 | F108: 0 | G108: 0 | H108: 0 | J108: 0.0154244515 | K108: 0.2696010668 | L108: 1.207555445 | N108: 0 | O108: 0 | P108: 0
A109: 97 | B109: 0 | C109: -0.7724012735 | D109: -1.816429482 | F109: 0 | G109: 0 | H109: 0 | J109: -0.04304512674 | K109: -0.6459516935 | L109: -2.124440451 | N109: 0 | O109: 0 | P109: 0
A110: 98 | B110: 0 | C110: -0.3577850008 | D110: -1.404316674 | F110: 0 | G110: 0 | H110: 0 | J110: 0.02550977936 | K110: 0.3325704994 | L110: 0.5627030468 | N110: 0 | O110: 0 | P110: 0
A111: 99 | B111: 0 | C111: -0.01660834489 | D111: 0.2731048937 | F111: 0 | G111: 0 | H111: 0 | J111: -0.0274140454 | K111: -0.3514933386 | L111: -0.5068600636 | N111: 0 | O111: 0 | P111: 0
A112: 100 | B112: 0 | C112: -0.2321786828 | D112: 0.01704583124 | F112: 0 | G112: 0 | H112: 0 | J112: 0.01632094857 | K112: 0.1541923427 | L112: -0.4000687118 | N112: 0 | O112: 0 | P112: 0
A113: 101 | B113: 0 | C113: -1.559857407 | D113: -4.76331564 | F113: 0 | G113: 0 | H113: 0 | J113: 0.003095979901 | K113: -0.1268437435 | L113: -2.102875169 | N113: 0 | O113: 0 | P113: 0
A114: 102 | B114: 0 | C114: 1.032430896 | D114: 2.976975535 | F114: 0 | G114: 0 | H114: 0 | J114: 0.02294963497 | K114: 0.3104731427 | L114: 0.8451902846 | N114: 0 | O114: 0 | P114: 0
A115: 103 | B115: 0 | C115: 0.3265316776 | D115: 1.252365116 | F115: 0 | G115: 0 | H115: 0 | J115: 0.01866044948 | K115: 0.1673270749 | L115: -0.3425708766 | N115: 0 | O115: 0 | P115: 0
A116: 104 | B116: 0 | C116: 1.85576128 | D116: 5.228617893 | F116: 0 | G116: 0 | H116: 0 | J116: 0.07925952548 | K116: 1.138581326 | L116: 3.329443221 | N116: 0 | O116: 0 | P116: 0
A117: 105 | B117: 0 | C117: 1.829344914 | D117: 4.921558735 | F117: 0 | G117: 0 | H117: 0 | J117: -0.006653209512 | K117: 0.04892302071 | L117: 1.602930781 | N117: 0 | O117: 0 | P117: 0
A118: 106 | B118: 0 | C118: -1.586240799 | D118: -4.293513007 | F118: 0 | G118: 0 | H118: 0 | J118: -0.05208470637 | K118: -0.7747380495 | L118: -2.523625643 | N118: 0 | O118: 0 | P118: 0
A119: 107 | B119: 0 | C119: -0.36066678 | D119: -0.6461887706 | F119: 0 | G119: 0 | H119: 0 | J119: -0.01186514419 | K119: -0.2075310677 | L119: -0.856191022 | N119: 0 | O119: 0 | P119: 0
A120: 108 | B120: 0 | C120: 0.6614271803 | D120: 1.74390566 | F120: 0 | G120: 0 | H120: 0 | J120: 0.01573911254 | K120: 0.254881622 | L120: 1.09139389 | N120: 0 | O120: 0 | P120: 0
A121: 109 | B121: 0 | C121: 0.007083897335 | D121: 0.2777205432 | F121: 0 | G121: 0 | H121: 0 | J121: -0.03341961312 | K121: -0.4898603732 | L121: -1.493564802 | N121: 0 | O121: 0 | P121: 0
A122: 110 | B122: 0 | C122: 1.207974345 | D122: 3.105184907 | F122: 0 | G122: 0 | H122: 0 | J122: 0.01480527677 | K122: 0.2619901998 | L122: 1.193560455 | N122: 0 | O122: 0 | P122: 0
A123: 111 | B123: 0 | C123: 1.514266201 | D123: 3.855655412 | F123: 0 | G123: 0 | H123: 0 | J123: 0.004249585146 | K123: 0.2186147149 | L123: 2.122501154 | N123: 0 | O123: 0 | P123: 0
A124: 112 | B124: 0 | C124: 1.532587343 | D124: 4.258140475 | F124: 0 | G124: 0 | H124: 0 | J124: 0.03700176728 | K124: 0.5840347039 | L124: 2.245538842 | N124: 0 | O124: 0 | P124: 0
A125: 113 | B125: 0 | C125: 1.535422129 | D125: 4.147681415 | F125: 0 | G125: 0 | H125: 0 | J125: -0.03502903005 | K125: -0.3225026042 | L125: 0.8763076929 | N125: 0 | O125: 0 | P125: 0
A126: 114 | B126: 0 | C126: -2.203069567 | D126: -5.749445703 | F126: 0 | G126: 0 | H126: 0 | J126: -0.02311957991 | K126: -0.3739562145 | L126: -1.325801986 | N126: 0 | O126: 0 | P126: 0
A127: 115 | B127: 0 | C127: 1.368879909 | D127: 3.875930991 | F127: 0 | G127: 0 | H127: 0 | J127: 0.04161637474 | K127: 0.6364263915 | L127: 2.218364283 | N127: 0 | O127: 0 | P127: 0
A128: 116 | B128: 0 | C128: 0.2037093244 | D128: 0.04468125753 | F128: 0 | G128: 0 | H128: 0 | J128: 0.01614306944 | K128: 0.2930043655 | L128: 1.310447492 | N128: 0 | O128: 0 | P128: 0
A129: 117 | B129: 0 | C129: 0.6819240831 | D129: 1.754861083 | F129: 0 | G129: 0 | H129: 0 | J129: 0.08604700936 | K129: 1.11376328 | L129: 2.058556311 | N129: 0 | O129: 0 | P129: 0
A130: 118 | B130: 0 | C130: -1.42937722 | D130: -3.938997846 | F130: 0 | G130: 0 | H130: 0 | J130: -0.07474703983 | K130: -1.000691407 | L130: -2.229285556 | N130: 0 | O130: 0 | P130: 0
A131: 119 | B131: 0 | C131: -2.713145771 | D131: -7.009570048 | F131: 0 | G131: 0 | H131: 0 | J131: -0.08953006217 | K131: -1.243902324 | L131: -3.08959704 | N131: 0 | O131: 0 | P131: 0
A132: 120 | B132: 0 | C132: 2.08749824 | D132: 5.727165476 | F132: 0 | G132: 0 | H132: 0 | J132: 0.01937391939 | K132: 0.3485955556 | L132: 1.794753892 | N132: 0 | O132: 0 | P132: 0
A133: 121 | B133: 0 | C133: -1.199756475 | D133: -2.978971235 | F133: 0 | G133: 0 | H133: 0 | J133: -0.02026673273 | K133: -0.3395783313 | L133: -1.401831058 | N133: 0 | O133: 0 | P133: 0
A134: 122 | B134: 0 | C134: -0.2371253438 | D134: -0.566984638 | F134: 0 | G134: 0 | H134: 0 | J134: 0.02884211282 | K134: 0.3112166661 | L134: -0.2308270949 | N134: 0 | O134: 0 | P134: 0
A135: 123 | B135: 0 | C135: -1.193084891 | D135: -2.995635768 | F135: 0 | G135: 0 | H135: 0 | J135: -0.01869577445 | K135: -0.3784535667 | L135: -2.218511396 | N135: 0 | O135: 0 | P135: 0
A136: 124 | B136: 0 | C136: -0.6206315171 | D136: -1.556888953 | F136: 0 | G136: 0 | H136: 0 | J136: -0.01484989915 | K136: -0.2276055034 | L136: -0.8903022247 | N136: 0 | O136: 0 | P136: 0
A137: 125 | B137: 0 | C137: -0.7473608294 | D137: -2.12225093 | F137: 0 | G137: 0 | H137: 0 | J137: 0.005222128675 | K137: 0.002276636665 | L137: -0.703919839 | N137: 0 | O137: 0 | P137: 0
A138: 126 | B138: 0 | C138: -0.4276994736 | D138: -1.216758174 | F138: 0 | G138: 0 | H138: 0 | J138: -0.03147585562 | K138: -0.4093940143 | L138: -0.7710682322 | N138: 0 | O138: 0 | P138: 0
A139: 127 | B139: 0 | C139: 1.297860001 | D139: 3.486018161 | F139: 0 | G139: 0 | H139: 0 | J139: 0.01969545408 | K139: 0.3196019825 | L139: 1.337135876 | N139: 0 | O139: 0 | P139: 0
A140: 128 | B140: 0 | C140: 0.002128969458 | D140: -0.3276006153 | F140: 0 | G140: 0 | H140: 0 | J140: 0.06112300141 | K140: 0.8262944673 | L140: 1.763301553 | N140: 0 | O140: 0 | P140: 0
A141: 129 | B141: 0 | C141: -1.071274422 | D141: -2.87666806 | F141: 0 | G141: 0 | H141: 0 | J141: -0.0005508403879 | K141: -0.107994035 | L141: -1.25281759 | N141: 0 | O141: 0 | P141: 0
A142: 130 | B142: 0 | C142: -0.2156022124 | D142: -0.8095847891 | F142: 0 | G142: 0 | H142: 0 | J142: 0.02086944023 | K142: 0.2275580713 | L142: -0.08988957615 | N142: 0 | O142: 0 | P142: 0
A143: 131 | B143: 0 | C143: -0.1727333754 | D143: -0.1799761854 | F143: 0 | G143: 0 | H143: 0 | J143: -0.04007014564 | K143: -0.5328320607 | L143: -1.04882464 | N143: 0 | O143: 0 | P143: 0
A144: 132 | B144: 0 | C144: 0.4770820371 | D144: 0.7813004082 | F144: 0 | G144: 0 | H144: 0 | J144: 0.06310653225 | K144: 0.910745315 | L144: 2.54105092 | N144: 0 | O144: 0 | P144: 0
A145: 133 | B145: 0 | C145: -0.3632506118 | D145: -1.042908052 | F145: 0 | G145: 0 | H145: 0 | J145: 0.009636851208 | K145: 0.05926954956 | L145: -0.6013421979 | N145: 0 | O145: 0 | P145: 0
A146: 134 | B146: 0 | C146: 1.621302159 | D146: 4.231224169 | F146: 0 | G146: 0 | H146: 0 | J146: 0.0102456415 | K146: 0.3018489626 | L146: 2.362159602 | N146: 0 | O146: 0 | P146: 0
A147: 135 | B147: 0 | C147: 1.629355356 | D147: 4.275078023 | F147: 0 | G147: 0 | H147: 0 | J147: -0.02102496133 | K147: -0.07028069268 | L147: 2.011024176 | N147: 0 | O147: 0 | P147: 0
A148: 136 | B148: 0 | C148: -0.7589610789 | D148: -2.349998426 | F148: 0 | G148: 0 | H148: 0 | J148: -0.05570321977 | K148: -0.7245747608 | L148: -1.490604494 | N148: 0 | O148: 0 | P148: 0
A149: 137 | B149: 0 | C149: 0.2091994987 | D149: 0.382762885 | F149: 0 | G149: 0 | H149: 0 | J149: -0.004391420105 | K149: -0.03100474179 | L149: 0.2448362816 | N149: 0 | O149: 0 | P149: 0
A150: 138 | B150: 0 | C150: -0.1709687447 | D150: -0.1776813614 | F150: 0 | G150: 0 | H150: 0 | J150: -0.03195455078 | K150: -0.3823619092 | L150: -0.4618410523 | N150: 0 | O150: 0 | P150: 0
A151: 139 | B151: 0 | C151: 0.4674549336 | D151: 0.7468775225 | F151: 0 | G151: 0 | H151: 0 | J151: 0.05469950198 | K151: 0.7650746996 | L151: 1.886164845 | N151: 0 | O151: 0 | P151: 0
A152: 140 | B152: 0 | C152: 1.286069686 | D152: 3.704552582 | F152: 0 | G152: 0 | H152: 0 | J152: 0.04739166616 | K152: 0.7274873995 | L152: 2.567181792 | N152: 0 | O152: 0 | P152: 0
A153: 141 | B153: 0 | C153: 1.924759081 | D153: 5.029819563 | F153: 0 | G153: 0 | H153: 0 | J153: -0.006322517587 | K153: 0.1257751038 | L153: 2.417004273 | N153: 0 | O153: 0 | P153: 0
A154: 142 | B154: 0 | C154: 0.4908664653 | D154: 1.37777879 | F154: 0 | G154: 0 | H154: 0 | J154: 0.07189819337 | K154: 0.9142193191 | L154: 1.561281351 | N154: 0 | O154: 0 | P154: 0
A155: 143 | B155: 0 | C155: -0.2933819708 | D155: -0.4786319937 | F155: 0 | G155: 0 | H155: 0 | J155: -0.04782679593 | K155: -0.6320448145 | L155: -1.188710914 | N155: 0 | O155: 0 | P155: 0
A156: 144 | B156: 0 | C156: -0.3215767114 | D156: -1.492084948 | F156: 0 | G156: 0 | H156: 0 | J156: -0.04809802399 | K156: -0.6151317189 | L156: -1.253151018 | N156: 0 | O156: 0 | P156: 0
A157: 145 | B157: 0 | C157: -0.02111061612 | D157: -0.01649712718 | F157: 0 | G157: 0 | H157: 0 | J157: 0.06227993788 | K157: 0.7483836685 | L157: 0.5971067716 | N157: 0 | O157: 0 | P157: 0
A158: 146 | B158: 0 | C158: -1.113060391 | D158: -2.759934477 | F158: 0 | G158: 0 | H158: 0 | J158: -0.04260324479 | K158: -0.7051283321 | L158: -3.024519665 | N158: 0 | O158: 0 | P158: 0
A159: 147 | B159: 0 | C159: 2.227374801 | D159: 5.731350655 | F159: 0 | G159: 0 | H159: 0 | J159: 0.09421977383 | K159: 1.370795354 | L159: 4.119762869 | N159: 0 | O159: 0 | P159: 0
A160: 148 | B160: 0 | C160: 1.068291425 | D160: 2.845688223 | F160: 0 | G160: 0 | H160: 0 | J160: 0.01244970829 | K160: 0.2228285479 | L160: 1.080383639 | N160: 0 | O160: 0 | P160: 0
A161: 149 | B161: 0 | C161: -0.657519838 | D161: -1.778335755 | F161: 0 | G161: 0 | H161: 0 | J161: -0.03621900044 | K161: -0.4512583205 | L161: -0.632331738 | N161: 0 | O161: 0 | P161: 0
A162: 150 | B162: 0 | C162: 0.009824773935 | D162: 0.03451518033 | F162: 0 | G162: 0 | H162: 0 | J162: -0.04920330329 | K162: -0.7347145909 | L162: -2.449360406 | N162: 0 | O162: 0 | P162: 0
A163: 151 | B163: 0 | C163: -3.080624151 | D163: -7.956729156 | F163: 0 | G163: 0 | H163: 0 | J163: -0.1059713674 | K163: -1.475094632 | L163: -3.675737737 | N163: 0 | O163: 0 | P163: 0
A164: 152 | B164: 0 | C164: -0.7251942886 | D164: -2.053040534 | F164: 0 | G164: 0 | H164: 0 | J164: 0.01269765375 | K164: 0.1003841431 | L164: -0.4923412569 | N164: 0 | O164: 0 | P164: 0
A165: 153 | B165: 0 | C165: 0.01082573392 | D165: -0.2750800639 | F165: 0 | G165: 0 | H165: 0 | J165: -0.0907767588 | K165: -1.049881144 | L165: -0.6398339676 | N165: 0 | O165: 0 | P165: 0
A166: 154 | B166: 0 | C166: -1.71289205 | D166: -5.131393049 | F166: 0 | G166: 0 | H166: 0 | J166: 0.01060791968 | K166: 0.0305396787 | L166: -1.191726933 | N166: 0 | O166: 0 | P166: 0
A167: 155 | B167: 0 | C167: -0.03981222902 | D167: -0.104668462 | F167: 0 | G167: 0 | H167: 0 | J167: -0.05121024956 | K167: -0.7221140032 | L167: -1.997294357 | N167: 0 | O167: 0 | P167: 0
A168: 156 | B168: 0 | C168: -2.847313431 | D168: -7.301573897 | F168: 0 | G168: 0 | H168: 0 | J168: -0.08760405736 | K168: -1.257652577 | L168: -3.492817714 | N168: 0 | O168: 0 | P168: 0
A169: 157 | B169: 0 | C169: 1.635979307 | D169: 4.429329975 | F169: 0 | G169: 0 | H169: 0 | J169: 0.01465948147 | K169: 0.2953391618 | L169: 1.722799803 | N169: 0 | O169: 0 | P169: 0
A170: 158 | B170: 0 | C170: -0.3612322287 | D170: -0.6782559103 | F170: 0 | G170: 0 | H170: 0 | J170: -0.05259988821 | K170: -0.6522065391 | L170: -0.9072287298 | N170: 0 | O170: 0 | P170: 0
A171: 159 | B171: 0 | C171: 0.2199028626 | D171: 0.08527705139 | F171: 0 | G171: 0 | H171: 0 | J171: 0.01995392332 | K171: 0.2806820361 | L171: 0.6259104463 | N171: 0 | O171: 0 | P171: 0
A172: 160 | B172: 0 | C172: 1.435083369 | D172: 3.900219059 | F172: 0 | G172: 0 | H172: 0 | J172: 0.01503547437 | K172: 0.2776132188 | L172: 1.391175468 | N172: 0 | O172: 0 | P172: 0
A173: 161 | B173: 0 | C173: 1.763427313 | D173: 5.026732756 | F173: 0 | G173: 0 | H173: 0 | J173: 0.08741021268 | K173: 1.227576912 | L173: 3.302400848 | N173: 0 | O173: 0 | P173: 0
A174: 162 | B174: 0 | C174: -2.733349603 | D174: -7.067144744 | F174: 0 | G174: 0 | H174: 0 | J174: -0.08148437272 | K174: -1.148425752 | L174: -2.998578606 | N174: 0 | O174: 0 | P174: 0
A175: 163 | B175: 0 | C175: 1.568345034 | D175: 4.656525207 | F175: 0 | G175: 0 | H175: 0 | J175: 0.1121670266 | K175: 1.476206227 | L175: 3.174664759 | N175: 0 | O175: 0 | P175: 0
A176: 164 | B176: 0 | C176: 0.5324404275 | D176: 1.2825644 | F176: 0 | G176: 0 | H176: 0 | J176: 0.0116210339 | K176: 0.2098103501 | L176: 1.075969951 | N176: 0 | O176: 0 | P176: 0
A177: 165 | B177: 0 | C177: -0.03659418591 | D177: 0.104940315 | F177: 0 | G177: 0 | H177: 0 | J177: -0.0185002645 | K177: -0.2627737803 | L177: -0.8333098217 | N177: 0 | O177: 0 | P177: 0
A178: 166 | B178: 0 | C178: 0.04615181079 | D178: -0.3822403499 | F178: 0 | G178: 0 | H178: 0 | J178: 0.01272730883 | K178: 0.2309655225 | L178: 0.9984066964 | N178: 0 | O178: 0 | P178: 0
A179: 167 | B179: 0 | C179: -0.8992331648 | D179: -2.983242766 | F179: 0 | G179: 0 | H179: 0 | J179: -0.02332227688 | K179: -0.3529271373 | L179: -1.350485837 | N179: 0 | O179: 0 | P179: 0
A180: 168 | B180: 0 | C180: -0.5182814871 | D180: -0.8169487191 | F180: 0 | G180: 0 | H180: 0 | J180: -0.0323386715 | K180: -0.4865214304 | L180: -1.462178353 | N180: 0 | O180: 0 | P180: 0
A181: 169 | B181: 0 | C181: 0.1393215047 | D181: 0.08849471516 | F181: 0 | G181: 0 | H181: 0 | J181: -0.007400443813 | K181: -0.07053003939 | L181: 0.144851751 | N181: 0 | O181: 0 | P181: 0
A182: 170 | B182: 0 | C182: -1.531748076 | D182: -3.777787168 | F182: 0 | G182: 0 | H182: 0 | J182: -0.01191790957 | K182: -0.3360283413 | L182: -2.46453225 | N182: 0 | O182: 0 | P182: 0
A183: 171 | B183: 0 | C183: 0.9385035412 | D183: 2.669832845 | F183: 0 | G183: 0 | H183: 0 | J183: 0.03023502742 | K183: 0.4551465551 | L183: 1.524706771 | N183: 0 | O183: 0 | P183: 0
A184: 172 | B184: 0 | C184: 2.12977569 | D184: 5.565855643 | F184: 0 | G184: 0 | H184: 0 | J184: 0.1009773638 | K184: 1.456767322 | L184: 4.29146276 | N184: 0 | O184: 0 | P184: 0
A185: 173 | B185: 0 | C185: -0.5687935947 | D185: -1.658956258 | F185: 0 | G185: 0 | H185: 0 | J185: -0.02980176727 | K185: -0.3780148016 | L185: -0.640578905 | N185: 0 | O185: 0 | P185: 0
A186: 174 | B186: 0 | C186: 0.6596432737 | D186: 2.027996577 | F186: 0 | G186: 0 | H186: 0 | J186: -0.08814008253 | K186: -1.015241774 | L186: -0.5794309039 | N186: 0 | O186: 0 | P186: 0
A187: 175 | B187: 0 | C187: 0.7821844683 | D187: 1.851846425 | F187: 0 | G187: 0 | H187: 0 | J187: 0.0172600379 | K187: 0.2887827508 | L187: 1.29011459 | N187: 0 | O187: 0 | P187: 0
A188: 176 | B188: 0 | C188: 0.9679301102 | D188: 2.587207604 | F188: 0 | G188: 0 | H188: 0 | J188: 0.01456284863 | K188: 0.2576570489 | L188: 1.208335949 | N188: 0 | O188: 0 | P188: 0
A189: 177 | B189: 0 | C189: 1.952677011 | D189: 5.054626052 | F189: 0 | G189: 0 | H189: 0 | J189: 0.07389999996 | K189: 1.109832976 | L189: 3.668357353 | N189: 0 | O189: 0 | P189: 0
A190: 178 | B190: 0 | C190: -0.697257847 | D190: -1.596715215 | F190: 0 | G190: 0 | H190: 0 | J190: -0.02068702583 | K190: -0.3893419871 | L190: -2.059280055 | N190: 0 | O190: 0 | P190: 0
A191: 179 | B191: 0 | C191: 1.654629461 | D191: 4.664900366 | F191: 0 | G191: 0 | H191: 0 | J191: -0.0150243124 | K191: 0.001508914994 | L191: 2.162122594 | N191: 0 | O191: 0 | P191: 0
A192: 180 | B192: 0 | C192: -0.4874717806 | D192: -1.161377796 | F192: 0 | G192: 0 | H192: 0 | J192: -0.01549506 | K192: -0.2842024581 | L192: -1.51534742 | N192: 0 | O192: 0 | P192: 0
A193: 181 | B193: 0 | C193: 1.793084359 | D193: 4.629639795 | F193: 0 | G193: 0 | H193: 0 | J193: 0.1030501224 | K193: 1.446148077 | L193: 3.826900247 | N193: 0 | O193: 0 | P193: 0
A194: 182 | B194: 0 | C194: -1.661076968 | D194: -5.000153378 | F194: 0 | G194: 0 | H194: 0 | J194: -0.006005502751 | K194: -0.2404390934 | L194: -2.280137436 | N194: 0 | O194: 0 | P194: 0
A195: 183 | B195: 0 | C195: -1.072999184 | D195: -2.998552703 | F195: 0 | G195: 0 | H195: 0 | J195: 0.002492259045 | K195: -0.06399330252 | L195: -1.156531965 | N195: 0 | O195: 0 | P195: 0
A196: 184 | B196: 0 | C196: 0.4295946164 | D196: 1.014431781 | F196: 0 | G196: 0 | H196: 0 | J196: 0.02639044077 | K196: 0.3711865412 | L196: 1.04011545 | N196: 0 | O196: 0 | P196: 0
A197: 185 | B197: 0 | C197: -0.2593573082 | D197: -0.4388169836 | F197: 0 | G197: 0 | H197: 0 | J197: -0.03738723344 | K197: -0.4168752521 | L197: -0.08444517279 | N197: 0 | O197: 0 | P197: 0
A198: 186 | B198: 0 | C198: 0.5966343511 | D198: 1.911770971 | F198: 0 | G198: 0 | H198: 0 | J198: -0.02883001208 | K198: -0.2871097457 | L198: 0.4744163706 | N198: 0 | O198: 0 | P198: 0
A199: 187 | B199: 0 | C199: -0.5182814871 | D199: -0.8169487191 | F199: 0 | G199: 0 | H199: 0 | J199: -0.0323386715 | K199: -0.4865214304 | L199: -1.462178353 | N199: 0 | O199: 0 | P199: 0
A200: 188 | B200: 0 | C200: 0.5256694506 | D200: 2.175936297 | F200: 0 | G200: 0 | H200: 0 | J200: 0.009905130568 | K200: 0.1755332964 | L200: 0.9070486038 | N200: 0 | O200: 0 | P200: 0
A201: 189 | B201: 0 | C201: 0.5671597435 | D201: 1.107775047 | F201: 0 | G201: 0 | H201: 0 | J201: -0.09031509346 | K201: -1.03097626 | L201: -0.4709282682 | N201: 0 | O201: 0 | P201: 0
A202: 190 | B202: 0 | C202: -0.4819881159 | D202: -0.7858541292 | F202: 0 | G202: 0 | H202: 0 | J202: -0.05077674347 | K202: -0.6915348932 | L202: -1.502974488 | N202: 0 | O202: 0 | P202: 0
... 3010 more rows

Sheet rsklibSimData (hidden)
A1: 679804919f0cf2a3ec53f43aafc797ea0|1|7812431|b1d327e2d29b0d916999fa7a442d5388

Sheet Output
B6: Net Revenue ($M) | G6: ATC ($M)
A7: Game | B7: 2017 | C7: 2018 | D7: 2019 | G7: 2017 | H7: 2018 | I7: 2019
A8: 1 | B8: =_xll.RiskData('Risk Summary'!J$48,$A8)/1000 ->  | C8: =_xll.RiskData('Risk Summary'!K$48,$A8)/1000 ->  | D8: =_xll.RiskData('Risk Summary'!L$48,$A8)/1000 ->  | G8: =(_xll.RiskData(NR_to_Cash!C$18,$A8))/1000 ->  | H8: =(_xll.RiskData(NR_to_Cash!D$18,$A8))/1000 ->  | I8: =(_xll.RiskData(NR_to_Cash!E$18,$A8))/1000 -> 
A9: 2 | B9: =_xll.RiskData('Risk Summary'!J$48,$A9)/1000 ->  | C9: =_xll.RiskData('Risk Summary'!K$48,$A9)/1000 ->  | D9: =_xll.RiskData('Risk Summary'!L$48,$A9)/1000 ->  | G9: =(_xll.RiskData(NR_to_Cash!C$18,$A9))/1000 ->  | H9: =(_xll.RiskData(NR_to_Cash!D$18,$A9))/1000 ->  | I9: =(_xll.RiskData(NR_to_Cash!E$18,$A9))/1000 -> 
A10: 3 | B10: =_xll.RiskData('Risk Summary'!J$48,$A10)/1000 ->  | C10: =_xll.RiskData('Risk Summary'!K$48,$A10)/1000 ->  | D10: =_xll.RiskData('Risk Summary'!L$48,$A10)/1000 ->  | G10: =(_xll.RiskData(NR_to_Cash!C$18,$A10))/1000 ->  | H10: =(_xll.RiskData(NR_to_Cash!D$18,$A10))/1000 ->  | I10: =(_xll.RiskData(NR_to_Cash!E$18,$A10))/1000 -> 
A11: 4 | B11: =_xll.RiskData('Risk Summary'!J$48,$A11)/1000 ->  | C11: =_xll.RiskData('Risk Summary'!K$48,$A11)/1000 ->  | D11: =_xll.RiskData('Risk Summary'!L$48,$A11)/1000 ->  | G11: =(_xll.RiskData(NR_to_Cash!C$18,$A11))/1000 ->  | H11: =(_xll.RiskData(NR_to_Cash!D$18,$A11))/1000 ->  | I11: =(_xll.RiskData(NR_to_Cash!E$18,$A11))/1000 -> 
A12: 5 | B12: =_xll.RiskData('Risk Summary'!J$48,$A12)/1000 ->  | C12: =_xll.RiskData('Risk Summary'!K$48,$A12)/1000 ->  | D12: =_xll.RiskData('Risk Summary'!L$48,$A12)/1000 ->  | G12: =(_xll.RiskData(NR_to_Cash!C$18,$A12))/1000 ->  | H12: =(_xll.RiskData(NR_to_Cash!D$18,$A12))/1000 ->  | I12: =(_xll.RiskData(NR_to_Cash!E$18,$A12))/1000 -> 
A13: 6 | B13: =_xll.RiskData('Risk Summary'!J$48,$A13)/1000 ->  | C13: =_xll.RiskData('Risk Summary'!K$48,$A13)/1000 ->  | D13: =_xll.RiskData('Risk Summary'!L$48,$A13)/1000 ->  | G13: =(_xll.RiskData(NR_to_Cash!C$18,$A13))/1000 ->  | H13: =(_xll.RiskData(NR_to_Cash!D$18,$A13))/1000 ->  | I13: =(_xll.RiskData(NR_to_Cash!E$18,$A13))/1000 -> 
A14: 7 | B14: =_xll.RiskData('Risk Summary'!J$48,$A14)/1000 ->  | C14: =_xll.RiskData('Risk Summary'!K$48,$A14)/1000 ->  | D14: =_xll.RiskData('Risk Summary'!L$48,$A14)/1000 ->  | G14: =(_xll.RiskData(NR_to_Cash!C$18,$A14))/1000 ->  | H14: =(_xll.RiskData(NR_to_Cash!D$18,$A14))/1000 ->  | I14: =(_xll.RiskData(NR_to_Cash!E$18,$A14))/1000 -> 
A15: 8 | B15: =_xll.RiskData('Risk Summary'!J$48,$A15)/1000 ->  | C15: =_xll.RiskData('Risk Summary'!K$48,$A15)/1000 ->  | D15: =_xll.RiskData('Risk Summary'!L$48,$A15)/1000 ->  | G15: =(_xll.RiskData(NR_to_Cash!C$18,$A15))/1000 ->  | H15: =(_xll.RiskData(NR_to_Cash!D$18,$A15))/1000 ->  | I15: =(_xll.RiskData(NR_to_Cash!E$18,$A15))/1000 -> 
A16: 9 | B16: =_xll.RiskData('Risk Summary'!J$48,$A16)/1000 ->  | C16: =_xll.RiskData('Risk Summary'!K$48,$A16)/1000 ->  | D16: =_xll.RiskData('Risk Summary'!L$48,$A16)/1000 ->  | G16: =(_xll.RiskData(NR_to_Cash!C$18,$A16))/1000 ->  | H16: =(_xll.RiskData(NR_to_Cash!D$18,$A16))/1000 ->  | I16: =(_xll.RiskData(NR_to_Cash!E$18,$A16))/1000 -> 
A17: 10 | B17: =_xll.RiskData('Risk Summary'!J$48,$A17)/1000 ->  | C17: =_xll.RiskData('Risk Summary'!K$48,$A17)/1000 ->  | D17: =_xll.RiskData('Risk Summary'!L$48,$A17)/1000 ->  | G17: =(_xll.RiskData(NR_to_Cash!C$18,$A17))/1000 ->  | H17: =(_xll.RiskData(NR_to_Cash!D$18,$A17))/1000 ->  | I17: =(_xll.RiskData(NR_to_Cash!E$18,$A17))/1000 -> 
A18: 11 | B18: =_xll.RiskData('Risk Summary'!J$48,$A18)/1000 ->  | C18: =_xll.RiskData('Risk Summary'!K$48,$A18)/1000 ->  | D18: =_xll.RiskData('Risk Summary'!L$48,$A18)/1000 ->  | G18: =(_xll.RiskData(NR_to_Cash!C$18,$A18))/1000 ->  | H18: =(_xll.RiskData(NR_to_Cash!D$18,$A18))/1000 ->  | I18: =(_xll.RiskData(NR_to_Cash!E$18,$A18))/1000 -> 
A19: 12 | B19: =_xll.RiskData('Risk Summary'!J$48,$A19)/1000 ->  | C19: =_xll.RiskData('Risk Summary'!K$48,$A19)/1000 ->  | D19: =_xll.RiskData('Risk Summary'!L$48,$A19)/1000 ->  | G19: =(_xll.RiskData(NR_to_Cash!C$18,$A19))/1000 ->  | H19: =(_xll.RiskData(NR_to_Cash!D$18,$A19))/1000 ->  | I19: =(_xll.RiskData(NR_to_Cash!E$18,$A19))/1000 -> 
A20: 13 | B20: =_xll.RiskData('Risk Summary'!J$48,$A20)/1000 ->  | C20: =_xll.RiskData('Risk Summary'!K$48,$A20)/1000 ->  | D20: =_xll.RiskData('Risk Summary'!L$48,$A20)/1000 ->  | G20: =(_xll.RiskData(NR_to_Cash!C$18,$A20))/1000 ->  | H20: =(_xll.RiskData(NR_to_Cash!D$18,$A20))/1000 ->  | I20: =(_xll.RiskData(NR_to_Cash!E$18,$A20))/1000 -> 
A21: 14 | B21: =_xll.RiskData('Risk Summary'!J$48,$A21)/1000 ->  | C21: =_xll.RiskData('Risk Summary'!K$48,$A21)/1000 ->  | D21: =_xll.RiskData('Risk Summary'!L$48,$A21)/1000 ->  | G21: =(_xll.RiskData(NR_to_Cash!C$18,$A21))/1000 ->  | H21: =(_xll.RiskData(NR_to_Cash!D$18,$A21))/1000 ->  | I21: =(_xll.RiskData(NR_to_Cash!E$18,$A21))/1000 -> 
A22: 15 | B22: =_xll.RiskData('Risk Summary'!J$48,$A22)/1000 ->  | C22: =_xll.RiskData('Risk Summary'!K$48,$A22)/1000 ->  | D22: =_xll.RiskData('Risk Summary'!L$48,$A22)/1000 ->  | G22: =(_xll.RiskData(NR_to_Cash!C$18,$A22))/1000 ->  | H22: =(_xll.RiskData(NR_to_Cash!D$18,$A22))/1000 ->  | I22: =(_xll.RiskData(NR_to_Cash!E$18,$A22))/1000 -> 
A23: 16 | B23: =_xll.RiskData('Risk Summary'!J$48,$A23)/1000 ->  | C23: =_xll.RiskData('Risk Summary'!K$48,$A23)/1000 ->  | D23: =_xll.RiskData('Risk Summary'!L$48,$A23)/1000 ->  | G23: =(_xll.RiskData(NR_to_Cash!C$18,$A23))/1000 ->  | H23: =(_xll.RiskData(NR_to_Cash!D$18,$A23))/1000 ->  | I23: =(_xll.RiskData(NR_to_Cash!E$18,$A23))/1000 -> 
A24: 17 | B24: =_xll.RiskData('Risk Summary'!J$48,$A24)/1000 ->  | C24: =_xll.RiskData('Risk Summary'!K$48,$A24)/1000 ->  | D24: =_xll.RiskData('Risk Summary'!L$48,$A24)/1000 ->  | G24: =(_xll.RiskData(NR_to_Cash!C$18,$A24))/1000 ->  | H24: =(_xll.RiskData(NR_to_Cash!D$18,$A24))/1000 ->  | I24: =(_xll.RiskData(NR_to_Cash!E$18,$A24))/1000 -> 
A25: 18 | B25: =_xll.RiskData('Risk Summary'!J$48,$A25)/1000 ->  | C25: =_xll.RiskData('Risk Summary'!K$48,$A25)/1000 ->  | D25: =_xll.RiskData('Risk Summary'!L$48,$A25)/1000 ->  | G25: =(_xll.RiskData(NR_to_Cash!C$18,$A25))/1000 ->  | H25: =(_xll.RiskData(NR_to_Cash!D$18,$A25))/1000 ->  | I25: =(_xll.RiskData(NR_to_Cash!E$18,$A25))/1000 -> 
A26: 19 | B26: =_xll.RiskData('Risk Summary'!J$48,$A26)/1000 ->  | C26: =_xll.RiskData('Risk Summary'!K$48,$A26)/1000 ->  | D26: =_xll.RiskData('Risk Summary'!L$48,$A26)/1000 ->  | G26: =(_xll.RiskData(NR_to_Cash!C$18,$A26))/1000 ->  | H26: =(_xll.RiskData(NR_to_Cash!D$18,$A26))/1000 ->  | I26: =(_xll.RiskData(NR_to_Cash!E$18,$A26))/1000 -> 
A27: 20 | B27: =_xll.RiskData('Risk Summary'!J$48,$A27)/1000 ->  | C27: =_xll.RiskData('Risk Summary'!K$48,$A27)/1000 ->  | D27: =_xll.RiskData('Risk Summary'!L$48,$A27)/1000 ->  | G27: =(_xll.RiskData(NR_to_Cash!C$18,$A27))/1000 ->  | H27: =(_xll.RiskData(NR_to_Cash!D$18,$A27))/1000 ->  | I27: =(_xll.RiskData(NR_to_Cash!E$18,$A27))/1000 -> 
A28: 21 | B28: =_xll.RiskData('Risk Summary'!J$48,$A28)/1000 ->  | C28: =_xll.RiskData('Risk Summary'!K$48,$A28)/1000 ->  | D28: =_xll.RiskData('Risk Summary'!L$48,$A28)/1000 ->  | G28: =(_xll.RiskData(NR_to_Cash!C$18,$A28))/1000 ->  | H28: =(_xll.RiskData(NR_to_Cash!D$18,$A28))/1000 ->  | I28: =(_xll.RiskData(NR_to_Cash!E$18,$A28))/1000 -> 
A29: 22 | B29: =_xll.RiskData('Risk Summary'!J$48,$A29)/1000 ->  | C29: =_xll.RiskData('Risk Summary'!K$48,$A29)/1000 ->  | D29: =_xll.RiskData('Risk Summary'!L$48,$A29)/1000 ->  | G29: =(_xll.RiskData(NR_to_Cash!C$18,$A29))/1000 ->  | H29: =(_xll.RiskData(NR_to_Cash!D$18,$A29))/1000 ->  | I29: =(_xll.RiskData(NR_to_Cash!E$18,$A29))/1000 -> 
A30: 23 | B30: =_xll.RiskData('Risk Summary'!J$48,$A30)/1000 ->  | C30: =_xll.RiskData('Risk Summary'!K$48,$A30)/1000 ->  | D30: =_xll.RiskData('Risk Summary'!L$48,$A30)/1000 ->  | G30: =(_xll.RiskData(NR_to_Cash!C$18,$A30))/1000 ->  | H30: =(_xll.RiskData(NR_to_Cash!D$18,$A30))/1000 ->  | I30: =(_xll.RiskData(NR_to_Cash!E$18,$A30))/1000 -> 
A31: 24 | B31: =_xll.RiskData('Risk Summary'!J$48,$A31)/1000 ->  | C31: =_xll.RiskData('Risk Summary'!K$48,$A31)/1000 ->  | D31: =_xll.RiskData('Risk Summary'!L$48,$A31)/1000 ->  | G31: =(_xll.RiskData(NR_to_Cash!C$18,$A31))/1000 ->  | H31: =(_xll.RiskData(NR_to_Cash!D$18,$A31))/1000 ->  | I31: =(_xll.RiskData(NR_to_Cash!E$18,$A31))/1000 -> 
A32: 25 | B32: =_xll.RiskData('Risk Summary'!J$48,$A32)/1000 ->  | C32: =_xll.RiskData('Risk Summary'!K$48,$A32)/1000 ->  | D32: =_xll.RiskData('Risk Summary'!L$48,$A32)/1000 ->  | G32: =(_xll.RiskData(NR_to_Cash!C$18,$A32))/1000 ->  | H32: =(_xll.RiskData(NR_to_Cash!D$18,$A32))/1000 ->  | I32: =(_xll.RiskData(NR_to_Cash!E$18,$A32))/1000 -> 
A33: 26 | B33: =_xll.RiskData('Risk Summary'!J$48,$A33)/1000 ->  | C33: =_xll.RiskData('Risk Summary'!K$48,$A33)/1000 ->  | D33: =_xll.RiskData('Risk Summary'!L$48,$A33)/1000 ->  | G33: =(_xll.RiskData(NR_to_Cash!C$18,$A33))/1000 ->  | H33: =(_xll.RiskData(NR_to_Cash!D$18,$A33))/1000 ->  | I33: =(_xll.RiskData(NR_to_Cash!E$18,$A33))/1000 -> 
A34: 27 | B34: =_xll.RiskData('Risk Summary'!J$48,$A34)/1000 ->  | C34: =_xll.RiskData('Risk Summary'!K$48,$A34)/1000 ->  | D34: =_xll.RiskData('Risk Summary'!L$48,$A34)/1000 ->  | G34: =(_xll.RiskData(NR_to_Cash!C$18,$A34))/1000 ->  | H34: =(_xll.RiskData(NR_to_Cash!D$18,$A34))/1000 ->  | I34: =(_xll.RiskData(NR_to_Cash!E$18,$A34))/1000 -> 
A35: 28 | B35: =_xll.RiskData('Risk Summary'!J$48,$A35)/1000 ->  | C35: =_xll.RiskData('Risk Summary'!K$48,$A35)/1000 ->  | D35: =_xll.RiskData('Risk Summary'!L$48,$A35)/1000 ->  | G35: =(_xll.RiskData(NR_to_Cash!C$18,$A35))/1000 ->  | H35: =(_xll.RiskData(NR_to_Cash!D$18,$A35))/1000 ->  | I35: =(_xll.RiskData(NR_to_Cash!E$18,$A35))/1000 -> 
A36: 29 | B36: =_xll.RiskData('Risk Summary'!J$48,$A36)/1000 ->  | C36: =_xll.RiskData('Risk Summary'!K$48,$A36)/1000 ->  | D36: =_xll.RiskData('Risk Summary'!L$48,$A36)/1000 ->  | G36: =(_xll.RiskData(NR_to_Cash!C$18,$A36))/1000 ->  | H36: =(_xll.RiskData(NR_to_Cash!D$18,$A36))/1000 ->  | I36: =(_xll.RiskData(NR_to_Cash!E$18,$A36))/1000 -> 
A37: 30 | B37: =_xll.RiskData('Risk Summary'!J$48,$A37)/1000 ->  | C37: =_xll.RiskData('Risk Summary'!K$48,$A37)/1000 ->  | D37: =_xll.RiskData('Risk Summary'!L$48,$A37)/1000 ->  | G37: =(_xll.RiskData(NR_to_Cash!C$18,$A37))/1000 ->  | H37: =(_xll.RiskData(NR_to_Cash!D$18,$A37))/1000 ->  | I37: =(_xll.RiskData(NR_to_Cash!E$18,$A37))/1000 -> 
A38: 31 | B38: =_xll.RiskData('Risk Summary'!J$48,$A38)/1000 ->  | C38: =_xll.RiskData('Risk Summary'!K$48,$A38)/1000 ->  | D38: =_xll.RiskData('Risk Summary'!L$48,$A38)/1000 ->  | G38: =(_xll.RiskData(NR_to_Cash!C$18,$A38))/1000 ->  | H38: =(_xll.RiskData(NR_to_Cash!D$18,$A38))/1000 ->  | I38: =(_xll.RiskData(NR_to_Cash!E$18,$A38))/1000 -> 
A39: 32 | B39: =_xll.RiskData('Risk Summary'!J$48,$A39)/1000 ->  | C39: =_xll.RiskData('Risk Summary'!K$48,$A39)/1000 ->  | D39: =_xll.RiskData('Risk Summary'!L$48,$A39)/1000 ->  | G39: =(_xll.RiskData(NR_to_Cash!C$18,$A39))/1000 ->  | H39: =(_xll.RiskData(NR_to_Cash!D$18,$A39))/1000 ->  | I39: =(_xll.RiskData(NR_to_Cash!E$18,$A39))/1000 -> 
A40: 33 | B40: =_xll.RiskData('Risk Summary'!J$48,$A40)/1000 ->  | C40: =_xll.RiskData('Risk Summary'!K$48,$A40)/1000 ->  | D40: =_xll.RiskData('Risk Summary'!L$48,$A40)/1000 ->  | G40: =(_xll.RiskData(NR_to_Cash!C$18,$A40))/1000 ->  | H40: =(_xll.RiskData(NR_to_Cash!D$18,$A40))/1000 ->  | I40: =(_xll.RiskData(NR_to_Cash!E$18,$A40))/1000 -> 
A41: 34 | B41: =_xll.RiskData('Risk Summary'!J$48,$A41)/1000 ->  | C41: =_xll.RiskData('Risk Summary'!K$48,$A41)/1000 ->  | D41: =_xll.RiskData('Risk Summary'!L$48,$A41)/1000 ->  | G41: =(_xll.RiskData(NR_to_Cash!C$18,$A41))/1000 ->  | H41: =(_xll.RiskData(NR_to_Cash!D$18,$A41))/1000 ->  | I41: =(_xll.RiskData(NR_to_Cash!E$18,$A41))/1000 -> 
A42: 35 | B42: =_xll.RiskData('Risk Summary'!J$48,$A42)/1000 ->  | C42: =_xll.RiskData('Risk Summary'!K$48,$A42)/1000 ->  | D42: =_xll.RiskData('Risk Summary'!L$48,$A42)/1000 ->  | G42: =(_xll.RiskData(NR_to_Cash!C$18,$A42))/1000 ->  | H42: =(_xll.RiskData(NR_to_Cash!D$18,$A42))/1000 ->  | I42: =(_xll.RiskData(NR_to_Cash!E$18,$A42))/1000 -> 
A43: 36 | B43: =_xll.RiskData('Risk Summary'!J$48,$A43)/1000 ->  | C43: =_xll.RiskData('Risk Summary'!K$48,$A43)/1000 ->  | D43: =_xll.RiskData('Risk Summary'!L$48,$A43)/1000 ->  | G43: =(_xll.RiskData(NR_to_Cash!C$18,$A43))/1000 ->  | H43: =(_xll.RiskData(NR_to_Cash!D$18,$A43))/1000 ->  | I43: =(_xll.RiskData(NR_to_Cash!E$18,$A43))/1000 -> 
A44: 37 | B44: =_xll.RiskData('Risk Summary'!J$48,$A44)/1000 ->  | C44: =_xll.RiskData('Risk Summary'!K$48,$A44)/1000 ->  | D44: =_xll.RiskData('Risk Summary'!L$48,$A44)/1000 ->  | G44: =(_xll.RiskData(NR_to_Cash!C$18,$A44))/1000 ->  | H44: =(_xll.RiskData(NR_to_Cash!D$18,$A44))/1000 ->  | I44: =(_xll.RiskData(NR_to_Cash!E$18,$A44))/1000 -> 
A45: 38 | B45: =_xll.RiskData('Risk Summary'!J$48,$A45)/1000 ->  | C45: =_xll.RiskData('Risk Summary'!K$48,$A45)/1000 ->  | D45: =_xll.RiskData('Risk Summary'!L$48,$A45)/1000 ->  | G45: =(_xll.RiskData(NR_to_Cash!C$18,$A45))/1000 ->  | H45: =(_xll.RiskData(NR_to_Cash!D$18,$A45))/1000 ->  | I45: =(_xll.RiskData(NR_to_Cash!E$18,$A45))/1000 -> 
A46: 39 | B46: =_xll.RiskData('Risk Summary'!J$48,$A46)/1000 ->  | C46: =_xll.RiskData('Risk Summary'!K$48,$A46)/1000 ->  | D46: =_xll.RiskData('Risk Summary'!L$48,$A46)/1000 ->  | G46: =(_xll.RiskData(NR_to_Cash!C$18,$A46))/1000 ->  | H46: =(_xll.RiskData(NR_to_Cash!D$18,$A46))/1000 ->  | I46: =(_xll.RiskData(NR_to_Cash!E$18,$A46))/1000 -> 
A47: 40 | B47: =_xll.RiskData('Risk Summary'!J$48,$A47)/1000 ->  | C47: =_xll.RiskData('Risk Summary'!K$48,$A47)/1000 ->  | D47: =_xll.RiskData('Risk Summary'!L$48,$A47)/1000 ->  | G47: =(_xll.RiskData(NR_to_Cash!C$18,$A47))/1000 ->  | H47: =(_xll.RiskData(NR_to_Cash!D$18,$A47))/1000 ->  | I47: =(_xll.RiskData(NR_to_Cash!E$18,$A47))/1000 -> 
A48: 41 | B48: =_xll.RiskData('Risk Summary'!J$48,$A48)/1000 ->  | C48: =_xll.RiskData('Risk Summary'!K$48,$A48)/1000 ->  | D48: =_xll.RiskData('Risk Summary'!L$48,$A48)/1000 ->  | G48: =(_xll.RiskData(NR_to_Cash!C$18,$A48))/1000 ->  | H48: =(_xll.RiskData(NR_to_Cash!D$18,$A48))/1000 ->  | I48: =(_xll.RiskData(NR_to_Cash!E$18,$A48))/1000 -> 
A49: 42 | B49: =_xll.RiskData('Risk Summary'!J$48,$A49)/1000 ->  | C49: =_xll.RiskData('Risk Summary'!K$48,$A49)/1000 ->  | D49: =_xll.RiskData('Risk Summary'!L$48,$A49)/1000 ->  | G49: =(_xll.RiskData(NR_to_Cash!C$18,$A49))/1000 ->  | H49: =(_xll.RiskData(NR_to_Cash!D$18,$A49))/1000 ->  | I49: =(_xll.RiskData(NR_to_Cash!E$18,$A49))/1000 -> 
A50: 43 | B50: =_xll.RiskData('Risk Summary'!J$48,$A50)/1000 ->  | C50: =_xll.RiskData('Risk Summary'!K$48,$A50)/1000 ->  | D50: =_xll.RiskData('Risk Summary'!L$48,$A50)/1000 ->  | G50: =(_xll.RiskData(NR_to_Cash!C$18,$A50))/1000 ->  | H50: =(_xll.RiskData(NR_to_Cash!D$18,$A50))/1000 ->  | I50: =(_xll.RiskData(NR_to_Cash!E$18,$A50))/1000 -> 
A51: 44 | B51: =_xll.RiskData('Risk Summary'!J$48,$A51)/1000 ->  | C51: =_xll.RiskData('Risk Summary'!K$48,$A51)/1000 ->  | D51: =_xll.RiskData('Risk Summary'!L$48,$A51)/1000 ->  | G51: =(_xll.RiskData(NR_to_Cash!C$18,$A51))/1000 ->  | H51: =(_xll.RiskData(NR_to_Cash!D$18,$A51))/1000 ->  | I51: =(_xll.RiskData(NR_to_Cash!E$18,$A51))/1000 -> 
A52: 45 | B52: =_xll.RiskData('Risk Summary'!J$48,$A52)/1000 ->  | C52: =_xll.RiskData('Risk Summary'!K$48,$A52)/1000 ->  | D52: =_xll.RiskData('Risk Summary'!L$48,$A52)/1000 ->  | G52: =(_xll.RiskData(NR_to_Cash!C$18,$A52))/1000 ->  | H52: =(_xll.RiskData(NR_to_Cash!D$18,$A52))/1000 ->  | I52: =(_xll.RiskData(NR_to_Cash!E$18,$A52))/1000 -> 
A53: 46 | B53: =_xll.RiskData('Risk Summary'!J$48,$A53)/1000 ->  | C53: =_xll.RiskData('Risk Summary'!K$48,$A53)/1000 ->  | D53: =_xll.RiskData('Risk Summary'!L$48,$A53)/1000 ->  | G53: =(_xll.RiskData(NR_to_Cash!C$18,$A53))/1000 ->  | H53: =(_xll.RiskData(NR_to_Cash!D$18,$A53))/1000 ->  | I53: =(_xll.RiskData(NR_to_Cash!E$18,$A53))/1000 -> 
A54: 47 | B54: =_xll.RiskData('Risk Summary'!J$48,$A54)/1000 ->  | C54: =_xll.RiskData('Risk Summary'!K$48,$A54)/1000 ->  | D54: =_xll.RiskData('Risk Summary'!L$48,$A54)/1000 ->  | G54: =(_xll.RiskData(NR_to_Cash!C$18,$A54))/1000 ->  | H54: =(_xll.RiskData(NR_to_Cash!D$18,$A54))/1000 ->  | I54: =(_xll.RiskData(NR_to_Cash!E$18,$A54))/1000 -> 
A55: 48 | B55: =_xll.RiskData('Risk Summary'!J$48,$A55)/1000 ->  | C55: =_xll.RiskData('Risk Summary'!K$48,$A55)/1000 ->  | D55: =_xll.RiskData('Risk Summary'!L$48,$A55)/1000 ->  | G55: =(_xll.RiskData(NR_to_Cash!C$18,$A55))/1000 ->  | H55: =(_xll.RiskData(NR_to_Cash!D$18,$A55))/1000 ->  | I55: =(_xll.RiskData(NR_to_Cash!E$18,$A55))/1000 -> 
A56: 49 | B56: =_xll.RiskData('Risk Summary'!J$48,$A56)/1000 ->  | C56: =_xll.RiskData('Risk Summary'!K$48,$A56)/1000 ->  | D56: =_xll.RiskData('Risk Summary'!L$48,$A56)/1000 ->  | G56: =(_xll.RiskData(NR_to_Cash!C$18,$A56))/1000 ->  | H56: =(_xll.RiskData(NR_to_Cash!D$18,$A56))/1000 ->  | I56: =(_xll.RiskData(NR_to_Cash!E$18,$A56))/1000 -> 
A57: 50 | B57: =_xll.RiskData('Risk Summary'!J$48,$A57)/1000 ->  | C57: =_xll.RiskData('Risk Summary'!K$48,$A57)/1000 ->  | D57: =_xll.RiskData('Risk Summary'!L$48,$A57)/1000 ->  | G57: =(_xll.RiskData(NR_to_Cash!C$18,$A57))/1000 ->  | H57: =(_xll.RiskData(NR_to_Cash!D$18,$A57))/1000 ->  | I57: =(_xll.RiskData(NR_to_Cash!E$18,$A57))/1000 -> 
A58: 51 | B58: =_xll.RiskData('Risk Summary'!J$48,$A58)/1000 ->  | C58: =_xll.RiskData('Risk Summary'!K$48,$A58)/1000 ->  | D58: =_xll.RiskData('Risk Summary'!L$48,$A58)/1000 ->  | G58: =(_xll.RiskData(NR_to_Cash!C$18,$A58))/1000 ->  | H58: =(_xll.RiskData(NR_to_Cash!D$18,$A58))/1000 ->  | I58: =(_xll.RiskData(NR_to_Cash!E$18,$A58))/1000 -> 
A59: 52 | B59: =_xll.RiskData('Risk Summary'!J$48,$A59)/1000 ->  | C59: =_xll.RiskData('Risk Summary'!K$48,$A59)/1000 ->  | D59: =_xll.RiskData('Risk Summary'!L$48,$A59)/1000 ->  | G59: =(_xll.RiskData(NR_to_Cash!C$18,$A59))/1000 ->  | H59: =(_xll.RiskData(NR_to_Cash!D$18,$A59))/1000 ->  | I59: =(_xll.RiskData(NR_to_Cash!E$18,$A59))/1000 -> 
A60: 53 | B60: =_xll.RiskData('Risk Summary'!J$48,$A60)/1000 ->  | C60: =_xll.RiskData('Risk Summary'!K$48,$A60)/1000 ->  | D60: =_xll.RiskData('Risk Summary'!L$48,$A60)/1000 ->  | G60: =(_xll.RiskData(NR_to_Cash!C$18,$A60))/1000 ->  | H60: =(_xll.RiskData(NR_to_Cash!D$18,$A60))/1000 ->  | I60: =(_xll.RiskData(NR_to_Cash!E$18,$A60))/1000 -> 
A61: 54 | B61: =_xll.RiskData('Risk Summary'!J$48,$A61)/1000 ->  | C61: =_xll.RiskData('Risk Summary'!K$48,$A61)/1000 ->  | D61: =_xll.RiskData('Risk Summary'!L$48,$A61)/1000 ->  | G61: =(_xll.RiskData(NR_to_Cash!C$18,$A61))/1000 ->  | H61: =(_xll.RiskData(NR_to_Cash!D$18,$A61))/1000 ->  | I61: =(_xll.RiskData(NR_to_Cash!E$18,$A61))/1000 -> 
A62: 55 | B62: =_xll.RiskData('Risk Summary'!J$48,$A62)/1000 ->  | C62: =_xll.RiskData('Risk Summary'!K$48,$A62)/1000 ->  | D62: =_xll.RiskData('Risk Summary'!L$48,$A62)/1000 ->  | G62: =(_xll.RiskData(NR_to_Cash!C$18,$A62))/1000 ->  | H62: =(_xll.RiskData(NR_to_Cash!D$18,$A62))/1000 ->  | I62: =(_xll.RiskData(NR_to_Cash!E$18,$A62))/1000 -> 
A63: 56 | B63: =_xll.RiskData('Risk Summary'!J$48,$A63)/1000 ->  | C63: =_xll.RiskData('Risk Summary'!K$48,$A63)/1000 ->  | D63: =_xll.RiskData('Risk Summary'!L$48,$A63)/1000 ->  | G63: =(_xll.RiskData(NR_to_Cash!C$18,$A63))/1000 ->  | H63: =(_xll.RiskData(NR_to_Cash!D$18,$A63))/1000 ->  | I63: =(_xll.RiskData(NR_to_Cash!E$18,$A63))/1000 -> 
A64: 57 | B64: =_xll.RiskData('Risk Summary'!J$48,$A64)/1000 ->  | C64: =_xll.RiskData('Risk Summary'!K$48,$A64)/1000 ->  | D64: =_xll.RiskData('Risk Summary'!L$48,$A64)/1000 ->  | G64: =(_xll.RiskData(NR_to_Cash!C$18,$A64))/1000 ->  | H64: =(_xll.RiskData(NR_to_Cash!D$18,$A64))/1000 ->  | I64: =(_xll.RiskData(NR_to_Cash!E$18,$A64))/1000 -> 
A65: 58 | B65: =_xll.RiskData('Risk Summary'!J$48,$A65)/1000 ->  | C65: =_xll.RiskData('Risk Summary'!K$48,$A65)/1000 ->  | D65: =_xll.RiskData('Risk Summary'!L$48,$A65)/1000 ->  | G65: =(_xll.RiskData(NR_to_Cash!C$18,$A65))/1000 ->  | H65: =(_xll.RiskData(NR_to_Cash!D$18,$A65))/1000 ->  | I65: =(_xll.RiskData(NR_to_Cash!E$18,$A65))/1000 -> 
A66: 59 | B66: =_xll.RiskData('Risk Summary'!J$48,$A66)/1000 ->  | C66: =_xll.RiskData('Risk Summary'!K$48,$A66)/1000 ->  | D66: =_xll.RiskData('Risk Summary'!L$48,$A66)/1000 ->  | G66: =(_xll.RiskData(NR_to_Cash!C$18,$A66))/1000 ->  | H66: =(_xll.RiskData(NR_to_Cash!D$18,$A66))/1000 ->  | I66: =(_xll.RiskData(NR_to_Cash!E$18,$A66))/1000 -> 
A67: 60 | B67: =_xll.RiskData('Risk Summary'!J$48,$A67)/1000 ->  | C67: =_xll.RiskData('Risk Summary'!K$48,$A67)/1000 ->  | D67: =_xll.RiskData('Risk Summary'!L$48,$A67)/1000 ->  | G67: =(_xll.RiskData(NR_to_Cash!C$18,$A67))/1000 ->  | H67: =(_xll.RiskData(NR_to_Cash!D$18,$A67))/1000 ->  | I67: =(_xll.RiskData(NR_to_Cash!E$18,$A67))/1000 -> 
A68: 61 | B68: =_xll.RiskData('Risk Summary'!J$48,$A68)/1000 ->  | C68: =_xll.RiskData('Risk Summary'!K$48,$A68)/1000 ->  | D68: =_xll.RiskData('Risk Summary'!L$48,$A68)/1000 ->  | G68: =(_xll.RiskData(NR_to_Cash!C$18,$A68))/1000 ->  | H68: =(_xll.RiskData(NR_to_Cash!D$18,$A68))/1000 ->  | I68: =(_xll.RiskData(NR_to_Cash!E$18,$A68))/1000 -> 
A69: 62 | B69: =_xll.RiskData('Risk Summary'!J$48,$A69)/1000 ->  | C69: =_xll.RiskData('Risk Summary'!K$48,$A69)/1000 ->  | D69: =_xll.RiskData('Risk Summary'!L$48,$A69)/1000 ->  | G69: =(_xll.RiskData(NR_to_Cash!C$18,$A69))/1000 ->  | H69: =(_xll.RiskData(NR_to_Cash!D$18,$A69))/1000 ->  | I69: =(_xll.RiskData(NR_to_Cash!E$18,$A69))/1000 -> 
A70: 63 | B70: =_xll.RiskData('Risk Summary'!J$48,$A70)/1000 ->  | C70: =_xll.RiskData('Risk Summary'!K$48,$A70)/1000 ->  | D70: =_xll.RiskData('Risk Summary'!L$48,$A70)/1000 ->  | G70: =(_xll.RiskData(NR_to_Cash!C$18,$A70))/1000 ->  | H70: =(_xll.RiskData(NR_to_Cash!D$18,$A70))/1000 ->  | I70: =(_xll.RiskData(NR_to_Cash!E$18,$A70))/1000 -> 
A71: 64 | B71: =_xll.RiskData('Risk Summary'!J$48,$A71)/1000 ->  | C71: =_xll.RiskData('Risk Summary'!K$48,$A71)/1000 ->  | D71: =_xll.RiskData('Risk Summary'!L$48,$A71)/1000 ->  | G71: =(_xll.RiskData(NR_to_Cash!C$18,$A71))/1000 ->  | H71: =(_xll.RiskData(NR_to_Cash!D$18,$A71))/1000 ->  | I71: =(_xll.RiskData(NR_to_Cash!E$18,$A71))/1000 -> 
A72: 65 | B72: =_xll.RiskData('Risk Summary'!J$48,$A72)/1000 ->  | C72: =_xll.RiskData('Risk Summary'!K$48,$A72)/1000 ->  | D72: =_xll.RiskData('Risk Summary'!L$48,$A72)/1000 ->  | G72: =(_xll.RiskData(NR_to_Cash!C$18,$A72))/1000 ->  | H72: =(_xll.RiskData(NR_to_Cash!D$18,$A72))/1000 ->  | I72: =(_xll.RiskData(NR_to_Cash!E$18,$A72))/1000 -> 
A73: 66 | B73: =_xll.RiskData('Risk Summary'!J$48,$A73)/1000 ->  | C73: =_xll.RiskData('Risk Summary'!K$48,$A73)/1000 ->  | D73: =_xll.RiskData('Risk Summary'!L$48,$A73)/1000 ->  | G73: =(_xll.RiskData(NR_to_Cash!C$18,$A73))/1000 ->  | H73: =(_xll.RiskData(NR_to_Cash!D$18,$A73))/1000 ->  | I73: =(_xll.RiskData(NR_to_Cash!E$18,$A73))/1000 -> 
A74: 67 | B74: =_xll.RiskData('Risk Summary'!J$48,$A74)/1000 ->  | C74: =_xll.RiskData('Risk Summary'!K$48,$A74)/1000 ->  | D74: =_xll.RiskData('Risk Summary'!L$48,$A74)/1000 ->  | G74: =(_xll.RiskData(NR_to_Cash!C$18,$A74))/1000 ->  | H74: =(_xll.RiskData(NR_to_Cash!D$18,$A74))/1000 ->  | I74: =(_xll.RiskData(NR_to_Cash!E$18,$A74))/1000 -> 
A75: 68 | B75: =_xll.RiskData('Risk Summary'!J$48,$A75)/1000 ->  | C75: =_xll.RiskData('Risk Summary'!K$48,$A75)/1000 ->  | D75: =_xll.RiskData('Risk Summary'!L$48,$A75)/1000 ->  | G75: =(_xll.RiskData(NR_to_Cash!C$18,$A75))/1000 ->  | H75: =(_xll.RiskData(NR_to_Cash!D$18,$A75))/1000 ->  | I75: =(_xll.RiskData(NR_to_Cash!E$18,$A75))/1000 -> 
A76: 69 | B76: =_xll.RiskData('Risk Summary'!J$48,$A76)/1000 ->  | C76: =_xll.RiskData('Risk Summary'!K$48,$A76)/1000 ->  | D76: =_xll.RiskData('Risk Summary'!L$48,$A76)/1000 ->  | G76: =(_xll.RiskData(NR_to_Cash!C$18,$A76))/1000 ->  | H76: =(_xll.RiskData(NR_to_Cash!D$18,$A76))/1000 ->  | I76: =(_xll.RiskData(NR_to_Cash!E$18,$A76))/1000 -> 
A77: 70 | B77: =_xll.RiskData('Risk Summary'!J$48,$A77)/1000 ->  | C77: =_xll.RiskData('Risk Summary'!K$48,$A77)/1000 ->  | D77: =_xll.RiskData('Risk Summary'!L$48,$A77)/1000 ->  | G77: =(_xll.RiskData(NR_to_Cash!C$18,$A77))/1000 ->  | H77: =(_xll.RiskData(NR_to_Cash!D$18,$A77))/1000 ->  | I77: =(_xll.RiskData(NR_to_Cash!E$18,$A77))/1000 -> 
A78: 71 | B78: =_xll.RiskData('Risk Summary'!J$48,$A78)/1000 ->  | C78: =_xll.RiskData('Risk Summary'!K$48,$A78)/1000 ->  | D78: =_xll.RiskData('Risk Summary'!L$48,$A78)/1000 ->  | G78: =(_xll.RiskData(NR_to_Cash!C$18,$A78))/1000 ->  | H78: =(_xll.RiskData(NR_to_Cash!D$18,$A78))/1000 ->  | I78: =(_xll.RiskData(NR_to_Cash!E$18,$A78))/1000 -> 
A79: 72 | B79: =_xll.RiskData('Risk Summary'!J$48,$A79)/1000 ->  | C79: =_xll.RiskData('Risk Summary'!K$48,$A79)/1000 ->  | D79: =_xll.RiskData('Risk Summary'!L$48,$A79)/1000 ->  | G79: =(_xll.RiskData(NR_to_Cash!C$18,$A79))/1000 ->  | H79: =(_xll.RiskData(NR_to_Cash!D$18,$A79))/1000 ->  | I79: =(_xll.RiskData(NR_to_Cash!E$18,$A79))/1000 -> 
A80: 73 | B80: =_xll.RiskData('Risk Summary'!J$48,$A80)/1000 ->  | C80: =_xll.RiskData('Risk Summary'!K$48,$A80)/1000 ->  | D80: =_xll.RiskData('Risk Summary'!L$48,$A80)/1000 ->  | G80: =(_xll.RiskData(NR_to_Cash!C$18,$A80))/1000 ->  | H80: =(_xll.RiskData(NR_to_Cash!D$18,$A80))/1000 ->  | I80: =(_xll.RiskData(NR_to_Cash!E$18,$A80))/1000 -> 
A81: 74 | B81: =_xll.RiskData('Risk Summary'!J$48,$A81)/1000 ->  | C81: =_xll.RiskData('Risk Summary'!K$48,$A81)/1000 ->  | D81: =_xll.RiskData('Risk Summary'!L$48,$A81)/1000 ->  | G81: =(_xll.RiskData(NR_to_Cash!C$18,$A81))/1000 ->  | H81: =(_xll.RiskData(NR_to_Cash!D$18,$A81))/1000 ->  | I81: =(_xll.RiskData(NR_to_Cash!E$18,$A81))/1000 -> 
A82: 75 | B82: =_xll.RiskData('Risk Summary'!J$48,$A82)/1000 ->  | C82: =_xll.RiskData('Risk Summary'!K$48,$A82)/1000 ->  | D82: =_xll.RiskData('Risk Summary'!L$48,$A82)/1000 ->  | G82: =(_xll.RiskData(NR_to_Cash!C$18,$A82))/1000 ->  | H82: =(_xll.RiskData(NR_to_Cash!D$18,$A82))/1000 ->  | I82: =(_xll.RiskData(NR_to_Cash!E$18,$A82))/1000 -> 
A83: 76 | B83: =_xll.RiskData('Risk Summary'!J$48,$A83)/1000 ->  | C83: =_xll.RiskData('Risk Summary'!K$48,$A83)/1000 ->  | D83: =_xll.RiskData('Risk Summary'!L$48,$A83)/1000 ->  | G83: =(_xll.RiskData(NR_to_Cash!C$18,$A83))/1000 ->  | H83: =(_xll.RiskData(NR_to_Cash!D$18,$A83))/1000 ->  | I83: =(_xll.RiskData(NR_to_Cash!E$18,$A83))/1000 -> 
A84: 77 | B84: =_xll.RiskData('Risk Summary'!J$48,$A84)/1000 ->  | C84: =_xll.RiskData('Risk Summary'!K$48,$A84)/1000 ->  | D84: =_xll.RiskData('Risk Summary'!L$48,$A84)/1000 ->  | G84: =(_xll.RiskData(NR_to_Cash!C$18,$A84))/1000 ->  | H84: =(_xll.RiskData(NR_to_Cash!D$18,$A84))/1000 ->  | I84: =(_xll.RiskData(NR_to_Cash!E$18,$A84))/1000 -> 
A85: 78 | B85: =_xll.RiskData('Risk Summary'!J$48,$A85)/1000 ->  | C85: =_xll.RiskData('Risk Summary'!K$48,$A85)/1000 ->  | D85: =_xll.RiskData('Risk Summary'!L$48,$A85)/1000 ->  | G85: =(_xll.RiskData(NR_to_Cash!C$18,$A85))/1000 ->  | H85: =(_xll.RiskData(NR_to_Cash!D$18,$A85))/1000 ->  | I85: =(_xll.RiskData(NR_to_Cash!E$18,$A85))/1000 -> 
A86: 79 | B86: =_xll.RiskData('Risk Summary'!J$48,$A86)/1000 ->  | C86: =_xll.RiskData('Risk Summary'!K$48,$A86)/1000 ->  | D86: =_xll.RiskData('Risk Summary'!L$48,$A86)/1000 ->  | G86: =(_xll.RiskData(NR_to_Cash!C$18,$A86))/1000 ->  | H86: =(_xll.RiskData(NR_to_Cash!D$18,$A86))/1000 ->  | I86: =(_xll.RiskData(NR_to_Cash!E$18,$A86))/1000 -> 
A87: 80 | B87: =_xll.RiskData('Risk Summary'!J$48,$A87)/1000 ->  | C87: =_xll.RiskData('Risk Summary'!K$48,$A87)/1000 ->  | D87: =_xll.RiskData('Risk Summary'!L$48,$A87)/1000 ->  | G87: =(_xll.RiskData(NR_to_Cash!C$18,$A87))/1000 ->  | H87: =(_xll.RiskData(NR_to_Cash!D$18,$A87))/1000 ->  | I87: =(_xll.RiskData(NR_to_Cash!E$18,$A87))/1000 -> 
A88: 81 | B88: =_xll.RiskData('Risk Summary'!J$48,$A88)/1000 ->  | C88: =_xll.RiskData('Risk Summary'!K$48,$A88)/1000 ->  | D88: =_xll.RiskData('Risk Summary'!L$48,$A88)/1000 ->  | G88: =(_xll.RiskData(NR_to_Cash!C$18,$A88))/1000 ->  | H88: =(_xll.RiskData(NR_to_Cash!D$18,$A88))/1000 ->  | I88: =(_xll.RiskData(NR_to_Cash!E$18,$A88))/1000 -> 
A89: 82 | B89: =_xll.RiskData('Risk Summary'!J$48,$A89)/1000 ->  | C89: =_xll.RiskData('Risk Summary'!K$48,$A89)/1000 ->  | D89: =_xll.RiskData('Risk Summary'!L$48,$A89)/1000 ->  | G89: =(_xll.RiskData(NR_to_Cash!C$18,$A89))/1000 ->  | H89: =(_xll.RiskData(NR_to_Cash!D$18,$A89))/1000 ->  | I89: =(_xll.RiskData(NR_to_Cash!E$18,$A89))/1000 -> 
A90: 83 | B90: =_xll.RiskData('Risk Summary'!J$48,$A90)/1000 ->  | C90: =_xll.RiskData('Risk Summary'!K$48,$A90)/1000 ->  | D90: =_xll.RiskData('Risk Summary'!L$48,$A90)/1000 ->  | G90: =(_xll.RiskData(NR_to_Cash!C$18,$A90))/1000 ->  | H90: =(_xll.RiskData(NR_to_Cash!D$18,$A90))/1000 ->  | I90: =(_xll.RiskData(NR_to_Cash!E$18,$A90))/1000 -> 
A91: 84 | B91: =_xll.RiskData('Risk Summary'!J$48,$A91)/1000 ->  | C91: =_xll.RiskData('Risk Summary'!K$48,$A91)/1000 ->  | D91: =_xll.RiskData('Risk Summary'!L$48,$A91)/1000 ->  | G91: =(_xll.RiskData(NR_to_Cash!C$18,$A91))/1000 ->  | H91: =(_xll.RiskData(NR_to_Cash!D$18,$A91))/1000 ->  | I91: =(_xll.RiskData(NR_to_Cash!E$18,$A91))/1000 -> 
A92: 85 | B92: =_xll.RiskData('Risk Summary'!J$48,$A92)/1000 ->  | C92: =_xll.RiskData('Risk Summary'!K$48,$A92)/1000 ->  | D92: =_xll.RiskData('Risk Summary'!L$48,$A92)/1000 ->  | G92: =(_xll.RiskData(NR_to_Cash!C$18,$A92))/1000 ->  | H92: =(_xll.RiskData(NR_to_Cash!D$18,$A92))/1000 ->  | I92: =(_xll.RiskData(NR_to_Cash!E$18,$A92))/1000 -> 
A93: 86 | B93: =_xll.RiskData('Risk Summary'!J$48,$A93)/1000 ->  | C93: =_xll.RiskData('Risk Summary'!K$48,$A93)/1000 ->  | D93: =_xll.RiskData('Risk Summary'!L$48,$A93)/1000 ->  | G93: =(_xll.RiskData(NR_to_Cash!C$18,$A93))/1000 ->  | H93: =(_xll.RiskData(NR_to_Cash!D$18,$A93))/1000 ->  | I93: =(_xll.RiskData(NR_to_Cash!E$18,$A93))/1000 -> 
A94: 87 | B94: =_xll.RiskData('Risk Summary'!J$48,$A94)/1000 ->  | C94: =_xll.RiskData('Risk Summary'!K$48,$A94)/1000 ->  | D94: =_xll.RiskData('Risk Summary'!L$48,$A94)/1000 ->  | G94: =(_xll.RiskData(NR_to_Cash!C$18,$A94))/1000 ->  | H94: =(_xll.RiskData(NR_to_Cash!D$18,$A94))/1000 ->  | I94: =(_xll.RiskData(NR_to_Cash!E$18,$A94))/1000 -> 
A95: 88 | B95: =_xll.RiskData('Risk Summary'!J$48,$A95)/1000 ->  | C95: =_xll.RiskData('Risk Summary'!K$48,$A95)/1000 ->  | D95: =_xll.RiskData('Risk Summary'!L$48,$A95)/1000 ->  | G95: =(_xll.RiskData(NR_to_Cash!C$18,$A95))/1000 ->  | H95: =(_xll.RiskData(NR_to_Cash!D$18,$A95))/1000 ->  | I95: =(_xll.RiskData(NR_to_Cash!E$18,$A95))/1000 -> 
A96: 89 | B96: =_xll.RiskData('Risk Summary'!J$48,$A96)/1000 ->  | C96: =_xll.RiskData('Risk Summary'!K$48,$A96)/1000 ->  | D96: =_xll.RiskData('Risk Summary'!L$48,$A96)/1000 ->  | G96: =(_xll.RiskData(NR_to_Cash!C$18,$A96))/1000 ->  | H96: =(_xll.RiskData(NR_to_Cash!D$18,$A96))/1000 ->  | I96: =(_xll.RiskData(NR_to_Cash!E$18,$A96))/1000 -> 
A97: 90 | B97: =_xll.RiskData('Risk Summary'!J$48,$A97)/1000 ->  | C97: =_xll.RiskData('Risk Summary'!K$48,$A97)/1000 ->  | D97: =_xll.RiskData('Risk Summary'!L$48,$A97)/1000 ->  | G97: =(_xll.RiskData(NR_to_Cash!C$18,$A97))/1000 ->  | H97: =(_xll.RiskData(NR_to_Cash!D$18,$A97))/1000 ->  | I97: =(_xll.RiskData(NR_to_Cash!E$18,$A97))/1000 -> 
A98: 91 | B98: =_xll.RiskData('Risk Summary'!J$48,$A98)/1000 ->  | C98: =_xll.RiskData('Risk Summary'!K$48,$A98)/1000 ->  | D98: =_xll.RiskData('Risk Summary'!L$48,$A98)/1000 ->  | G98: =(_xll.RiskData(NR_to_Cash!C$18,$A98))/1000 ->  | H98: =(_xll.RiskData(NR_to_Cash!D$18,$A98))/1000 ->  | I98: =(_xll.RiskData(NR_to_Cash!E$18,$A98))/1000 -> 
A99: 92 | B99: =_xll.RiskData('Risk Summary'!J$48,$A99)/1000 ->  | C99: =_xll.RiskData('Risk Summary'!K$48,$A99)/1000 ->  | D99: =_xll.RiskData('Risk Summary'!L$48,$A99)/1000 ->  | G99: =(_xll.RiskData(NR_to_Cash!C$18,$A99))/1000 ->  | H99: =(_xll.RiskData(NR_to_Cash!D$18,$A99))/1000 ->  | I99: =(_xll.RiskData(NR_to_Cash!E$18,$A99))/1000 -> 
A100: 93 | B100: =_xll.RiskData('Risk Summary'!J$48,$A100)/1000 ->  | C100: =_xll.RiskData('Risk Summary'!K$48,$A100)/1000 ->  | D100: =_xll.RiskData('Risk Summary'!L$48,$A100)/1000 ->  | G100: =(_xll.RiskData(NR_to_Cash!C$18,$A100))/1000 ->  | H100: =(_xll.RiskData(NR_to_Cash!D$18,$A100))/1000 ->  | I100: =(_xll.RiskData(NR_to_Cash!E$18,$A100))/1000 -> 
A101: 94 | B101: =_xll.RiskData('Risk Summary'!J$48,$A101)/1000 ->  | C101: =_xll.RiskData('Risk Summary'!K$48,$A101)/1000 ->  | D101: =_xll.RiskData('Risk Summary'!L$48,$A101)/1000 ->  | G101: =(_xll.RiskData(NR_to_Cash!C$18,$A101))/1000 ->  | H101: =(_xll.RiskData(NR_to_Cash!D$18,$A101))/1000 ->  | I101: =(_xll.RiskData(NR_to_Cash!E$18,$A101))/1000 -> 
A102: 95 | B102: =_xll.RiskData('Risk Summary'!J$48,$A102)/1000 ->  | C102: =_xll.RiskData('Risk Summary'!K$48,$A102)/1000 ->  | D102: =_xll.RiskData('Risk Summary'!L$48,$A102)/1000 ->  | G102: =(_xll.RiskData(NR_to_Cash!C$18,$A102))/1000 ->  | H102: =(_xll.RiskData(NR_to_Cash!D$18,$A102))/1000 ->  | I102: =(_xll.RiskData(NR_to_Cash!E$18,$A102))/1000 -> 
A103: 96 | B103: =_xll.RiskData('Risk Summary'!J$48,$A103)/1000 ->  | C103: =_xll.RiskData('Risk Summary'!K$48,$A103)/1000 ->  | D103: =_xll.RiskData('Risk Summary'!L$48,$A103)/1000 ->  | G103: =(_xll.RiskData(NR_to_Cash!C$18,$A103))/1000 ->  | H103: =(_xll.RiskData(NR_to_Cash!D$18,$A103))/1000 ->  | I103: =(_xll.RiskData(NR_to_Cash!E$18,$A103))/1000 -> 
A104: 97 | B104: =_xll.RiskData('Risk Summary'!J$48,$A104)/1000 ->  | C104: =_xll.RiskData('Risk Summary'!K$48,$A104)/1000 ->  | D104: =_xll.RiskData('Risk Summary'!L$48,$A104)/1000 ->  | G104: =(_xll.RiskData(NR_to_Cash!C$18,$A104))/1000 ->  | H104: =(_xll.RiskData(NR_to_Cash!D$18,$A104))/1000 ->  | I104: =(_xll.RiskData(NR_to_Cash!E$18,$A104))/1000 -> 
A105: 98 | B105: =_xll.RiskData('Risk Summary'!J$48,$A105)/1000 ->  | C105: =_xll.RiskData('Risk Summary'!K$48,$A105)/1000 ->  | D105: =_xll.RiskData('Risk Summary'!L$48,$A105)/1000 ->  | G105: =(_xll.RiskData(NR_to_Cash!C$18,$A105))/1000 ->  | H105: =(_xll.RiskData(NR_to_Cash!D$18,$A105))/1000 ->  | I105: =(_xll.RiskData(NR_to_Cash!E$18,$A105))/1000 -> 
A106: 99 | B106: =_xll.RiskData('Risk Summary'!J$48,$A106)/1000 ->  | C106: =_xll.RiskData('Risk Summary'!K$48,$A106)/1000 ->  | D106: =_xll.RiskData('Risk Summary'!L$48,$A106)/1000 ->  | G106: =(_xll.RiskData(NR_to_Cash!C$18,$A106))/1000 ->  | H106: =(_xll.RiskData(NR_to_Cash!D$18,$A106))/1000 ->  | I106: =(_xll.RiskData(NR_to_Cash!E$18,$A106))/1000 -> 
A107: 100 | B107: =_xll.RiskData('Risk Summary'!J$48,$A107)/1000 ->  | C107: =_xll.RiskData('Risk Summary'!K$48,$A107)/1000 ->  | D107: =_xll.RiskData('Risk Summary'!L$48,$A107)/1000 ->  | G107: =(_xll.RiskData(NR_to_Cash!C$18,$A107))/1000 ->  | H107: =(_xll.RiskData(NR_to_Cash!D$18,$A107))/1000 ->  | I107: =(_xll.RiskData(NR_to_Cash!E$18,$A107))/1000 -> 
A108: 101 | B108: =_xll.RiskData('Risk Summary'!J$48,$A108)/1000 ->  | C108: =_xll.RiskData('Risk Summary'!K$48,$A108)/1000 ->  | D108: =_xll.RiskData('Risk Summary'!L$48,$A108)/1000 ->  | G108: =(_xll.RiskData(NR_to_Cash!C$18,$A108))/1000 ->  | H108: =(_xll.RiskData(NR_to_Cash!D$18,$A108))/1000 ->  | I108: =(_xll.RiskData(NR_to_Cash!E$18,$A108))/1000 -> 
A109: 102 | B109: =_xll.RiskData('Risk Summary'!J$48,$A109)/1000 ->  | C109: =_xll.RiskData('Risk Summary'!K$48,$A109)/1000 ->  | D109: =_xll.RiskData('Risk Summary'!L$48,$A109)/1000 ->  | G109: =(_xll.RiskData(NR_to_Cash!C$18,$A109))/1000 ->  | H109: =(_xll.RiskData(NR_to_Cash!D$18,$A109))/1000 ->  | I109: =(_xll.RiskData(NR_to_Cash!E$18,$A109))/1000 -> 
A110: 103 | B110: =_xll.RiskData('Risk Summary'!J$48,$A110)/1000 ->  | C110: =_xll.RiskData('Risk Summary'!K$48,$A110)/1000 ->  | D110: =_xll.RiskData('Risk Summary'!L$48,$A110)/1000 ->  | G110: =(_xll.RiskData(NR_to_Cash!C$18,$A110))/1000 ->  | H110: =(_xll.RiskData(NR_to_Cash!D$18,$A110))/1000 ->  | I110: =(_xll.RiskData(NR_to_Cash!E$18,$A110))/1000 -> 
A111: 104 | B111: =_xll.RiskData('Risk Summary'!J$48,$A111)/1000 ->  | C111: =_xll.RiskData('Risk Summary'!K$48,$A111)/1000 ->  | D111: =_xll.RiskData('Risk Summary'!L$48,$A111)/1000 ->  | G111: =(_xll.RiskData(NR_to_Cash!C$18,$A111))/1000 ->  | H111: =(_xll.RiskData(NR_to_Cash!D$18,$A111))/1000 ->  | I111: =(_xll.RiskData(NR_to_Cash!E$18,$A111))/1000 -> 
A112: 105 | B112: =_xll.RiskData('Risk Summary'!J$48,$A112)/1000 ->  | C112: =_xll.RiskData('Risk Summary'!K$48,$A112)/1000 ->  | D112: =_xll.RiskData('Risk Summary'!L$48,$A112)/1000 ->  | G112: =(_xll.RiskData(NR_to_Cash!C$18,$A112))/1000 ->  | H112: =(_xll.RiskData(NR_to_Cash!D$18,$A112))/1000 ->  | I112: =(_xll.RiskData(NR_to_Cash!E$18,$A112))/1000 -> 
A113: 106 | B113: =_xll.RiskData('Risk Summary'!J$48,$A113)/1000 ->  | C113: =_xll.RiskData('Risk Summary'!K$48,$A113)/1000 ->  | D113: =_xll.RiskData('Risk Summary'!L$48,$A113)/1000 ->  | G113: =(_xll.RiskData(NR_to_Cash!C$18,$A113))/1000 ->  | H113: =(_xll.RiskData(NR_to_Cash!D$18,$A113))/1000 ->  | I113: =(_xll.RiskData(NR_to_Cash!E$18,$A113))/1000 -> 
A114: 107 | B114: =_xll.RiskData('Risk Summary'!J$48,$A114)/1000 ->  | C114: =_xll.RiskData('Risk Summary'!K$48,$A114)/1000 ->  | D114: =_xll.RiskData('Risk Summary'!L$48,$A114)/1000 ->  | G114: =(_xll.RiskData(NR_to_Cash!C$18,$A114))/1000 ->  | H114: =(_xll.RiskData(NR_to_Cash!D$18,$A114))/1000 ->  | I114: =(_xll.RiskData(NR_to_Cash!E$18,$A114))/1000 -> 
A115: 108 | B115: =_xll.RiskData('Risk Summary'!J$48,$A115)/1000 ->  | C115: =_xll.RiskData('Risk Summary'!K$48,$A115)/1000 ->  | D115: =_xll.RiskData('Risk Summary'!L$48,$A115)/1000 ->  | G115: =(_xll.RiskData(NR_to_Cash!C$18,$A115))/1000 ->  | H115: =(_xll.RiskData(NR_to_Cash!D$18,$A115))/1000 ->  | I115: =(_xll.RiskData(NR_to_Cash!E$18,$A115))/1000 -> 
A116: 109 | B116: =_xll.RiskData('Risk Summary'!J$48,$A116)/1000 ->  | C116: =_xll.RiskData('Risk Summary'!K$48,$A116)/1000 ->  | D116: =_xll.RiskData('Risk Summary'!L$48,$A116)/1000 ->  | G116: =(_xll.RiskData(NR_to_Cash!C$18,$A116))/1000 ->  | H116: =(_xll.RiskData(NR_to_Cash!D$18,$A116))/1000 ->  | I116: =(_xll.RiskData(NR_to_Cash!E$18,$A116))/1000 -> 
A117: 110 | B117: =_xll.RiskData('Risk Summary'!J$48,$A117)/1000 ->  | C117: =_xll.RiskData('Risk Summary'!K$48,$A117)/1000 ->  | D117: =_xll.RiskData('Risk Summary'!L$48,$A117)/1000 ->  | G117: =(_xll.RiskData(NR_to_Cash!C$18,$A117))/1000 ->  | H117: =(_xll.RiskData(NR_to_Cash!D$18,$A117))/1000 ->  | I117: =(_xll.RiskData(NR_to_Cash!E$18,$A117))/1000 -> 
A118: 111 | B118: =_xll.RiskData('Risk Summary'!J$48,$A118)/1000 ->  | C118: =_xll.RiskData('Risk Summary'!K$48,$A118)/1000 ->  | D118: =_xll.RiskData('Risk Summary'!L$48,$A118)/1000 ->  | G118: =(_xll.RiskData(NR_to_Cash!C$18,$A118))/1000 ->  | H118: =(_xll.RiskData(NR_to_Cash!D$18,$A118))/1000 ->  | I118: =(_xll.RiskData(NR_to_Cash!E$18,$A118))/1000 -> 
A119: 112 | B119: =_xll.RiskData('Risk Summary'!J$48,$A119)/1000 ->  | C119: =_xll.RiskData('Risk Summary'!K$48,$A119)/1000 ->  | D119: =_xll.RiskData('Risk Summary'!L$48,$A119)/1000 ->  | G119: =(_xll.RiskData(NR_to_Cash!C$18,$A119))/1000 ->  | H119: =(_xll.RiskData(NR_to_Cash!D$18,$A119))/1000 ->  | I119: =(_xll.RiskData(NR_to_Cash!E$18,$A119))/1000 -> 
A120: 113 | B120: =_xll.RiskData('Risk Summary'!J$48,$A120)/1000 ->  | C120: =_xll.RiskData('Risk Summary'!K$48,$A120)/1000 ->  | D120: =_xll.RiskData('Risk Summary'!L$48,$A120)/1000 ->  | G120: =(_xll.RiskData(NR_to_Cash!C$18,$A120))/1000 ->  | H120: =(_xll.RiskData(NR_to_Cash!D$18,$A120))/1000 ->  | I120: =(_xll.RiskData(NR_to_Cash!E$18,$A120))/1000 -> 
A121: 114 | B121: =_xll.RiskData('Risk Summary'!J$48,$A121)/1000 ->  | C121: =_xll.RiskData('Risk Summary'!K$48,$A121)/1000 ->  | D121: =_xll.RiskData('Risk Summary'!L$48,$A121)/1000 ->  | G121: =(_xll.RiskData(NR_to_Cash!C$18,$A121))/1000 ->  | H121: =(_xll.RiskData(NR_to_Cash!D$18,$A121))/1000 ->  | I121: =(_xll.RiskData(NR_to_Cash!E$18,$A121))/1000 -> 
A122: 115 | B122: =_xll.RiskData('Risk Summary'!J$48,$A122)/1000 ->  | C122: =_xll.RiskData('Risk Summary'!K$48,$A122)/1000 ->  | D122: =_xll.RiskData('Risk Summary'!L$48,$A122)/1000 ->  | G122: =(_xll.RiskData(NR_to_Cash!C$18,$A122))/1000 ->  | H122: =(_xll.RiskData(NR_to_Cash!D$18,$A122))/1000 ->  | I122: =(_xll.RiskData(NR_to_Cash!E$18,$A122))/1000 -> 
A123: 116 | B123: =_xll.RiskData('Risk Summary'!J$48,$A123)/1000 ->  | C123: =_xll.RiskData('Risk Summary'!K$48,$A123)/1000 ->  | D123: =_xll.RiskData('Risk Summary'!L$48,$A123)/1000 ->  | G123: =(_xll.RiskData(NR_to_Cash!C$18,$A123))/1000 ->  | H123: =(_xll.RiskData(NR_to_Cash!D$18,$A123))/1000 ->  | I123: =(_xll.RiskData(NR_to_Cash!E$18,$A123))/1000 -> 
A124: 117 | B124: =_xll.RiskData('Risk Summary'!J$48,$A124)/1000 ->  | C124: =_xll.RiskData('Risk Summary'!K$48,$A124)/1000 ->  | D124: =_xll.RiskData('Risk Summary'!L$48,$A124)/1000 ->  | G124: =(_xll.RiskData(NR_to_Cash!C$18,$A124))/1000 ->  | H124: =(_xll.RiskData(NR_to_Cash!D$18,$A124))/1000 ->  | I124: =(_xll.RiskData(NR_to_Cash!E$18,$A124))/1000 -> 
A125: 118 | B125: =_xll.RiskData('Risk Summary'!J$48,$A125)/1000 ->  | C125: =_xll.RiskData('Risk Summary'!K$48,$A125)/1000 ->  | D125: =_xll.RiskData('Risk Summary'!L$48,$A125)/1000 ->  | G125: =(_xll.RiskData(NR_to_Cash!C$18,$A125))/1000 ->  | H125: =(_xll.RiskData(NR_to_Cash!D$18,$A125))/1000 ->  | I125: =(_xll.RiskData(NR_to_Cash!E$18,$A125))/1000 -> 
A126: 119 | B126: =_xll.RiskData('Risk Summary'!J$48,$A126)/1000 ->  | C126: =_xll.RiskData('Risk Summary'!K$48,$A126)/1000 ->  | D126: =_xll.RiskData('Risk Summary'!L$48,$A126)/1000 ->  | G126: =(_xll.RiskData(NR_to_Cash!C$18,$A126))/1000 ->  | H126: =(_xll.RiskData(NR_to_Cash!D$18,$A126))/1000 ->  | I126: =(_xll.RiskData(NR_to_Cash!E$18,$A126))/1000 -> 
A127: 120 | B127: =_xll.RiskData('Risk Summary'!J$48,$A127)/1000 ->  | C127: =_xll.RiskData('Risk Summary'!K$48,$A127)/1000 ->  | D127: =_xll.RiskData('Risk Summary'!L$48,$A127)/1000 ->  | G127: =(_xll.RiskData(NR_to_Cash!C$18,$A127))/1000 ->  | H127: =(_xll.RiskData(NR_to_Cash!D$18,$A127))/1000 ->  | I127: =(_xll.RiskData(NR_to_Cash!E$18,$A127))/1000 -> 
A128: 121 | B128: =_xll.RiskData('Risk Summary'!J$48,$A128)/1000 ->  | C128: =_xll.RiskData('Risk Summary'!K$48,$A128)/1000 ->  | D128: =_xll.RiskData('Risk Summary'!L$48,$A128)/1000 ->  | G128: =(_xll.RiskData(NR_to_Cash!C$18,$A128))/1000 ->  | H128: =(_xll.RiskData(NR_to_Cash!D$18,$A128))/1000 ->  | I128: =(_xll.RiskData(NR_to_Cash!E$18,$A128))/1000 -> 
A129: 122 | B129: =_xll.RiskData('Risk Summary'!J$48,$A129)/1000 ->  | C129: =_xll.RiskData('Risk Summary'!K$48,$A129)/1000 ->  | D129: =_xll.RiskData('Risk Summary'!L$48,$A129)/1000 ->  | G129: =(_xll.RiskData(NR_to_Cash!C$18,$A129))/1000 ->  | H129: =(_xll.RiskData(NR_to_Cash!D$18,$A129))/1000 ->  | I129: =(_xll.RiskData(NR_to_Cash!E$18,$A129))/1000 -> 
A130: 123 | B130: =_xll.RiskData('Risk Summary'!J$48,$A130)/1000 ->  | C130: =_xll.RiskData('Risk Summary'!K$48,$A130)/1000 ->  | D130: =_xll.RiskData('Risk Summary'!L$48,$A130)/1000 ->  | G130: =(_xll.RiskData(NR_to_Cash!C$18,$A130))/1000 ->  | H130: =(_xll.RiskData(NR_to_Cash!D$18,$A130))/1000 ->  | I130: =(_xll.RiskData(NR_to_Cash!E$18,$A130))/1000 -> 
A131: 124 | B131: =_xll.RiskData('Risk Summary'!J$48,$A131)/1000 ->  | C131: =_xll.RiskData('Risk Summary'!K$48,$A131)/1000 ->  | D131: =_xll.RiskData('Risk Summary'!L$48,$A131)/1000 ->  | G131: =(_xll.RiskData(NR_to_Cash!C$18,$A131))/1000 ->  | H131: =(_xll.RiskData(NR_to_Cash!D$18,$A131))/1000 ->  | I131: =(_xll.RiskData(NR_to_Cash!E$18,$A131))/1000 -> 
A132: 125 | B132: =_xll.RiskData('Risk Summary'!J$48,$A132)/1000 ->  | C132: =_xll.RiskData('Risk Summary'!K$48,$A132)/1000 ->  | D132: =_xll.RiskData('Risk Summary'!L$48,$A132)/1000 ->  | G132: =(_xll.RiskData(NR_to_Cash!C$18,$A132))/1000 ->  | H132: =(_xll.RiskData(NR_to_Cash!D$18,$A132))/1000 ->  | I132: =(_xll.RiskData(NR_to_Cash!E$18,$A132))/1000 -> 
A133: 126 | B133: =_xll.RiskData('Risk Summary'!J$48,$A133)/1000 ->  | C133: =_xll.RiskData('Risk Summary'!K$48,$A133)/1000 ->  | D133: =_xll.RiskData('Risk Summary'!L$48,$A133)/1000 ->  | G133: =(_xll.RiskData(NR_to_Cash!C$18,$A133))/1000 ->  | H133: =(_xll.RiskData(NR_to_Cash!D$18,$A133))/1000 ->  | I133: =(_xll.RiskData(NR_to_Cash!E$18,$A133))/1000 -> 
A134: 127 | B134: =_xll.RiskData('Risk Summary'!J$48,$A134)/1000 ->  | C134: =_xll.RiskData('Risk Summary'!K$48,$A134)/1000 ->  | D134: =_xll.RiskData('Risk Summary'!L$48,$A134)/1000 ->  | G134: =(_xll.RiskData(NR_to_Cash!C$18,$A134))/1000 ->  | H134: =(_xll.RiskData(NR_to_Cash!D$18,$A134))/1000 ->  | I134: =(_xll.RiskData(NR_to_Cash!E$18,$A134))/1000 -> 
A135: 128 | B135: =_xll.RiskData('Risk Summary'!J$48,$A135)/1000 ->  | C135: =_xll.RiskData('Risk Summary'!K$48,$A135)/1000 ->  | D135: =_xll.RiskData('Risk Summary'!L$48,$A135)/1000 ->  | G135: =(_xll.RiskData(NR_to_Cash!C$18,$A135))/1000 ->  | H135: =(_xll.RiskData(NR_to_Cash!D$18,$A135))/1000 ->  | I135: =(_xll.RiskData(NR_to_Cash!E$18,$A135))/1000 -> 
A136: 129 | B136: =_xll.RiskData('Risk Summary'!J$48,$A136)/1000 ->  | C136: =_xll.RiskData('Risk Summary'!K$48,$A136)/1000 ->  | D136: =_xll.RiskData('Risk Summary'!L$48,$A136)/1000 ->  | G136: =(_xll.RiskData(NR_to_Cash!C$18,$A136))/1000 ->  | H136: =(_xll.RiskData(NR_to_Cash!D$18,$A136))/1000 ->  | I136: =(_xll.RiskData(NR_to_Cash!E$18,$A136))/1000 -> 
A137: 130 | B137: =_xll.RiskData('Risk Summary'!J$48,$A137)/1000 ->  | C137: =_xll.RiskData('Risk Summary'!K$48,$A137)/1000 ->  | D137: =_xll.RiskData('Risk Summary'!L$48,$A137)/1000 ->  | G137: =(_xll.RiskData(NR_to_Cash!C$18,$A137))/1000 ->  | H137: =(_xll.RiskData(NR_to_Cash!D$18,$A137))/1000 ->  | I137: =(_xll.RiskData(NR_to_Cash!E$18,$A137))/1000 -> 
A138: 131 | B138: =_xll.RiskData('Risk Summary'!J$48,$A138)/1000 ->  | C138: =_xll.RiskData('Risk Summary'!K$48,$A138)/1000 ->  | D138: =_xll.RiskData('Risk Summary'!L$48,$A138)/1000 ->  | G138: =(_xll.RiskData(NR_to_Cash!C$18,$A138))/1000 ->  | H138: =(_xll.RiskData(NR_to_Cash!D$18,$A138))/1000 ->  | I138: =(_xll.RiskData(NR_to_Cash!E$18,$A138))/1000 -> 
A139: 132 | B139: =_xll.RiskData('Risk Summary'!J$48,$A139)/1000 ->  | C139: =_xll.RiskData('Risk Summary'!K$48,$A139)/1000 ->  | D139: =_xll.RiskData('Risk Summary'!L$48,$A139)/1000 ->  | G139: =(_xll.RiskData(NR_to_Cash!C$18,$A139))/1000 ->  | H139: =(_xll.RiskData(NR_to_Cash!D$18,$A139))/1000 ->  | I139: =(_xll.RiskData(NR_to_Cash!E$18,$A139))/1000 -> 
A140: 133 | B140: =_xll.RiskData('Risk Summary'!J$48,$A140)/1000 ->  | C140: =_xll.RiskData('Risk Summary'!K$48,$A140)/1000 ->  | D140: =_xll.RiskData('Risk Summary'!L$48,$A140)/1000 ->  | G140: =(_xll.RiskData(NR_to_Cash!C$18,$A140))/1000 ->  | H140: =(_xll.RiskData(NR_to_Cash!D$18,$A140))/1000 ->  | I140: =(_xll.RiskData(NR_to_Cash!E$18,$A140))/1000 -> 
A141: 134 | B141: =_xll.RiskData('Risk Summary'!J$48,$A141)/1000 ->  | C141: =_xll.RiskData('Risk Summary'!K$48,$A141)/1000 ->  | D141: =_xll.RiskData('Risk Summary'!L$48,$A141)/1000 ->  | G141: =(_xll.RiskData(NR_to_Cash!C$18,$A141))/1000 ->  | H141: =(_xll.RiskData(NR_to_Cash!D$18,$A141))/1000 ->  | I141: =(_xll.RiskData(NR_to_Cash!E$18,$A141))/1000 -> 
A142: 135 | B142: =_xll.RiskData('Risk Summary'!J$48,$A142)/1000 ->  | C142: =_xll.RiskData('Risk Summary'!K$48,$A142)/1000 ->  | D142: =_xll.RiskData('Risk Summary'!L$48,$A142)/1000 ->  | G142: =(_xll.RiskData(NR_to_Cash!C$18,$A142))/1000 ->  | H142: =(_xll.RiskData(NR_to_Cash!D$18,$A142))/1000 ->  | I142: =(_xll.RiskData(NR_to_Cash!E$18,$A142))/1000 -> 
A143: 136 | B143: =_xll.RiskData('Risk Summary'!J$48,$A143)/1000 ->  | C143: =_xll.RiskData('Risk Summary'!K$48,$A143)/1000 ->  | D143: =_xll.RiskData('Risk Summary'!L$48,$A143)/1000 ->  | G143: =(_xll.RiskData(NR_to_Cash!C$18,$A143))/1000 ->  | H143: =(_xll.RiskData(NR_to_Cash!D$18,$A143))/1000 ->  | I143: =(_xll.RiskData(NR_to_Cash!E$18,$A143))/1000 -> 
A144: 137 | B144: =_xll.RiskData('Risk Summary'!J$48,$A144)/1000 ->  | C144: =_xll.RiskData('Risk Summary'!K$48,$A144)/1000 ->  | D144: =_xll.RiskData('Risk Summary'!L$48,$A144)/1000 ->  | G144: =(_xll.RiskData(NR_to_Cash!C$18,$A144))/1000 ->  | H144: =(_xll.RiskData(NR_to_Cash!D$18,$A144))/1000 ->  | I144: =(_xll.RiskData(NR_to_Cash!E$18,$A144))/1000 -> 
A145: 138 | B145: =_xll.RiskData('Risk Summary'!J$48,$A145)/1000 ->  | C145: =_xll.RiskData('Risk Summary'!K$48,$A145)/1000 ->  | D145: =_xll.RiskData('Risk Summary'!L$48,$A145)/1000 ->  | G145: =(_xll.RiskData(NR_to_Cash!C$18,$A145))/1000 ->  | H145: =(_xll.RiskData(NR_to_Cash!D$18,$A145))/1000 ->  | I145: =(_xll.RiskData(NR_to_Cash!E$18,$A145))/1000 -> 
A146: 139 | B146: =_xll.RiskData('Risk Summary'!J$48,$A146)/1000 ->  | C146: =_xll.RiskData('Risk Summary'!K$48,$A146)/1000 ->  | D146: =_xll.RiskData('Risk Summary'!L$48,$A146)/1000 ->  | G146: =(_xll.RiskData(NR_to_Cash!C$18,$A146))/1000 ->  | H146: =(_xll.RiskData(NR_to_Cash!D$18,$A146))/1000 ->  | I146: =(_xll.RiskData(NR_to_Cash!E$18,$A146))/1000 -> 
A147: 140 | B147: =_xll.RiskData('Risk Summary'!J$48,$A147)/1000 ->  | C147: =_xll.RiskData('Risk Summary'!K$48,$A147)/1000 ->  | D147: =_xll.RiskData('Risk Summary'!L$48,$A147)/1000 ->  | G147: =(_xll.RiskData(NR_to_Cash!C$18,$A147))/1000 ->  | H147: =(_xll.RiskData(NR_to_Cash!D$18,$A147))/1000 ->  | I147: =(_xll.RiskData(NR_to_Cash!E$18,$A147))/1000 -> 
A148: 141 | B148: =_xll.RiskData('Risk Summary'!J$48,$A148)/1000 ->  | C148: =_xll.RiskData('Risk Summary'!K$48,$A148)/1000 ->  | D148: =_xll.RiskData('Risk Summary'!L$48,$A148)/1000 ->  | G148: =(_xll.RiskData(NR_to_Cash!C$18,$A148))/1000 ->  | H148: =(_xll.RiskData(NR_to_Cash!D$18,$A148))/1000 ->  | I148: =(_xll.RiskData(NR_to_Cash!E$18,$A148))/1000 -> 
A149: 142 | B149: =_xll.RiskData('Risk Summary'!J$48,$A149)/1000 ->  | C149: =_xll.RiskData('Risk Summary'!K$48,$A149)/1000 ->  | D149: =_xll.RiskData('Risk Summary'!L$48,$A149)/1000 ->  | G149: =(_xll.RiskData(NR_to_Cash!C$18,$A149))/1000 ->  | H149: =(_xll.RiskData(NR_to_Cash!D$18,$A149))/1000 ->  | I149: =(_xll.RiskData(NR_to_Cash!E$18,$A149))/1000 -> 
A150: 143 | B150: =_xll.RiskData('Risk Summary'!J$48,$A150)/1000 ->  | C150: =_xll.RiskData('Risk Summary'!K$48,$A150)/1000 ->  | D150: =_xll.RiskData('Risk Summary'!L$48,$A150)/1000 ->  | G150: =(_xll.RiskData(NR_to_Cash!C$18,$A150))/1000 ->  | H150: =(_xll.RiskData(NR_to_Cash!D$18,$A150))/1000 ->  | I150: =(_xll.RiskData(NR_to_Cash!E$18,$A150))/1000 -> 
A151: 144 | B151: =_xll.RiskData('Risk Summary'!J$48,$A151)/1000 ->  | C151: =_xll.RiskData('Risk Summary'!K$48,$A151)/1000 ->  | D151: =_xll.RiskData('Risk Summary'!L$48,$A151)/1000 ->  | G151: =(_xll.RiskData(NR_to_Cash!C$18,$A151))/1000 ->  | H151: =(_xll.RiskData(NR_to_Cash!D$18,$A151))/1000 ->  | I151: =(_xll.RiskData(NR_to_Cash!E$18,$A151))/1000 -> 
A152: 145 | B152: =_xll.RiskData('Risk Summary'!J$48,$A152)/1000 ->  | C152: =_xll.RiskData('Risk Summary'!K$48,$A152)/1000 ->  | D152: =_xll.RiskData('Risk Summary'!L$48,$A152)/1000 ->  | G152: =(_xll.RiskData(NR_to_Cash!C$18,$A152))/1000 ->  | H152: =(_xll.RiskData(NR_to_Cash!D$18,$A152))/1000 ->  | I152: =(_xll.RiskData(NR_to_Cash!E$18,$A152))/1000 -> 
A153: 146 | B153: =_xll.RiskData('Risk Summary'!J$48,$A153)/1000 ->  | C153: =_xll.RiskData('Risk Summary'!K$48,$A153)/1000 ->  | D153: =_xll.RiskData('Risk Summary'!L$48,$A153)/1000 ->  | G153: =(_xll.RiskData(NR_to_Cash!C$18,$A153))/1000 ->  | H153: =(_xll.RiskData(NR_to_Cash!D$18,$A153))/1000 ->  | I153: =(_xll.RiskData(NR_to_Cash!E$18,$A153))/1000 -> 
A154: 147 | B154: =_xll.RiskData('Risk Summary'!J$48,$A154)/1000 ->  | C154: =_xll.RiskData('Risk Summary'!K$48,$A154)/1000 ->  | D154: =_xll.RiskData('Risk Summary'!L$48,$A154)/1000 ->  | G154: =(_xll.RiskData(NR_to_Cash!C$18,$A154))/1000 ->  | H154: =(_xll.RiskData(NR_to_Cash!D$18,$A154))/1000 ->  | I154: =(_xll.RiskData(NR_to_Cash!E$18,$A154))/1000 -> 
A155: 148 | B155: =_xll.RiskData('Risk Summary'!J$48,$A155)/1000 ->  | C155: =_xll.RiskData('Risk Summary'!K$48,$A155)/1000 ->  | D155: =_xll.RiskData('Risk Summary'!L$48,$A155)/1000 ->  | G155: =(_xll.RiskData(NR_to_Cash!C$18,$A155))/1000 ->  | H155: =(_xll.RiskData(NR_to_Cash!D$18,$A155))/1000 ->  | I155: =(_xll.RiskData(NR_to_Cash!E$18,$A155))/1000 -> 
A156: 149 | B156: =_xll.RiskData('Risk Summary'!J$48,$A156)/1000 ->  | C156: =_xll.RiskData('Risk Summary'!K$48,$A156)/1000 ->  | D156: =_xll.RiskData('Risk Summary'!L$48,$A156)/1000 ->  | G156: =(_xll.RiskData(NR_to_Cash!C$18,$A156))/1000 ->  | H156: =(_xll.RiskData(NR_to_Cash!D$18,$A156))/1000 ->  | I156: =(_xll.RiskData(NR_to_Cash!E$18,$A156))/1000 -> 
A157: 150 | B157: =_xll.RiskData('Risk Summary'!J$48,$A157)/1000 ->  | C157: =_xll.RiskData('Risk Summary'!K$48,$A157)/1000 ->  | D157: =_xll.RiskData('Risk Summary'!L$48,$A157)/1000 ->  | G157: =(_xll.RiskData(NR_to_Cash!C$18,$A157))/1000 ->  | H157: =(_xll.RiskData(NR_to_Cash!D$18,$A157))/1000 ->  | I157: =(_xll.RiskData(NR_to_Cash!E$18,$A157))/1000 -> 
A158: 151 | B158: =_xll.RiskData('Risk Summary'!J$48,$A158)/1000 ->  | C158: =_xll.RiskData('Risk Summary'!K$48,$A158)/1000 ->  | D158: =_xll.RiskData('Risk Summary'!L$48,$A158)/1000 ->  | G158: =(_xll.RiskData(NR_to_Cash!C$18,$A158))/1000 ->  | H158: =(_xll.RiskData(NR_to_Cash!D$18,$A158))/1000 ->  | I158: =(_xll.RiskData(NR_to_Cash!E$18,$A158))/1000 -> 
A159: 152 | B159: =_xll.RiskData('Risk Summary'!J$48,$A159)/1000 ->  | C159: =_xll.RiskData('Risk Summary'!K$48,$A159)/1000 ->  | D159: =_xll.RiskData('Risk Summary'!L$48,$A159)/1000 ->  | G159: =(_xll.RiskData(NR_to_Cash!C$18,$A159))/1000 ->  | H159: =(_xll.RiskData(NR_to_Cash!D$18,$A159))/1000 ->  | I159: =(_xll.RiskData(NR_to_Cash!E$18,$A159))/1000 -> 
A160: 153 | B160: =_xll.RiskData('Risk Summary'!J$48,$A160)/1000 ->  | C160: =_xll.RiskData('Risk Summary'!K$48,$A160)/1000 ->  | D160: =_xll.RiskData('Risk Summary'!L$48,$A160)/1000 ->  | G160: =(_xll.RiskData(NR_to_Cash!C$18,$A160))/1000 ->  | H160: =(_xll.RiskData(NR_to_Cash!D$18,$A160))/1000 ->  | I160: =(_xll.RiskData(NR_to_Cash!E$18,$A160))/1000 -> 
A161: 154 | B161: =_xll.RiskData('Risk Summary'!J$48,$A161)/1000 ->  | C161: =_xll.RiskData('Risk Summary'!K$48,$A161)/1000 ->  | D161: =_xll.RiskData('Risk Summary'!L$48,$A161)/1000 ->  | G161: =(_xll.RiskData(NR_to_Cash!C$18,$A161))/1000 ->  | H161: =(_xll.RiskData(NR_to_Cash!D$18,$A161))/1000 ->  | I161: =(_xll.RiskData(NR_to_Cash!E$18,$A161))/1000 -> 
A162: 155 | B162: =_xll.RiskData('Risk Summary'!J$48,$A162)/1000 ->  | C162: =_xll.RiskData('Risk Summary'!K$48,$A162)/1000 ->  | D162: =_xll.RiskData('Risk Summary'!L$48,$A162)/1000 ->  | G162: =(_xll.RiskData(NR_to_Cash!C$18,$A162))/1000 ->  | H162: =(_xll.RiskData(NR_to_Cash!D$18,$A162))/1000 ->  | I162: =(_xll.RiskData(NR_to_Cash!E$18,$A162))/1000 -> 
A163: 156 | B163: =_xll.RiskData('Risk Summary'!J$48,$A163)/1000 ->  | C163: =_xll.RiskData('Risk Summary'!K$48,$A163)/1000 ->  | D163: =_xll.RiskData('Risk Summary'!L$48,$A163)/1000 ->  | G163: =(_xll.RiskData(NR_to_Cash!C$18,$A163))/1000 ->  | H163: =(_xll.RiskData(NR_to_Cash!D$18,$A163))/1000 ->  | I163: =(_xll.RiskData(NR_to_Cash!E$18,$A163))/1000 -> 
A164: 157 | B164: =_xll.RiskData('Risk Summary'!J$48,$A164)/1000 ->  | C164: =_xll.RiskData('Risk Summary'!K$48,$A164)/1000 ->  | D164: =_xll.RiskData('Risk Summary'!L$48,$A164)/1000 ->  | G164: =(_xll.RiskData(NR_to_Cash!C$18,$A164))/1000 ->  | H164: =(_xll.RiskData(NR_to_Cash!D$18,$A164))/1000 ->  | I164: =(_xll.RiskData(NR_to_Cash!E$18,$A164))/1000 -> 
A165: 158 | B165: =_xll.RiskData('Risk Summary'!J$48,$A165)/1000 ->  | C165: =_xll.RiskData('Risk Summary'!K$48,$A165)/1000 ->  | D165: =_xll.RiskData('Risk Summary'!L$48,$A165)/1000 ->  | G165: =(_xll.RiskData(NR_to_Cash!C$18,$A165))/1000 ->  | H165: =(_xll.RiskData(NR_to_Cash!D$18,$A165))/1000 ->  | I165: =(_xll.RiskData(NR_to_Cash!E$18,$A165))/1000 -> 
A166: 159 | B166: =_xll.RiskData('Risk Summary'!J$48,$A166)/1000 ->  | C166: =_xll.RiskData('Risk Summary'!K$48,$A166)/1000 ->  | D166: =_xll.RiskData('Risk Summary'!L$48,$A166)/1000 ->  | G166: =(_xll.RiskData(NR_to_Cash!C$18,$A166))/1000 ->  | H166: =(_xll.RiskData(NR_to_Cash!D$18,$A166))/1000 ->  | I166: =(_xll.RiskData(NR_to_Cash!E$18,$A166))/1000 -> 
A167: 160 | B167: =_xll.RiskData('Risk Summary'!J$48,$A167)/1000 ->  | C167: =_xll.RiskData('Risk Summary'!K$48,$A167)/1000 ->  | D167: =_xll.RiskData('Risk Summary'!L$48,$A167)/1000 ->  | G167: =(_xll.RiskData(NR_to_Cash!C$18,$A167))/1000 ->  | H167: =(_xll.RiskData(NR_to_Cash!D$18,$A167))/1000 ->  | I167: =(_xll.RiskData(NR_to_Cash!E$18,$A167))/1000 -> 
A168: 161 | B168: =_xll.RiskData('Risk Summary'!J$48,$A168)/1000 ->  | C168: =_xll.RiskData('Risk Summary'!K$48,$A168)/1000 ->  | D168: =_xll.RiskData('Risk Summary'!L$48,$A168)/1000 ->  | G168: =(_xll.RiskData(NR_to_Cash!C$18,$A168))/1000 ->  | H168: =(_xll.RiskData(NR_to_Cash!D$18,$A168))/1000 ->  | I168: =(_xll.RiskData(NR_to_Cash!E$18,$A168))/1000 -> 
A169: 162 | B169: =_xll.RiskData('Risk Summary'!J$48,$A169)/1000 ->  | C169: =_xll.RiskData('Risk Summary'!K$48,$A169)/1000 ->  | D169: =_xll.RiskData('Risk Summary'!L$48,$A169)/1000 ->  | G169: =(_xll.RiskData(NR_to_Cash!C$18,$A169))/1000 ->  | H169: =(_xll.RiskData(NR_to_Cash!D$18,$A169))/1000 ->  | I169: =(_xll.RiskData(NR_to_Cash!E$18,$A169))/1000 -> 
A170: 163 | B170: =_xll.RiskData('Risk Summary'!J$48,$A170)/1000 ->  | C170: =_xll.RiskData('Risk Summary'!K$48,$A170)/1000 ->  | D170: =_xll.RiskData('Risk Summary'!L$48,$A170)/1000 ->  | G170: =(_xll.RiskData(NR_to_Cash!C$18,$A170))/1000 ->  | H170: =(_xll.RiskData(NR_to_Cash!D$18,$A170))/1000 ->  | I170: =(_xll.RiskData(NR_to_Cash!E$18,$A170))/1000 -> 
A171: 164 | B171: =_xll.RiskData('Risk Summary'!J$48,$A171)/1000 ->  | C171: =_xll.RiskData('Risk Summary'!K$48,$A171)/1000 ->  | D171: =_xll.RiskData('Risk Summary'!L$48,$A171)/1000 ->  | G171: =(_xll.RiskData(NR_to_Cash!C$18,$A171))/1000 ->  | H171: =(_xll.RiskData(NR_to_Cash!D$18,$A171))/1000 ->  | I171: =(_xll.RiskData(NR_to_Cash!E$18,$A171))/1000 -> 
A172: 165 | B172: =_xll.RiskData('Risk Summary'!J$48,$A172)/1000 ->  | C172: =_xll.RiskData('Risk Summary'!K$48,$A172)/1000 ->  | D172: =_xll.RiskData('Risk Summary'!L$48,$A172)/1000 ->  | G172: =(_xll.RiskData(NR_to_Cash!C$18,$A172))/1000 ->  | H172: =(_xll.RiskData(NR_to_Cash!D$18,$A172))/1000 ->  | I172: =(_xll.RiskData(NR_to_Cash!E$18,$A172))/1000 -> 
A173: 166 | B173: =_xll.RiskData('Risk Summary'!J$48,$A173)/1000 ->  | C173: =_xll.RiskData('Risk Summary'!K$48,$A173)/1000 ->  | D173: =_xll.RiskData('Risk Summary'!L$48,$A173)/1000 ->  | G173: =(_xll.RiskData(NR_to_Cash!C$18,$A173))/1000 ->  | H173: =(_xll.RiskData(NR_to_Cash!D$18,$A173))/1000 ->  | I173: =(_xll.RiskData(NR_to_Cash!E$18,$A173))/1000 -> 
A174: 167 | B174: =_xll.RiskData('Risk Summary'!J$48,$A174)/1000 ->  | C174: =_xll.RiskData('Risk Summary'!K$48,$A174)/1000 ->  | D174: =_xll.RiskData('Risk Summary'!L$48,$A174)/1000 ->  | G174: =(_xll.RiskData(NR_to_Cash!C$18,$A174))/1000 ->  | H174: =(_xll.RiskData(NR_to_Cash!D$18,$A174))/1000 ->  | I174: =(_xll.RiskData(NR_to_Cash!E$18,$A174))/1000 -> 
A175: 168 | B175: =_xll.RiskData('Risk Summary'!J$48,$A175)/1000 ->  | C175: =_xll.RiskData('Risk Summary'!K$48,$A175)/1000 ->  | D175: =_xll.RiskData('Risk Summary'!L$48,$A175)/1000 ->  | G175: =(_xll.RiskData(NR_to_Cash!C$18,$A175))/1000 ->  | H175: =(_xll.RiskData(NR_to_Cash!D$18,$A175))/1000 ->  | I175: =(_xll.RiskData(NR_to_Cash!E$18,$A175))/1000 -> 
A176: 169 | B176: =_xll.RiskData('Risk Summary'!J$48,$A176)/1000 ->  | C176: =_xll.RiskData('Risk Summary'!K$48,$A176)/1000 ->  | D176: =_xll.RiskData('Risk Summary'!L$48,$A176)/1000 ->  | G176: =(_xll.RiskData(NR_to_Cash!C$18,$A176))/1000 ->  | H176: =(_xll.RiskData(NR_to_Cash!D$18,$A176))/1000 ->  | I176: =(_xll.RiskData(NR_to_Cash!E$18,$A176))/1000 -> 
A177: 170 | B177: =_xll.RiskData('Risk Summary'!J$48,$A177)/1000 ->  | C177: =_xll.RiskData('Risk Summary'!K$48,$A177)/1000 ->  | D177: =_xll.RiskData('Risk Summary'!L$48,$A177)/1000 ->  | G177: =(_xll.RiskData(NR_to_Cash!C$18,$A177))/1000 ->  | H177: =(_xll.RiskData(NR_to_Cash!D$18,$A177))/1000 ->  | I177: =(_xll.RiskData(NR_to_Cash!E$18,$A177))/1000 -> 
A178: 171 | B178: =_xll.RiskData('Risk Summary'!J$48,$A178)/1000 ->  | C178: =_xll.RiskData('Risk Summary'!K$48,$A178)/1000 ->  | D178: =_xll.RiskData('Risk Summary'!L$48,$A178)/1000 ->  | G178: =(_xll.RiskData(NR_to_Cash!C$18,$A178))/1000 ->  | H178: =(_xll.RiskData(NR_to_Cash!D$18,$A178))/1000 ->  | I178: =(_xll.RiskData(NR_to_Cash!E$18,$A178))/1000 -> 
A179: 172 | B179: =_xll.RiskData('Risk Summary'!J$48,$A179)/1000 ->  | C179: =_xll.RiskData('Risk Summary'!K$48,$A179)/1000 ->  | D179: =_xll.RiskData('Risk Summary'!L$48,$A179)/1000 ->  | G179: =(_xll.RiskData(NR_to_Cash!C$18,$A179))/1000 ->  | H179: =(_xll.RiskData(NR_to_Cash!D$18,$A179))/1000 ->  | I179: =(_xll.RiskData(NR_to_Cash!E$18,$A179))/1000 -> 
A180: 173 | B180: =_xll.RiskData('Risk Summary'!J$48,$A180)/1000 ->  | C180: =_xll.RiskData('Risk Summary'!K$48,$A180)/1000 ->  | D180: =_xll.RiskData('Risk Summary'!L$48,$A180)/1000 ->  | G180: =(_xll.RiskData(NR_to_Cash!C$18,$A180))/1000 ->  | H180: =(_xll.RiskData(NR_to_Cash!D$18,$A180))/1000 ->  | I180: =(_xll.RiskData(NR_to_Cash!E$18,$A180))/1000 -> 
A181: 174 | B181: =_xll.RiskData('Risk Summary'!J$48,$A181)/1000 ->  | C181: =_xll.RiskData('Risk Summary'!K$48,$A181)/1000 ->  | D181: =_xll.RiskData('Risk Summary'!L$48,$A181)/1000 ->  | G181: =(_xll.RiskData(NR_to_Cash!C$18,$A181))/1000 ->  | H181: =(_xll.RiskData(NR_to_Cash!D$18,$A181))/1000 ->  | I181: =(_xll.RiskData(NR_to_Cash!E$18,$A181))/1000 -> 
A182: 175 | B182: =_xll.RiskData('Risk Summary'!J$48,$A182)/1000 ->  | C182: =_xll.RiskData('Risk Summary'!K$48,$A182)/1000 ->  | D182: =_xll.RiskData('Risk Summary'!L$48,$A182)/1000 ->  | G182: =(_xll.RiskData(NR_to_Cash!C$18,$A182))/1000 ->  | H182: =(_xll.RiskData(NR_to_Cash!D$18,$A182))/1000 ->  | I182: =(_xll.RiskData(NR_to_Cash!E$18,$A182))/1000 -> 
A183: 176 | B183: =_xll.RiskData('Risk Summary'!J$48,$A183)/1000 ->  | C183: =_xll.RiskData('Risk Summary'!K$48,$A183)/1000 ->  | D183: =_xll.RiskData('Risk Summary'!L$48,$A183)/1000 ->  | G183: =(_xll.RiskData(NR_to_Cash!C$18,$A183))/1000 ->  | H183: =(_xll.RiskData(NR_to_Cash!D$18,$A183))/1000 ->  | I183: =(_xll.RiskData(NR_to_Cash!E$18,$A183))/1000 -> 
A184: 177 | B184: =_xll.RiskData('Risk Summary'!J$48,$A184)/1000 ->  | C184: =_xll.RiskData('Risk Summary'!K$48,$A184)/1000 ->  | D184: =_xll.RiskData('Risk Summary'!L$48,$A184)/1000 ->  | G184: =(_xll.RiskData(NR_to_Cash!C$18,$A184))/1000 ->  | H184: =(_xll.RiskData(NR_to_Cash!D$18,$A184))/1000 ->  | I184: =(_xll.RiskData(NR_to_Cash!E$18,$A184))/1000 -> 
A185: 178 | B185: =_xll.RiskData('Risk Summary'!J$48,$A185)/1000 ->  | C185: =_xll.RiskData('Risk Summary'!K$48,$A185)/1000 ->  | D185: =_xll.RiskData('Risk Summary'!L$48,$A185)/1000 ->  | G185: =(_xll.RiskData(NR_to_Cash!C$18,$A185))/1000 ->  | H185: =(_xll.RiskData(NR_to_Cash!D$18,$A185))/1000 ->  | I185: =(_xll.RiskData(NR_to_Cash!E$18,$A185))/1000 -> 
A186: 179 | B186: =_xll.RiskData('Risk Summary'!J$48,$A186)/1000 ->  | C186: =_xll.RiskData('Risk Summary'!K$48,$A186)/1000 ->  | D186: =_xll.RiskData('Risk Summary'!L$48,$A186)/1000 ->  | G186: =(_xll.RiskData(NR_to_Cash!C$18,$A186))/1000 ->  | H186: =(_xll.RiskData(NR_to_Cash!D$18,$A186))/1000 ->  | I186: =(_xll.RiskData(NR_to_Cash!E$18,$A186))/1000 -> 
A187: 180 | B187: =_xll.RiskData('Risk Summary'!J$48,$A187)/1000 ->  | C187: =_xll.RiskData('Risk Summary'!K$48,$A187)/1000 ->  | D187: =_xll.RiskData('Risk Summary'!L$48,$A187)/1000 ->  | G187: =(_xll.RiskData(NR_to_Cash!C$18,$A187))/1000 ->  | H187: =(_xll.RiskData(NR_to_Cash!D$18,$A187))/1000 ->  | I187: =(_xll.RiskData(NR_to_Cash!E$18,$A187))/1000 -> 
A188: 181 | B188: =_xll.RiskData('Risk Summary'!J$48,$A188)/1000 ->  | C188: =_xll.RiskData('Risk Summary'!K$48,$A188)/1000 ->  | D188: =_xll.RiskData('Risk Summary'!L$48,$A188)/1000 ->  | G188: =(_xll.RiskData(NR_to_Cash!C$18,$A188))/1000 ->  | H188: =(_xll.RiskData(NR_to_Cash!D$18,$A188))/1000 ->  | I188: =(_xll.RiskData(NR_to_Cash!E$18,$A188))/1000 -> 
A189: 182 | B189: =_xll.RiskData('Risk Summary'!J$48,$A189)/1000 ->  | C189: =_xll.RiskData('Risk Summary'!K$48,$A189)/1000 ->  | D189: =_xll.RiskData('Risk Summary'!L$48,$A189)/1000 ->  | G189: =(_xll.RiskData(NR_to_Cash!C$18,$A189))/1000 ->  | H189: =(_xll.RiskData(NR_to_Cash!D$18,$A189))/1000 ->  | I189: =(_xll.RiskData(NR_to_Cash!E$18,$A189))/1000 -> 
A190: 183 | B190: =_xll.RiskData('Risk Summary'!J$48,$A190)/1000 ->  | C190: =_xll.RiskData('Risk Summary'!K$48,$A190)/1000 ->  | D190: =_xll.RiskData('Risk Summary'!L$48,$A190)/1000 ->  | G190: =(_xll.RiskData(NR_to_Cash!C$18,$A190))/1000 ->  | H190: =(_xll.RiskData(NR_to_Cash!D$18,$A190))/1000 ->  | I190: =(_xll.RiskData(NR_to_Cash!E$18,$A190))/1000 -> 
A191: 184 | B191: =_xll.RiskData('Risk Summary'!J$48,$A191)/1000 ->  | C191: =_xll.RiskData('Risk Summary'!K$48,$A191)/1000 ->  | D191: =_xll.RiskData('Risk Summary'!L$48,$A191)/1000 ->  | G191: =(_xll.RiskData(NR_to_Cash!C$18,$A191))/1000 ->  | H191: =(_xll.RiskData(NR_to_Cash!D$18,$A191))/1000 ->  | I191: =(_xll.RiskData(NR_to_Cash!E$18,$A191))/1000 -> 
A192: 185 | B192: =_xll.RiskData('Risk Summary'!J$48,$A192)/1000 ->  | C192: =_xll.RiskData('Risk Summary'!K$48,$A192)/1000 ->  | D192: =_xll.RiskData('Risk Summary'!L$48,$A192)/1000 ->  | G192: =(_xll.RiskData(NR_to_Cash!C$18,$A192))/1000 ->  | H192: =(_xll.RiskData(NR_to_Cash!D$18,$A192))/1000 ->  | I192: =(_xll.RiskData(NR_to_Cash!E$18,$A192))/1000 -> 
A193: 186 | B193: =_xll.RiskData('Risk Summary'!J$48,$A193)/1000 ->  | C193: =_xll.RiskData('Risk Summary'!K$48,$A193)/1000 ->  | D193: =_xll.RiskData('Risk Summary'!L$48,$A193)/1000 ->  | G193: =(_xll.RiskData(NR_to_Cash!C$18,$A193))/1000 ->  | H193: =(_xll.RiskData(NR_to_Cash!D$18,$A193))/1000 ->  | I193: =(_xll.RiskData(NR_to_Cash!E$18,$A193))/1000 -> 
A194: 187 | B194: =_xll.RiskData('Risk Summary'!J$48,$A194)/1000 ->  | C194: =_xll.RiskData('Risk Summary'!K$48,$A194)/1000 ->  | D194: =_xll.RiskData('Risk Summary'!L$48,$A194)/1000 ->  | G194: =(_xll.RiskData(NR_to_Cash!C$18,$A194))/1000 ->  | H194: =(_xll.RiskData(NR_to_Cash!D$18,$A194))/1000 ->  | I194: =(_xll.RiskData(NR_to_Cash!E$18,$A194))/1000 -> 
A195: 188 | B195: =_xll.RiskData('Risk Summary'!J$48,$A195)/1000 ->  | C195: =_xll.RiskData('Risk Summary'!K$48,$A195)/1000 ->  | D195: =_xll.RiskData('Risk Summary'!L$48,$A195)/1000 ->  | G195: =(_xll.RiskData(NR_to_Cash!C$18,$A195))/1000 ->  | H195: =(_xll.RiskData(NR_to_Cash!D$18,$A195))/1000 ->  | I195: =(_xll.RiskData(NR_to_Cash!E$18,$A195))/1000 -> 
A196: 189 | B196: =_xll.RiskData('Risk Summary'!J$48,$A196)/1000 ->  | C196: =_xll.RiskData('Risk Summary'!K$48,$A196)/1000 ->  | D196: =_xll.RiskData('Risk Summary'!L$48,$A196)/1000 ->  | G196: =(_xll.RiskData(NR_to_Cash!C$18,$A196))/1000 ->  | H196: =(_xll.RiskData(NR_to_Cash!D$18,$A196))/1000 ->  | I196: =(_xll.RiskData(NR_to_Cash!E$18,$A196))/1000 -> 
A197: 190 | B197: =_xll.RiskData('Risk Summary'!J$48,$A197)/1000 ->  | C197: =_xll.RiskData('Risk Summary'!K$48,$A197)/1000 ->  | D197: =_xll.RiskData('Risk Summary'!L$48,$A197)/1000 ->  | G197: =(_xll.RiskData(NR_to_Cash!C$18,$A197))/1000 ->  | H197: =(_xll.RiskData(NR_to_Cash!D$18,$A197))/1000 ->  | I197: =(_xll.RiskData(NR_to_Cash!E$18,$A197))/1000 -> 
A198: 191 | B198: =_xll.RiskData('Risk Summary'!J$48,$A198)/1000 ->  | C198: =_xll.RiskData('Risk Summary'!K$48,$A198)/1000 ->  | D198: =_xll.RiskData('Risk Summary'!L$48,$A198)/1000 ->  | G198: =(_xll.RiskData(NR_to_Cash!C$18,$A198))/1000 ->  | H198: =(_xll.RiskData(NR_to_Cash!D$18,$A198))/1000 ->  | I198: =(_xll.RiskData(NR_to_Cash!E$18,$A198))/1000 -> 
A199: 192 | B199: =_xll.RiskData('Risk Summary'!J$48,$A199)/1000 ->  | C199: =_xll.RiskData('Risk Summary'!K$48,$A199)/1000 ->  | D199: =_xll.RiskData('Risk Summary'!L$48,$A199)/1000 ->  | G199: =(_xll.RiskData(NR_to_Cash!C$18,$A199))/1000 ->  | H199: =(_xll.RiskData(NR_to_Cash!D$18,$A199))/1000 ->  | I199: =(_xll.RiskData(NR_to_Cash!E$18,$A199))/1000 -> 
A200: 193 | B200: =_xll.RiskData('Risk Summary'!J$48,$A200)/1000 ->  | C200: =_xll.RiskData('Risk Summary'!K$48,$A200)/1000 ->  | D200: =_xll.RiskData('Risk Summary'!L$48,$A200)/1000 ->  | G200: =(_xll.RiskData(NR_to_Cash!C$18,$A200))/1000 ->  | H200: =(_xll.RiskData(NR_to_Cash!D$18,$A200))/1000 ->  | I200: =(_xll.RiskData(NR_to_Cash!E$18,$A200))/1000 -> 
A201: 194 | B201: =_xll.RiskData('Risk Summary'!J$48,$A201)/1000 ->  | C201: =_xll.RiskData('Risk Summary'!K$48,$A201)/1000 ->  | D201: =_xll.RiskData('Risk Summary'!L$48,$A201)/1000 ->  | G201: =(_xll.RiskData(NR_to_Cash!C$18,$A201))/1000 ->  | H201: =(_xll.RiskData(NR_to_Cash!D$18,$A201))/1000 ->  | I201: =(_xll.RiskData(NR_to_Cash!E$18,$A201))/1000 -> 
A202: 195 | B202: =_xll.RiskData('Risk Summary'!J$48,$A202)/1000 ->  | C202: =_xll.RiskData('Risk Summary'!K$48,$A202)/1000 ->  | D202: =_xll.RiskData('Risk Summary'!L$48,$A202)/1000 ->  | G202: =(_xll.RiskData(NR_to_Cash!C$18,$A202))/1000 ->  | H202: =(_xll.RiskData(NR_to_Cash!D$18,$A202))/1000 ->  | I202: =(_xll.RiskData(NR_to_Cash!E$18,$A202))/1000 -> 
A203: 196 | B203: =_xll.RiskData('Risk Summary'!J$48,$A203)/1000 ->  | C203: =_xll.RiskData('Risk Summary'!K$48,$A203)/1000 ->  | D203: =_xll.RiskData('Risk Summary'!L$48,$A203)/1000 ->  | G203: =(_xll.RiskData(NR_to_Cash!C$18,$A203))/1000 ->  | H203: =(_xll.RiskData(NR_to_Cash!D$18,$A203))/1000 ->  | I203: =(_xll.RiskData(NR_to_Cash!E$18,$A203))/1000 -> 
A204: 197 | B204: =_xll.RiskData('Risk Summary'!J$48,$A204)/1000 ->  | C204: =_xll.RiskData('Risk Summary'!K$48,$A204)/1000 ->  | D204: =_xll.RiskData('Risk Summary'!L$48,$A204)/1000 ->  | G204: =(_xll.RiskData(NR_to_Cash!C$18,$A204))/1000 ->  | H204: =(_xll.RiskData(NR_to_Cash!D$18,$A204))/1000 ->  | I204: =(_xll.RiskData(NR_to_Cash!E$18,$A204))/1000 -> 
A205: 198 | B205: =_xll.RiskData('Risk Summary'!J$48,$A205)/1000 ->  | C205: =_xll.RiskData('Risk Summary'!K$48,$A205)/1000 ->  | D205: =_xll.RiskData('Risk Summary'!L$48,$A205)/1000 ->  | G205: =(_xll.RiskData(NR_to_Cash!C$18,$A205))/1000 ->  | H205: =(_xll.RiskData(NR_to_Cash!D$18,$A205))/1000 ->  | I205: =(_xll.RiskData(NR_to_Cash!E$18,$A205))/1000 -> 
... 3008 more rows

Sheet Study Table
B1: A | C1: B | D1: C | E1: D | F1: E | G1: F | H1: G
B2: P-NORM Risk Summary ($000,000) | J2: Source Data
B3: Study Section | C3: Risk Title | D3: Fiscal Year | E3: Pro Forma / Rev. Req. | F3: 5th Percentile | G3: Mean | H3: 95th Percentile | J3: ProForma | K3: Risk
A4: 1 | B4: 4.1.2.1.1 | C4: CGS Operations and Maintenance (O&M) | D4: 2017 | E4: =J4/1000 -> 318.513718 | F4: =_xll.RiskPercentile($K4,5%)/1000 ->  | G4: =_xll.RiskMean($K4)/1000 ->  | H4: =_xll.RiskPercentile($K4,95%)/1000 ->  | J4: ='Risk Summary'!$C$8 -> 318513.718 | K4: ='Risk Summary'!$D$8 -> 
A5: 2 | D5: 2018 | E5: 270.146 | F5: =_xll.RiskPercentile($K5,5%)/1000 ->  | G5: =_xll.RiskMean($K5)/1000 ->  | H5: =_xll.RiskPercentile($K5,95%)/1000 ->  | J5: ='Risk Summary'!$E$8 -> 270146 | K5: ='Risk Summary'!$F$8 -> 
A6: 3 | D6: 2019 | E6: 327.354 | F6: =_xll.RiskPercentile($K6,5%)/1000 ->  | G6: =_xll.RiskMean($K6)/1000 ->  | H6: =_xll.RiskPercentile($K6,95%)/1000 ->  | J6: ='Risk Summary'!$G$8 -> 327354 | K6: ='Risk Summary'!$H$8 -> 
A7: 4 | B7: 4.1.2.1.2 | C7: U.S. Army Corps of Engineers (Corps) and Bureau of Reclamation (Reclamation) O&M | D7: 2017 | E7: 401.602 | F7: =_xll.RiskPercentile($K7,5%)/1000 ->  | G7: =_xll.RiskMean($K7)/1000 ->  | H7: =_xll.RiskPercentile($K7,95%)/1000 ->  | J7: ='Risk Summary'!$C$9+'Risk Summary'!$C$10 -> 401602 | K7: ='Risk Summary'!$D$9+'Risk Summary'!$D$10 -> 
A8: 5 | D8: 2018 | E8: 420.666 | F8: =_xll.RiskPercentile($K8,5%)/1000 ->  | G8: =_xll.RiskMean($K8)/1000 ->  | H8: =_xll.RiskPercentile($K8,95%)/1000 ->  | J8: ='Risk Summary'!$E$9+'Risk Summary'!$E$10 -> 420666 | K8: ='Risk Summary'!$F$9+'Risk Summary'!$F$10 -> 
A9: 6 | D9: 2019 | E9: 418.68 | F9: =_xll.RiskPercentile($K9,5%)/1000 ->  | G9: =_xll.RiskMean($K9)/1000 ->  | H9: =_xll.RiskPercentile($K9,95%)/1000 ->  | J9: ='Risk Summary'!$G$9+'Risk Summary'!$G$10 -> 418680 | K9: ='Risk Summary'!$H$9+'Risk Summary'!$H$10 -> 
A10: 7 | B10: 4.1.2.1.3 | C10: Conservation Expense | D10: 2017 | E10: 76.323449 | F10: =_xll.RiskPercentile($K10,5%)/1000 ->  | G10: =_xll.RiskMean($K10)/1000 ->  | H10: =_xll.RiskPercentile($K10,95%)/1000 ->  | J10: ='Risk Summary'!$C$13 -> 76323.449 | K10: ='Risk Summary'!$D$13 -> 
A11: 8 | D11: 2018 | E11: 71.785 | F11: =_xll.RiskPercentile($K11,5%)/1000 ->  | G11: =_xll.RiskMean($K11)/1000 ->  | H11: =_xll.RiskPercentile($K11,95%)/1000 ->  | J11: ='Risk Summary'!$E$13 -> 71785 | K11: ='Risk Summary'!$F$13 -> 
A12: 9 | D12: 2019 | E12: 71.785 | F12: =_xll.RiskPercentile($K12,5%)/1000 ->  | G12: =_xll.RiskMean($K12)/1000 ->  | H12: =_xll.RiskPercentile($K12,95%)/1000 ->  | J12: ='Risk Summary'!$G$13 -> 71785 | K12: ='Risk Summary'!$H$13 -> 
A13: 10 | B13: 4.1.2.1.4 | C13: Spokane Settlement | D13: 2017 | E13: 16.666778 | F13: =_xll.RiskPercentile($K13,5%)/1000 ->  | G13: =_xll.RiskMean($K13)/1000 ->  | H13: =_xll.RiskPercentile($K13,95%)/1000 ->  | J13: ='Risk Summary'!$C$11 -> 16666.778 | K13: ='Risk Summary'!$D$11 -> 
A14: 11 | D14: 2018 | E14: 22.612478 | F14: =_xll.RiskPercentile($K14,5%)/1000 ->  | G14: =_xll.RiskMean($K14)/1000 ->  | H14: =_xll.RiskPercentile($K14,95%)/1000 ->  | J14: ='Risk Summary'!$E$11 -> 22612.478 | K14: ='Risk Summary'!$F$11 -> 
A15: 12 | D15: 2019 | E15: 22.99689 | F15: =_xll.RiskPercentile($K15,5%)/1000 ->  | G15: =_xll.RiskMean($K15)/1000 ->  | H15: =_xll.RiskPercentile($K15,95%)/1000 ->  | J15: ='Risk Summary'!$G$11 -> 22996.89 | K15: ='Risk Summary'!$H$11 -> 
A16: 13 | B16: 4.1.2.1.5 | C16: Power Services Transmission Acquisition and Ancillary Services | D16: 2017 | E16: 95.182302 | F16: =_xll.RiskPercentile($K16,5%)/1000 ->  | G16: =_xll.RiskMean($K16)/1000 ->  | H16: =_xll.RiskPercentile($K16,95%)/1000 ->  | J16: ='Risk Summary'!$C$16+'Risk Summary'!$C$17 -> 95182.302 | K16: ='Risk Summary'!$D$16+'Risk Summary'!$D$17 -> 
A17: 14 | D17: 2018 | E17: 94.009345 | F17: =_xll.RiskPercentile($K17,5%)/1000 ->  | G17: =_xll.RiskMean($K17)/1000 ->  | H17: =_xll.RiskPercentile($K17,95%)/1000 ->  | J17: ='Risk Summary'!$E$16+'Risk Summary'!$E$17 -> 94009.345 | K17: ='Risk Summary'!$F$16+'Risk Summary'!$F$17 -> 
A18: 15 | D18: 2019 | E18: 94.807804 | F18: =_xll.RiskPercentile($K18,5%)/1000 ->  | G18: =_xll.RiskMean($K18)/1000 ->  | H18: =_xll.RiskPercentile($K18,95%)/1000 ->  | J18: ='Risk Summary'!$G$16+'Risk Summary'!$G$17 -> 94807.804 | K18: ='Risk Summary'!$H$16+'Risk Summary'!$H$17 -> 
A19: 16 | B19: 4.1.2.1.6 | C19: Power Services Internal Operations Expenses | D19: 2017 | E19: 138.669283 | F19: =_xll.RiskPercentile($K19,5%)/1000 ->  | G19: =_xll.RiskMean($K19)/1000 ->  | H19: =_xll.RiskPercentile($K19,95%)/1000 ->  | J19: =SUM('Risk Summary'!$C$19:'Risk Summary'!$C$32) -> 138669.283 | K19: =SUM('Risk Summary'!$D$19:'Risk Summary'!$D$32) -> 
A20: 17 | D20: 2018 | E20: 154.802686 | F20: =_xll.RiskPercentile($K20,5%)/1000 ->  | G20: =_xll.RiskMean($K20)/1000 ->  | H20: =_xll.RiskPercentile($K20,95%)/1000 ->  | J20: =SUM('Risk Summary'!$E$19:'Risk Summary'!$E$32) -> 154802.686 | K20: =SUM('Risk Summary'!$F$19:'Risk Summary'!$F$32) -> 
A21: 18 | D21: 2019 | E21: 160.115335 | F21: =_xll.RiskPercentile($K21,5%)/1000 ->  | G21: =_xll.RiskMean($K21)/1000 ->  | H21: =_xll.RiskPercentile($K21,95%)/1000 ->  | J21: =SUM('Risk Summary'!$G$19:'Risk Summary'!$G$32) -> 160115.335 | K21: =SUM('Risk Summary'!$H$19:'Risk Summary'!$H$32) -> 
A22: 19 | B22: 4.1.2.1.7 | C22: Fish & Wildlife Expenses | D22: 2017 | E22: =J22/1000 -> 295.818797 | F22: =_xll.RiskPercentile($K22,5%)/1000 ->  | G22: =_xll.RiskMean($K22)/1000 ->  | H22: =_xll.RiskPercentile($K22,95%)/1000 ->  | J22: =SUM('Risk Summary'!$C$34:'Risk Summary'!$C$35) -> 295818.797 | K22: =SUM('Risk Summary'!$D$34:'Risk Summary'!$D$35) -> 
A23: 20 | D23: 2018 | E23: 310.196531 | F23: =_xll.RiskPercentile($K23,5%)/1000 ->  | G23: =_xll.RiskMean($K23)/1000 ->  | H23: =_xll.RiskPercentile($K23,95%)/1000 ->  | J23: =SUM('Risk Summary'!$E$34:'Risk Summary'!$E$35) -> 310196.531 | K23: =SUM('Risk Summary'!$F$34:'Risk Summary'!$F$35) -> 
A24: 21 | D24: 2019 | E24: 310.186917 | F24: =_xll.RiskPercentile($K24,5%)/1000 ->  | G24: =_xll.RiskMean($K24)/1000 ->  | H24: =_xll.RiskPercentile($K24,95%)/1000 ->  | J24: =SUM('Risk Summary'!$G$34:'Risk Summary'!$G$35) -> 310186.917 | K24: =SUM('Risk Summary'!$H$34:'Risk Summary'!$H$35) -> 
A25: 22 | B25: 4.1.2.1.8 | C25: Interest Expense Risk | D25: 2017 | E25: 392.309238 | F25: =_xll.RiskPercentile($K25,5%)/1000 ->  | G25: =_xll.RiskMean($K25)/1000 ->  | H25: =_xll.RiskPercentile($K25,95%)/1000 ->  | J25: =SUM('Risk Summary'!$C$37:'Risk Summary'!$C$39) -> 392309.238 | K25: =SUM('Risk Summary'!$D$37:'Risk Summary'!$D$39) -> 
A26: 23 | D26: 2018 | E26: 630.3048091 | F26: =_xll.RiskPercentile($K26,5%)/1000 ->  | G26: =_xll.RiskMean($K26)/1000 ->  | H26: =_xll.RiskPercentile($K26,95%)/1000 ->  | J26: =SUM('Risk Summary'!$E$37:'Risk Summary'!$E$39) -> 630304.8091 | K26: =SUM('Risk Summary'!$F$37:'Risk Summary'!$F$39) -> 
A27: 24 | D27: 2019 | E27: 566.6931575 | F27: =_xll.RiskPercentile($K27,5%)/1000 ->  | G27: =_xll.RiskMean($K27)/1000 ->  | H27: =_xll.RiskPercentile($K27,95%)/1000 ->  | J27: =SUM('Risk Summary'!$G$37:'Risk Summary'!$G$39) -> 566693.1575 | K27: =SUM('Risk Summary'!$H$37:'Risk Summary'!$H$39) -> 
A28: 25 | B28: 4.1.2.1.9 | C28: CGS Refueling Outage Risk | D28: 2017 | E28: N/A | F28: =_xll.RiskPercentile($K28,5%)/1000 ->  | G28: =_xll.RiskMean($K28)/1000 ->  | H28: =_xll.RiskPercentile($K28,95%)/1000 ->  | K28: ='Risk Summary'!$D$6 -> 
A29: 26 | D29: 2018 | E29: N/A | F29: =_xll.RiskPercentile($K29,5%)/1000 ->  | G29: =_xll.RiskMean($K29)/1000 ->  | H29: =_xll.RiskPercentile($K29,95%)/1000 ->  | K29: ='Risk Summary'!$F$6 -> 
A30: 27 | D30: 2019 | E30: N/A | F30: =_xll.RiskPercentile($K30,5%)/1000 ->  | G30: =_xll.RiskMean($K30)/1000 ->  | H30: =_xll.RiskPercentile($K30,95%)/1000 ->  | K30: ='Risk Summary'!$H$6 -> 
A31: 34 | B31: 4.1.2.1.12 | C31: Undistributed Reduction Risk | D31: 2017 | E31: 0 | F31: =_xll.RiskPercentile($K31,5%)/1000 ->  | G31: =_xll.RiskMean($K31)/1000 ->  | H31: =_xll.RiskPercentile($K31,95%)/1000 -> 
A32: 35 | D32: 2018 | E32: 0 | F32: =_xll.RiskPercentile($K32,5%)/1000 ->  | G32: =_xll.RiskMean($K32)/1000 ->  | H32: =_xll.RiskPercentile($K32,95%)/1000 -> 
A33: 36 | D33: 2019 | E33: 0 | F33: =_xll.RiskPercentile($K33,5%)/1000 ->  | G33: =_xll.RiskMean($K33)/1000 ->  | H33: =_xll.RiskPercentile($K33,95%)/1000 -> 
